Invoice_Payment_Date,Org_Level_2_Desc,Supplier_Name,Nominal_Desc, Invoice_Line_Net_Amount ,Internal_Category_Code
13/06/2016,CAPITAL CC,Muse Developments Ltd,"MAINTENANCE - EQUIPMENT, FURNITURE AND MATERIALS"," 7,053,466.00 ","Works - Construction, Repair & Maint.Architect.NA",Q1,,
31/05/2016,BUSINESS & CUSTOMER SERVICES,Transport Trading Ltd,DIRECT TRANSPORT," 3,211,926.00 ",Public Transport.Passenger Transport.NA,Q1,,
08/04/2016,CORPORATE AFFAIRS,Arthur J Gallagher Housing Ltd,INSURANCE (EXCL PREMISES AND TRANSPORT)," 2,947,604.44 ",Financial Services.Insurance.Property,Q1,,
19/04/2016,CAPITAL CC,Breyer Group Plc_d,"MAINTENANCE - EQUIPMENT, FURNITURE AND MATERIALS"," 1,637,358.88 ","Works - Construction, Repair & Maint.Buildings.Construction",Q1,,
21/06/2016,"NEIGHBOURHOODS, ENVIRONMENT & EMPLOYMENT",Western Riverside Waste Authority,WASTE DISPOSAL COSTS," 1,205,023.44 ",Environmental Services.Waste Management.NA,Q1,,
25/04/2016,"REGENERATION, PLANNING & NEIGHBOURHOODS",Western Riverside Waste Authority,WASTE DISPOSAL COSTS," 1,149,760.32 ",Environmental Services.Waste Management.NA,Q1,,
05/04/2016,CAPITAL CC,Extraspace Solutions (Uk)ltd,"PURCHASE - EQUIPMENT, FURNITURE AND MATERIALS"," 1,133,300.00 ",Education.Supplies.NA,Q1,,
23/05/2016,"REGENERATION, PLANNING & NEIGHBOURHOODS",Western Riverside Waste Authority,WASTE DISPOSAL COSTS," 1,129,675.62 ",Environmental Services.Waste Management.NA,Q1,,
04/05/2016,CAPITAL CC,Extraspace Solutions (Uk)ltd,"PURCHASE - EQUIPMENT, FURNITURE AND MATERIALS"," 1,065,000.00 ",Education.Supplies.NA,Q1,,
16/05/2016,CAPITAL CC,Elliott Group Limited,PREMISES HIRE - FACILITIES," 1,000,000.00 ",Facilities & Management Services.Portable Building Hire.NA,Q1,,
21/06/2016,"NEIGHBOURHOODS, ENVIRONMENT & EMPLOYMENT",The London Community Foundation_d,REVENUE EXPENDITURE FUNDED FROM CAPITAL UNDER STATUTE GRANTS," 1,000,000.00 ",Arts & Leisure Services.Events.NA,Q1,,
13/04/2016,CAPITAL CC,Apollo Property Services Group Ltd,"MAINTENANCE - EQUIPMENT, FURNITURE AND MATERIALS"," 998,934.32 ","Works - Construction, Repair & Maint.Buildings.Construction",Q1,,
03/06/2016,CAPITAL CC,Extraspace Solutions (Uk)ltd,"PURCHASE - EQUIPMENT, FURNITURE AND MATERIALS"," 988,000.00 ",Education.Supplies.NA,Q1,,
22/04/2016,CAPITAL CC,Apollo Property Services Group Ltd,"MAINTENANCE - EQUIPMENT, FURNITURE AND MATERIALS"," 938,277.84 ","Works - Construction, Repair & Maint.Buildings.Construction",Q1,,
22/04/2016,CAPITAL CC,Elliott Group Limited,PREMISES HIRE - FACILITIES," 851,000.00 ",Facilities & Management Services.Portable Building Hire.NA,Q1,,
15/04/2016,CAPITAL CC,Apollo Property Services Group Ltd,"MAINTENANCE - EQUIPMENT, FURNITURE AND MATERIALS"," 843,347.46 ","Works - Construction, Repair & Maint.Buildings.Construction",Q1,,
24/05/2016,STRATEGY & COMMISSIONING - HOUSING & COMMUNITIES (HRA),Regenter Myatts Field North Ltd,"MAINTENANCE - EQUIPMENT, FURNITURE AND MATERIALS"," 811,424.34 ","Works - Construction, Repair & Maint.Buildings.Construction",Q1,,
11/05/2016,STRATEGY & COMMISSIONING - HOUSING & COMMUNITIES (HRA),Regenter Myatts Field North Ltd,"MAINTENANCE - EQUIPMENT, FURNITURE AND MATERIALS"," 780,946.10 ","Works - Construction, Repair & Maint.Buildings.Construction",Q1,,
11/05/2016,STRATEGY & COMMISSIONING - HOUSING & COMMUNITIES (HRA),Regenter Myatts Field North Ltd,"MAINTENANCE - EQUIPMENT, FURNITURE AND MATERIALS"," 780,946.10 ","Works - Construction, Repair & Maint.Buildings.Construction",Q1,,
17/05/2016,CAPITAL CC,Breyer Group Plc_d,"MAINTENANCE - EQUIPMENT, FURNITURE AND MATERIALS"," 773,861.77 ","Works - Construction, Repair & Maint.Buildings.Construction",Q1,,
13/04/2016,CAPITAL CC,Apollo Property Services Group Ltd,"MAINTENANCE - EQUIPMENT, FURNITURE AND MATERIALS"," 757,747.19 ","Works - Construction, Repair & Maint.Buildings.Construction",Q1,,
06/06/2016,CORPORATE AFFAIRS,Zurich Municipal,INSURANCE (EXCL PREMISES AND TRANSPORT)," 727,719.12 ",Financial Services.Insurance.NA,Q1,,
28/06/2016,CAPITAL CC,Extraspace Solutions (Uk)ltd,"PURCHASE - EQUIPMENT, FURNITURE AND MATERIALS"," 713,000.00 ",Education.Supplies.NA,Q1,,
29/06/2016,CAPITAL CC,Breyer Group Plc_d,"MAINTENANCE - EQUIPMENT, FURNITURE AND MATERIALS"," 712,289.27 ","Works - Construction, Repair & Maint.Buildings.Construction",Q1,,
26/05/2016,CAPITAL CC,T Brown Group Ltd_d,BUILDING ALTERATIONS AND MATERIALS," 710,018.39 ",Building Construction Materials.Heating & Air Conditioning.NA,Q1,,
19/04/2016,CAPITAL CC,Breyer Group Plc_d,"MAINTENANCE - EQUIPMENT, FURNITURE AND MATERIALS"," 710,000.56 ","Works - Construction, Repair & Maint.Buildings.Construction",Q1,,
13/06/2016,CAPITAL CC,Elliott Group Limited,PREMISES HIRE - FACILITIES," 710,000.00 ",Facilities & Management Services.Portable Building Hire.NA,Q1,,
06/05/2016,"STRATEGY & COMMISSIONING - CHILDREN, DISABILITIES & PUBLIC HEALTH",Young Lambeth Co-operative_d,PAYMENTS TO VOLUNTARY SECTOR," 704,943.00 ",Education.Educational Placements.NA,Q1,,
15/04/2016,CAPITAL CC,Apollo Property Services Group Ltd,"MAINTENANCE - EQUIPMENT, FURNITURE AND MATERIALS"," 676,803.06 ","Works - Construction, Repair & Maint.Buildings.Construction",Q1,,
29/06/2016,CAPITAL CC,Mears Ltd,FACILITIES MANAGEMENT," 676,491.94 ","Works - Construction, Repair & Maint.Buildings.Repair & Maintenance",Q1,,
22/04/2016,CAPITAL CC,Apollo Property Services Group Ltd,"MAINTENANCE - EQUIPMENT, FURNITURE AND MATERIALS"," 674,636.86 ","Works - Construction, Repair & Maint.Buildings.Construction",Q1,,
27/04/2016,CAPITAL CC,Breyer Group Plc_d,"MAINTENANCE - EQUIPMENT, FURNITURE AND MATERIALS"," 671,823.86 ","Works - Construction, Repair & Maint.Buildings.Construction",Q1,,
13/04/2016,CAPITAL CC,Apollo Property Services Group Ltd,"MAINTENANCE - EQUIPMENT, FURNITURE AND MATERIALS"," 660,767.69 ","Works - Construction, Repair & Maint.Buildings.Construction",Q1,,
01/04/2016,CAPITAL CC,Mears Ltd,FACILITIES MANAGEMENT," 649,741.35 ","Works - Construction, Repair & Maint.Buildings.Repair & Maintenance",Q1,,
29/06/2016,CAPITAL CC,Breyer Group Plc_d,"MAINTENANCE - EQUIPMENT, FURNITURE AND MATERIALS"," 630,529.52 ","Works - Construction, Repair & Maint.Buildings.Construction",Q1,,
27/04/2016,CAPITAL CC,Breyer Group Plc_d,"MAINTENANCE - EQUIPMENT, FURNITURE AND MATERIALS"," 630,019.33 ","Works - Construction, Repair & Maint.Buildings.Construction",Q1,,
16/05/2016,CAPITAL CC,Mears Ltd,FACILITIES MANAGEMENT," 619,093.65 ","Works - Construction, Repair & Maint.Buildings.Repair & Maintenance",Q1,,
27/04/2016,CAPITAL CC,Breyer Group Plc_d,"MAINTENANCE - EQUIPMENT, FURNITURE AND MATERIALS"," 616,127.39 ","Works - Construction, Repair & Maint.Buildings.Construction",Q1,,
25/04/2016,CAPITAL CC,Mitie Property Services (UK) Ltd_d,"MAINTENANCE - EQUIPMENT, FURNITURE AND MATERIALS"," 610,677.45 ","Works - Construction, Repair & Maint.Buildings.Construction",Q1,,
13/04/2016,CAPITAL CC,Apollo Property Services Group Ltd,"MAINTENANCE - EQUIPMENT, FURNITURE AND MATERIALS"," 590,162.04 ","Works - Construction, Repair & Maint.Buildings.Construction",Q1,,
02/06/2016,CAPITAL CC,Breyer Group Plc_d,"MAINTENANCE - EQUIPMENT, FURNITURE AND MATERIALS"," 579,208.60 ","Works - Construction, Repair & Maint.Buildings.Construction",Q1,,
26/04/2016,CAPITAL CC,Breyer Group Plc_d,"MAINTENANCE - EQUIPMENT, FURNITURE AND MATERIALS"," 574,322.86 ","Works - Construction, Repair & Maint.Buildings.Construction",Q1,,
27/04/2016,CAPITAL CC,Breyer Group Plc_d,"MAINTENANCE - EQUIPMENT, FURNITURE AND MATERIALS"," 574,315.27 ","Works - Construction, Repair & Maint.Buildings.Construction",Q1,,
01/04/2016,BUSINESS & CUSTOMER SERVICES,Capita Business Services Ltd,CONSULTANCY FEES," 554,551.70 ",Consultancy.Business.NA,Q1,,
30/06/2016,HUMAN RESOURCES & ORGANISATIONAL DEVELOPMENT,Matrix SCM Ltd,AGENCY STAFF," 547,558.03 ",Human Resources.Temporary & Agency Staff.NA,Q1,,
28/06/2016,BUSINESS & CUSTOMER SERVICES,Capita Business Services Ltd,CONSULTANCY FEES," 540,130.66 ",Consultancy.Business.NA,Q1,,
25/05/2016,"REGENERATION, PLANNING & NEIGHBOURHOODS",Veolia ES (UK) Ltd,REFUSE COLLECTION," 535,448.32 ",Environmental Services.Waste Management.Waste Collection,Q1,,
21/06/2016,"NEIGHBOURHOODS, ENVIRONMENT & EMPLOYMENT",Veolia ES (UK) Ltd,REFUSE COLLECTION," 535,448.32 ",Environmental Services.Waste Management.Waste Collection,Q1,,
26/05/2016,CAPITAL CC,Mitie Property Services (UK) Ltd_d,"MAINTENANCE - EQUIPMENT, FURNITURE AND MATERIALS"," 528,823.04 ","Works - Construction, Repair & Maint.Buildings.Construction",Q1,,
06/04/2016,"REGENERATION, PLANNING & NEIGHBOURHOODS",Veolia ES (UK) Ltd,REFUSE COLLECTION," 527,016.06 ",Environmental Services.Waste Management.Waste Collection,Q1,,
10/05/2016,CAPITAL CC,Mears Ltd,FACILITIES MANAGEMENT," 516,608.44 ","Works - Construction, Repair & Maint.Buildings.Repair & Maintenance",Q1,,
17/05/2016,"REGENERATION, PLANNING & NEIGHBOURHOODS",F M Conway Ltd_d,"MAINTENANCE - EQUIPMENT, FURNITURE AND MATERIALS"," 516,000.00 ","Works - Construction, Repair & Maint.Roads.Repair & Maintenance",Q1,,
22/04/2016,CAPITAL CC,Elliott Group Limited,PREMISES HIRE - FACILITIES," 514,000.00 ",Facilities & Management Services.Portable Building Hire.NA,Q1,,
17/05/2016,BUSINESS & CUSTOMER SERVICES,Capita Business Services Ltd,CONSULTANCY FEES," 509,607.65 ",Consultancy.Business.NA,Q1,,
25/05/2016,"REGENERATION, PLANNING & NEIGHBOURHOODS",Veolia ES (UK) Ltd,STREET SWEEPING," 503,862.52 ",Environmental Services.Street Cleansing.NA,Q1,,
21/06/2016,"NEIGHBOURHOODS, ENVIRONMENT & EMPLOYMENT",Veolia ES (UK) Ltd,STREET SWEEPING," 503,862.52 ",Environmental Services.Street Cleansing.NA,Q1,,
06/04/2016,"REGENERATION, PLANNING & NEIGHBOURHOODS",Veolia ES (UK) Ltd,WASTE DISPOSAL COSTS," 495,927.67 ",Environmental Services.Waste Management.NA,Q1,,
08/04/2016,HUMAN RESOURCES AND ORGANISATIONAL DEVELOPMENT,Matrix SCM Ltd,AGENCY STAFF," 494,021.19 ",Human Resources.Temporary & Agency Staff.NA,Q1,,
16/06/2016,HUMAN RESOURCES & ORGANISATIONAL DEVELOPMENT,Matrix SCM Ltd,AGENCY STAFF," 489,619.58 ",Human Resources.Temporary & Agency Staff.NA,Q1,,
24/06/2016,CAPITAL CC,Mears Ltd,FACILITIES MANAGEMENT," 481,992.91 ","Works - Construction, Repair & Maint.Buildings.Repair & Maintenance",Q1,,
11/05/2016,HUMAN RESOURCES AND ORGANISATIONAL DEVELOPMENT,Matrix SCM Ltd,AGENCY STAFF," 474,798.00 ",Human Resources.Temporary & Agency Staff.NA,Q1,,
27/05/2016,HUMAN RESOURCES AND ORGANISATIONAL DEVELOPMENT,Matrix SCM Ltd,AGENCY STAFF," 473,001.66 ",Human Resources.Temporary & Agency Staff.NA,Q1,,
13/06/2016,HUMAN RESOURCES AND ORGANISATIONAL DEVELOPMENT,Matrix SCM Ltd,AGENCY STAFF," 468,399.38 ",Human Resources.Temporary & Agency Staff.NA,Q1,,
27/05/2016,HUMAN RESOURCES AND ORGANISATIONAL DEVELOPMENT,Matrix SCM Ltd,AGENCY STAFF," 467,672.29 ",Human Resources.Temporary & Agency Staff.NA,Q1,,
26/05/2016,CAPITAL CC,T Brown Group Ltd_d,BUILDING ALTERATIONS AND MATERIALS," 466,611.26 ",Building Construction Materials.Heating & Air Conditioning.NA,Q1,,
13/05/2016,CAPITAL CC,Elliott Group Limited,PREMISES HIRE - FACILITIES," 464,349.90 ",Facilities & Management Services.Portable Building Hire.NA,Q1,,
01/06/2016,BUSINESS & CUSTOMER SERVICES,Capita Business Services Ltd,CONSULTANCY FEES," 464,248.83 ",Consultancy.Business.NA,Q1,,
21/06/2016,CAPITAL CC,Mears Ltd,FACILITIES MANAGEMENT," 463,520.75 ","Works - Construction, Repair & Maint.Buildings.Repair & Maintenance",Q1,,
02/06/2016,HUMAN RESOURCES AND ORGANISATIONAL DEVELOPMENT,Matrix SCM Ltd,AGENCY STAFF," 457,883.35 ",Human Resources.Temporary & Agency Staff.NA,Q1,,
08/04/2016,CAPITAL CC,Apollo Property Services Group Ltd,"MAINTENANCE - EQUIPMENT, FURNITURE AND MATERIALS"," 445,470.07 ","Works - Construction, Repair & Maint.Buildings.Construction",Q1,,
29/04/2016,CAPITAL CC,Specialist Computer Centers Plc,ICT HARDWARE," 443,322.42 ",Information Communication Technology.Hardware.NA,Q1,,
23/06/2016,HUMAN RESOURCES & ORGANISATIONAL DEVELOPMENT,Matrix SCM Ltd,AGENCY STAFF," 439,912.71 ",Human Resources.Temporary & Agency Staff.NA,Q1,,
11/05/2016,HUMAN RESOURCES AND ORGANISATIONAL DEVELOPMENT,Matrix SCM Ltd,AGENCY STAFF," 438,188.32 ",Human Resources.Temporary & Agency Staff.NA,Q1,,
11/04/2016,CAPITAL CC,Mears Ltd,FACILITIES MANAGEMENT," 433,556.82 ","Works - Construction, Repair & Maint.Buildings.Repair & Maintenance",Q1,,
18/04/2016,HUMAN RESOURCES AND ORGANISATIONAL DEVELOPMENT,Matrix SCM Ltd,AGENCY STAFF," 432,983.79 ",Human Resources.Temporary & Agency Staff.NA,Q1,,
13/06/2016,CAPITAL CC,Elliott Group Limited,PREMISES HIRE - FACILITIES," 430,000.00 ",Facilities & Management Services.Portable Building Hire.NA,Q1,,
20/04/2016,CAPITAL CC,Breyer Group Plc_d,"MAINTENANCE - EQUIPMENT, FURNITURE AND MATERIALS"," 423,215.72 ","Works - Construction, Repair & Maint.Buildings.Construction",Q1,,
12/05/2016,HUMAN RESOURCES AND ORGANISATIONAL DEVELOPMENT,Matrix SCM Ltd,AGENCY STAFF," 412,888.73 ",Human Resources.Temporary & Agency Staff.NA,Q1,,
19/04/2016,"REGENERATION, PLANNING & NEIGHBOURHOODS",CVU_d,"MAINTENANCE - EQUIPMENT, FURNITURE AND MATERIALS"," 404,239.09 ","Works - Construction, Repair & Maint.Roads.Construction",Q1,,
25/04/2016,HUMAN RESOURCES AND ORGANISATIONAL DEVELOPMENT,Matrix SCM Ltd,AGENCY STAFF," 404,207.30 ",Human Resources.Temporary & Agency Staff.NA,Q1,,
22/06/2016,CAPITAL CC,Lakehouse Contracts Ltd_d,"MAINTENANCE - EQUIPMENT, FURNITURE AND MATERIALS"," 395,652.98 ","Works - Construction, Repair & Maint.Buildings.Construction",Q1,,
20/04/2016,CAPITAL CC,Lakehouse Contracts Ltd_d,"MAINTENANCE - EQUIPMENT, FURNITURE AND MATERIALS"," 392,107.03 ","Works - Construction, Repair & Maint.Buildings.Construction",Q1,,
16/05/2016,CAPITAL CC,Lakehouse Contracts Ltd_d,"MAINTENANCE - EQUIPMENT, FURNITURE AND MATERIALS"," 379,075.52 ","Works - Construction, Repair & Maint.Buildings.Construction",Q1,,
11/04/2016,CAPITAL CC,Muse Developments Ltd,"MAINTENANCE - EQUIPMENT, FURNITURE AND MATERIALS"," 377,609.00 ","Works - Construction, Repair & Maint.Architect.NA",Q1,,
11/04/2016,HUMAN RESOURCES AND ORGANISATIONAL DEVELOPMENT,Matrix SCM Ltd,AGENCY STAFF," 369,233.97 ",Human Resources.Temporary & Agency Staff.NA,Q1,,
04/04/2016,"REGENERATION, PLANNING & NEIGHBOURHOODS",NSL Services Group Ltd,CONSULTANCY FEES," 367,969.37 ",Consultancy.Business.NA,Q1,,
11/04/2016,STRATEGY & COMMISSIONING - HOUSING & COMMUNITIES (HRA),Loughborough EMB Ltd,PRIVATE CONTRACTORS PAYMENT - OTHER," 360,107.25 ",Housing Management.Arms Length Management Organisations.NA,Q1,,
12/04/2016,CAPITAL CC,Mears Ltd,FACILITIES MANAGEMENT," 359,978.30 ","Works - Construction, Repair & Maint.Buildings.Repair & Maintenance",Q1,,
16/05/2016,CAPITAL CC,Mears Ltd,FACILITIES MANAGEMENT," 350,985.30 ","Works - Construction, Repair & Maint.Buildings.Repair & Maintenance",Q1,,
16/05/2016,CAPITAL CC,Elliott Group Limited,PREMISES HIRE - FACILITIES," 349,000.00 ",Facilities & Management Services.Portable Building Hire.NA,Q1,,
08/06/2016,"STRATEGY & COMMISSIONING - CHILDREN, DISABILITIES & PUBLIC HEALTH",Guys & St Thomas NHS Foundation Trust,PAYMENT TO HEALTH AUTHORITIES," 343,117.75 ",Healthcare.Public Health.NA,Q1,,
08/06/2016,"STRATEGY & COMMISSIONING - CHILDREN, DISABILITIES & PUBLIC HEALTH",Guys & St Thomas NHS Foundation Trust,PAYMENT TO HEALTH AUTHORITIES," 343,117.75 ",Healthcare.Public Health.NA,Q1,,
17/06/2016,CAPITAL CC,Mitie Property Services (UK) Ltd_d,"MAINTENANCE - EQUIPMENT, FURNITURE AND MATERIALS"," 340,696.65 ","Works - Construction, Repair & Maint.Buildings.Construction",Q1,,
15/06/2016,ADULT SOCIAL CARE,NHS Lambeth Clinical Commissioning Group,PAYMENT TO HEALTH AUTHORITIES," 333,485.00 ",Healthcare.Public Health.NA,Q1,,
15/06/2016,ADULT SOCIAL CARE,NHS Lambeth Clinical Commissioning Group,PAYMENT TO HEALTH AUTHORITIES," 333,485.00 ",Healthcare.Public Health.NA,Q1,,
23/06/2016,CAPITAL CC,Mears Ltd,FACILITIES MANAGEMENT," 329,118.35 ","Works - Construction, Repair & Maint.Buildings.Repair & Maintenance",Q1,,
18/05/2016,"REGENERATION, PLANNING & NEIGHBOURHOODS",CVU_d,"MAINTENANCE - EQUIPMENT, FURNITURE AND MATERIALS"," 323,140.62 ","Works - Construction, Repair & Maint.Roads.Construction",Q1,,
08/06/2016,"STRATEGY & COMMISSIONING - CHILDREN, DISABILITIES & PUBLIC HEALTH",Guys & St Thomas NHS Foundation Trust,PAYMENT TO HEALTH AUTHORITIES," 322,304.34 ",Healthcare.Public Health.NA,Q1,,
11/04/2016,STRATEGY & COMMISSIONING - HOUSING & COMMUNITIES (HRA),Roupell Park Resident Management Organisation Ltd,PRIVATE CONTRACTORS PAYMENT - OTHER," 321,274.00 ",Housing Management.Arms Length Management Organisations.NA,Q1,,
20/04/2016,"STRATEGY & COMMISSIONING - CHILDREN, DISABILITIES & PUBLIC HEALTH",Kings College Hospital NHS Foundation Trust,PAYMENT TO HEALTH AUTHORITIES," 321,149.63 ",Healthcare.Public Health.NA,Q1,,
20/04/2016,"STRATEGY & COMMISSIONING - CHILDREN, DISABILITIES & PUBLIC HEALTH",Kings College Hospital NHS Foundation Trust,PAYMENT TO HEALTH AUTHORITIES," 321,149.63 ",Healthcare.Public Health.NA,Q1,,
08/06/2016,"STRATEGY & COMMISSIONING - CHILDREN, DISABILITIES & PUBLIC HEALTH",Guys & St Thomas NHS Foundation Trust,PAYMENT TO HEALTH AUTHORITIES," 320,304.34 ",Healthcare.Public Health.NA,Q1,,
10/05/2016,CAPITAL CC,Mears Ltd,FACILITIES MANAGEMENT," 316,143.58 ","Works - Construction, Repair & Maint.Buildings.Repair & Maintenance",Q1,,
21/06/2016,BUSINESS TRANSFORMATION,Oracle Corporation UK Ltd,ICT SOFTWARE," 308,523.74 ",Information Communication Technology.Software.NA,Q1,,
18/05/2016,"REGENERATION, PLANNING & NEIGHBOURHOODS",CVU_d,"MAINTENANCE - EQUIPMENT, FURNITURE AND MATERIALS"," 306,695.62 ","Works - Construction, Repair & Maint.Roads.Construction",Q1,,
16/06/2016,"NEIGHBOURHOODS, ENVIRONMENT & EMPLOYMENT",NSL Services Group Ltd,CONSULTANCY FEES," 300,688.03 ",Consultancy.Business.NA,Q1,,
13/04/2016,CAPITAL CC,Apollo Property Services Group Ltd,"MAINTENANCE - EQUIPMENT, FURNITURE AND MATERIALS"," 295,882.39 ","Works - Construction, Repair & Maint.Buildings.Construction",Q1,,
29/04/2016,CAPITAL CC,T Brown Group Ltd_d,BUILDING ALTERATIONS AND MATERIALS," 290,349.54 ",Building Construction Materials.Heating & Air Conditioning.NA,Q1,,
12/05/2016,CHILDREN'S SERVICES,National Autistic Society,RESIDENTIAL PLACEMENTS - PRIVATE CONTRACTORS PAYMENT," 288,656.22 ",Social Community Care Supplies & Service.Children.Residential Care,Q1,,
18/05/2016,CORPORATE ITEMS,Lee Valley Regional Park Authority,LEVIES PAID," 287,964.84 ",Arts & Leisure Services.Outsourced Service.NA,Q1,,
20/06/2016,CORPORATE ITEMS,Lee Valley Regional Park Authority,LEVIES PAID," 287,964.84 ",Arts & Leisure Services.Outsourced Service.NA,Q1,,
25/04/2016,CAPITAL CC,Mitie Property Services (UK) Ltd_d,"MAINTENANCE - EQUIPMENT, FURNITURE AND MATERIALS"," 278,413.30 ","Works - Construction, Repair & Maint.Buildings.Construction",Q1,,
29/04/2016,FINANCE,Majedie Asset Management Ltd,PROFESSIONAL SERVICES - GENERAL," 267,866.62 ",Financial Services.Pension Funds.NA,Q1,,
19/05/2016,BUSINESS & CUSTOMER SERVICES,South Bank Bid Ltd,GENERAL OFFICE EXPENSES," 266,134.50 ",Financial Services.Council Tax & Business Rates.NA,Q1,,
22/04/2016,CAPITAL CC,Apollo Property Services Group Ltd,"MAINTENANCE - EQUIPMENT, FURNITURE AND MATERIALS"," 265,753.80 ","Works - Construction, Repair & Maint.Buildings.Construction",Q1,,
21/04/2016,"REGENERATION, PLANNING & NEIGHBOURHOODS",NSL Services Group Ltd,CONSULTANCY FEES," 265,729.60 ",Consultancy.Business.NA,Q1,,
07/04/2016,CAPITAL CC,Breyer Group Plc_d,"MAINTENANCE - EQUIPMENT, FURNITURE AND MATERIALS"," 256,812.72 ","Works - Construction, Repair & Maint.Buildings.Construction",Q1,,
18/05/2016,BUSINESS & CUSTOMER SERVICES,Vauxhall One,GENERAL OFFICE EXPENSES," 256,787.51 ",Financial Services.Council Tax & Business Rates.NA,Q1,,
16/05/2016,CAPITAL CC,Mears Ltd,FACILITIES MANAGEMENT," 256,015.79 ","Works - Construction, Repair & Maint.Buildings.Repair & Maintenance",Q1,,
06/06/2016,"STRATEGY & COMMISSIONING - CHILDREN, DISABILITIES & PUBLIC HEALTH",Young Lambeth Co-operative_d,PAYMENTS TO VOLUNTARY SECTOR," 255,246.40 ",Education.Educational Placements.NA,Q1,,
28/06/2016,ADULT SOCIAL CARE,Amberbrook Management Ltd,NURSING HOMES - PRIVATE CONTRACTORS PAYMENT," 250,785.52 ",Social Community Care Supplies & Service.Adult.Residential Homes for Older People,Q1,,
01/06/2016,BUSINESS & CUSTOMER SERVICES,London Councils,MEMBERSHIP AND SUBSCRIPTIONS," 245,724.00 ",Financial Services.Subscriptions.NA,Q1,,
26/05/2016,HOUSING MANAGEMENT SERVICES,Mears Ltd,FACILITIES MANAGEMENT," 245,692.67 ","Works - Construction, Repair & Maint.Buildings.Repair & Maintenance",Q1,,
26/05/2016,HOUSING MANAGEMENT SERVICES,Mears Ltd,FACILITIES MANAGEMENT," 245,618.00 ","Works - Construction, Repair & Maint.Buildings.Repair & Maintenance",Q1,,
04/04/2016,HOUSING MANAGEMENT SERVICES,Mears Ltd,FACILITIES MANAGEMENT," 245,243.94 ","Works - Construction, Repair & Maint.Buildings.Repair & Maintenance",Q1,,
26/05/2016,HOUSING MANAGEMENT SERVICES,Mears Ltd,FACILITIES MANAGEMENT," 245,243.94 ","Works - Construction, Repair & Maint.Buildings.Repair & Maintenance",Q1,,
05/04/2016,CAPITAL CC,Mears Ltd,FACILITIES MANAGEMENT," 242,391.51 ","Works - Construction, Repair & Maint.Buildings.Repair & Maintenance",Q1,,
08/06/2016,"STRATEGY & COMMISSIONING - CHILDREN, DISABILITIES & PUBLIC HEALTH",Age UK Lambeth,PRIVATE CONTRACTORS PAYMENT - OTHER," 237,216.00 ",Social Community Care Supplies & Service.Adult.NA,Q1,,
26/05/2016,CAPITAL CC,Mitie Property Services (UK) Ltd_d,"MAINTENANCE - EQUIPMENT, FURNITURE AND MATERIALS"," 232,912.95 ","Works - Construction, Repair & Maint.Buildings.Construction",Q1,,
25/05/2016,ADULT SOCIAL CARE,Windmill Care Centre,NURSING HOMES - PRIVATE CONTRACTORS PAYMENT," 232,765.71 ",Social Community Care Supplies & Service.Adult.Nursing Homes,Q1,,
27/04/2016,CAPITAL CC,Apollo Property Services Group Ltd,"MAINTENANCE - EQUIPMENT, FURNITURE AND MATERIALS"," 232,439.36 ","Works - Construction, Repair & Maint.Buildings.Construction",Q1,,
13/04/2016,CAPITAL CC,Apollo Property Services Group Ltd,"MAINTENANCE - EQUIPMENT, FURNITURE AND MATERIALS"," 230,343.96 ","Works - Construction, Repair & Maint.Buildings.Construction",Q1,,
28/04/2016,CAPITAL CC,F M Conway Ltd_d,"MAINTENANCE - EQUIPMENT, FURNITURE AND MATERIALS"," 230,114.29 ","Works - Construction, Repair & Maint.Roads.Repair & Maintenance",Q1,,
25/04/2016,CORPORATE ITEMS,Environment Agency,LEVIES PAID," 229,099.00 ",Financial Services.Subscriptions.NA,Q1,,
27/06/2016,CORPORATE ITEMS,Environment Agency,LEVIES PAID," 229,099.00 ",Financial Services.Subscriptions.NA,Q1,,
06/06/2016,CAPITAL CC,Breyer Group Plc_d,"MAINTENANCE - EQUIPMENT, FURNITURE AND MATERIALS"," 227,513.59 ","Works - Construction, Repair & Maint.Buildings.Construction",Q1,,
28/06/2016,ADULT SOCIAL CARE,Windmill Care Centre,NURSING HOMES - PRIVATE CONTRACTORS PAYMENT," 225,257.15 ",Social Community Care Supplies & Service.Adult.Nursing Homes,Q1,,
27/04/2016,ADULT SOCIAL CARE,Windmill Care Centre,NURSING HOMES - PRIVATE CONTRACTORS PAYMENT," 225,257.14 ",Social Community Care Supplies & Service.Adult.Nursing Homes,Q1,,
13/05/2016,"REGENERATION, PLANNING & NEIGHBOURHOODS",Lambeth Lighting Services,"PURCHASE - EQUIPMENT, FURNITURE AND MATERIALS"," 221,740.56 ",Highway Equipment & Materials.Street Lighting.NA,Q1,,
17/06/2016,"NEIGHBOURHOODS, ENVIRONMENT & EMPLOYMENT",Lambeth Lighting Services,"PURCHASE - EQUIPMENT, FURNITURE AND MATERIALS"," 221,740.56 ",Highway Equipment & Materials.Street Lighting.NA,Q1,,
13/05/2016,CAPITAL CC,Elliott Group Limited,PREMISES HIRE - FACILITIES," 219,695.30 ",Facilities & Management Services.Portable Building Hire.NA,Q1,,
27/04/2016,HOUSING MANAGEMENT SERVICES,Morrison Facilities Services Ltd_d,FACILITIES MANAGEMENT," 216,851.55 ","Works - Construction, Repair & Maint.Buildings.Repair & Maintenance",Q1,,
04/04/2016,HOUSING MANAGEMENT SERVICES,Morrison Facilities Services Ltd_d,FACILITIES MANAGEMENT," 214,977.16 ","Works - Construction, Repair & Maint.Buildings.Repair & Maintenance",Q1,,
04/04/2016,HOUSING MANAGEMENT SERVICES,Morrison Facilities Services Ltd_d,FACILITIES MANAGEMENT," 214,977.16 ","Works - Construction, Repair & Maint.Buildings.Repair & Maintenance",Q1,,
05/05/2016,HOUSING MANAGEMENT SERVICES,Morrison Facilities Services Ltd_d,FACILITIES MANAGEMENT," 214,977.16 ","Works - Construction, Repair & Maint.Buildings.Repair & Maintenance",Q1,,
26/05/2016,HOUSING MANAGEMENT SERVICES,Morrison Facilities Services Ltd_d,FACILITIES MANAGEMENT," 214,977.16 ","Works - Construction, Repair & Maint.Buildings.Repair & Maintenance",Q1,,
17/06/2016,CAPITAL CC,ISG Construction Ltd,"MAINTENANCE - EQUIPMENT, FURNITURE AND MATERIALS"," 214,919.19 ","Works - Construction, Repair & Maint.Buildings.Construction",Q1,,
21/06/2016,CAPITAL CC,Mears Ltd,FACILITIES MANAGEMENT," 212,119.79 ","Works - Construction, Repair & Maint.Buildings.Repair & Maintenance",Q1,,
11/04/2016,STRATEGY & COMMISSIONING - HOUSING & COMMUNITIES (HRA),Cowley RMO Ltd,PRIVATE CONTRACTORS PAYMENT - OTHER," 211,278.75 ",Housing Management.Arms Length Management Organisations.NA,Q1,,
28/06/2016,BUSINESS & CUSTOMER SERVICES,Gandlake Ltd,ICT SOFTWARE," 210,000.00 ",Information Communication Technology.Software.Commercial Off-The-Shelf,Q1,,
23/05/2016,CAPITAL CC,Focus Education (Lambeth) Ltd,PROFESSIONAL SERVICES - GENERAL," 208,883.13 ",Education.School Services.NA,Q1,,
20/05/2016,CAPITAL CC,Focus Education (Lambeth) Ltd,PROFESSIONAL SERVICES - GENERAL," 208,883.13 ",Education.School Services.NA,Q1,,
06/06/2016,CAPITAL CC,Focus Education (Lambeth) Ltd,PROFESSIONAL SERVICES - GENERAL," 208,883.13 ",Education.School Services.NA,Q1,,
23/05/2016,MAJOR CAPITAL PROGRAMMES,Focus Education (Lambeth) Ltd,PROFESSIONAL SERVICES - GENERAL," 208,883.13 ",Education.School Services.NA,Q1,,
28/06/2016,BUSINESS TRANSFORMATION,Swiss Post Solutions Ltd,PRINTING," 208,479.02 ",Facilities & Management Services.Printing.NA,Q1,,
25/05/2016,ADULT SOCIAL CARE,Limetree Healthcare Ltd,NURSING HOMES - PRIVATE CONTRACTORS PAYMENT," 206,052.57 ",Social Community Care Supplies & Service.Adult.Residential Care,Q1,,
10/05/2016,CAPITAL CC,Mears Ltd,FACILITIES MANAGEMENT," 205,286.67 ","Works - Construction, Repair & Maint.Buildings.Repair & Maintenance",Q1,,
28/06/2016,ADULT SOCIAL CARE,Limetree Healthcare Ltd,NURSING HOMES - PRIVATE CONTRACTORS PAYMENT," 199,405.72 ",Social Community Care Supplies & Service.Adult.Nursing Homes,Q1,,
27/04/2016,ADULT SOCIAL CARE,Limetree Healthcare Ltd,NURSING HOMES - PRIVATE CONTRACTORS PAYMENT," 199,405.71 ",Social Community Care Supplies & Service.Adult.Nursing Homes,Q1,,
28/06/2016,CAPITAL CC,Apollo Property Services Group Ltd,"MAINTENANCE - EQUIPMENT, FURNITURE AND MATERIALS"," 199,404.80 ","Works - Construction, Repair & Maint.Buildings.Construction",Q1,,
17/05/2016,CAPITAL CC,Mitie Property Services (UK) Ltd_d,"MAINTENANCE - EQUIPMENT, FURNITURE AND MATERIALS"," 198,713.00 ","Works - Construction, Repair & Maint.Buildings.Construction",Q1,,
24/06/2016,CAPITAL CC,T Brown Group Ltd_d,BUILDING ALTERATIONS AND MATERIALS," 194,817.48 ",Building Construction Materials.Heating & Air Conditioning.NA,Q1,,
18/05/2016,BUSINESS & CUSTOMER SERVICES,Waterloo Quarter Business Alliance,GENERAL OFFICE EXPENSES," 194,393.70 ",Financial Services.Subscriptions.NA,Q1,,
22/04/2016,CAPITAL CC,Sandwood Design & Build Ltd,"MAINTENANCE - EQUIPMENT, FURNITURE AND MATERIALS"," 194,000.00 ","Works - Construction, Repair & Maint.Buildings.Construction",Q1,,
16/05/2016,CAPITAL CC,Mears Ltd,FACILITIES MANAGEMENT," 191,072.05 ","Works - Construction, Repair & Maint.Buildings.Repair & Maintenance",Q1,,
05/04/2016,CAPITAL CC,Mears Ltd,FACILITIES MANAGEMENT," 188,625.68 ","Works - Construction, Repair & Maint.Buildings.Repair & Maintenance",Q1,,
13/04/2016,BUSINESS & CUSTOMER SERVICES,Cofely Workplace Ltd,FACILITIES MANAGEMENT," 183,768.57 ","Works - Construction, Repair & Maint.Buildings.Repair & Maintenance",Q1,,
17/06/2016,CAPITAL CC,ISG Construction Ltd,"MAINTENANCE - EQUIPMENT, FURNITURE AND MATERIALS"," 182,363.50 ","Works - Construction, Repair & Maint.Buildings.Construction",Q1,,
11/05/2016,CAPITAL CC,Jerram Falkus Construction Ltd,"MAINTENANCE - EQUIPMENT, FURNITURE AND MATERIALS"," 181,980.00 ","Works - Construction, Repair & Maint.Buildings.Construction",Q1,,
14/06/2016,BUSINESS & CUSTOMER SERVICES,Heywood Ltd,ICT SOFTWARE," 180,490.00 ",Information Communication Technology.Software.Customised & Bespoke,Q1,,
23/05/2016,ADULT SOCIAL CARE,Allied Healthcare (UK) Ltd,DOMICILIARY CARE - THIRD PARTY," 178,183.68 ",Social Community Care Supplies & Service.Adult.Domiciliary Care,Q1,,
02/06/2016,CAPITAL CC,Apollo Property Services Group Ltd,"MAINTENANCE - EQUIPMENT, FURNITURE AND MATERIALS"," 174,908.19 ","Works - Construction, Repair & Maint.Buildings.Construction",Q1,,
13/06/2016,ADULT SOCIAL CARE,Medequip Assistive Technology Ltd,SPECIALIST EQUIPMENT FOR SERVICE PROVISION," 174,699.38 ",Social Community Care Supplies & Service.Supplies.Equipment,Q1,,
20/06/2016,ADULT SOCIAL CARE,Allied Healthcare (UK) Ltd,DOMICILIARY CARE - THIRD PARTY," 173,814.16 ",Social Community Care Supplies & Service.Adult.Domiciliary Care,Q1,,
13/06/2016,HOUSING MANAGEMENT SERVICES,Chartwell Properties Ltd,RENTS PAYABLE," 173,700.00 ",Financial Services.Rents.NA,Q1,,
25/05/2016,ADULT SOCIAL CARE,Queens Oak Care Centre,NURSING HOMES - PRIVATE CONTRACTORS PAYMENT," 173,139.43 ",Social Community Care Supplies & Service.Adult.Nursing Homes,Q1,,
25/04/2016,ADULT SOCIAL CARE,Allied Healthcare (UK) Ltd,DOMICILIARY CARE - THIRD PARTY," 173,111.40 ",Social Community Care Supplies & Service.Adult.Domiciliary Care,Q1,,
03/05/2016,"STRATEGY & COMMISSIONING - CHILDREN, DISABILITIES & PUBLIC HEALTH",Chelsea & Westminster Hospital NHS Foundation Trust,PAYMENT TO HEALTH AUTHORITIES," 172,688.53 ",Healthcare.Public Health.NA,Q1,,
13/06/2016,ADULT SOCIAL CARE,Medequip Assistive Technology Ltd,SPECIALIST EQUIPMENT FOR SERVICE PROVISION," 172,150.63 ",Social Community Care Supplies & Service.Supplies.Equipment,Q1,,
11/04/2016,STRATEGY & COMMISSIONING - HOUSING & COMMUNITIES (HRA),Blenheim Gardens TMO,PRIVATE CONTRACTORS PAYMENT - OTHER," 171,894.00 ",Housing Management.Arms Length Management Organisations.NA,Q1,,
29/06/2016,ADULT SOCIAL CARE,Precious Homes Ltd,RESIDENTIAL PLACEMENTS - PRIVATE CONTRACTORS PAYMENT," 168,609.83 ",Social Community Care Supplies & Service.Adult.Residential Care,Q1,,
27/04/2016,ADULT SOCIAL CARE,Queens Oak Care Centre,NURSING HOMES - PRIVATE CONTRACTORS PAYMENT," 167,554.29 ",Social Community Care Supplies & Service.Adult.Nursing Homes,Q1,,
28/06/2016,ADULT SOCIAL CARE,Queens Oak Care Centre,NURSING HOMES - PRIVATE CONTRACTORS PAYMENT," 167,554.28 ",Social Community Care Supplies & Service.Adult.Nursing Homes,Q1,,
28/04/2016,CAPITAL CC,Mears Ltd,FACILITIES MANAGEMENT," 166,699.29 ","Works - Construction, Repair & Maint.Buildings.Repair & Maintenance",Q1,,
16/05/2016,CAPITAL CC,Mears Ltd,FACILITIES MANAGEMENT," 166,218.47 ","Works - Construction, Repair & Maint.Buildings.Repair & Maintenance",Q1,,
01/04/2016,CAPITAL CC,Jerram Falkus Construction Ltd,"MAINTENANCE - EQUIPMENT, FURNITURE AND MATERIALS"," 165,461.50 ","Works - Construction, Repair & Maint.Buildings.Construction",Q1,,
27/06/2016,CAPITAL CC,Lawtech Group Ltd,"MAINTENANCE - EQUIPMENT, FURNITURE AND MATERIALS"," 163,442.13 ","Works - Construction, Repair & Maint.Buildings.NA",Q1,,
05/05/2016,"STRATEGY & COMMISSIONING - CHILDREN, DISABILITIES & PUBLIC HEALTH",South London & Maudsley (nhs) Trust,PRIVATE CONTRACTORS PAYMENT - OTHER," 162,000.00 ",Social Community Care Supplies & Service.Adult.Alcohol & Drug Rehabilitation,Q1,,
01/04/2016,CAPITAL CC,Jerram Falkus Construction Ltd,"MAINTENANCE - EQUIPMENT, FURNITURE AND MATERIALS"," 161,253.00 ","Works - Construction, Repair & Maint.Buildings.Construction",Q1,,
16/05/2016,CAPITAL CC,Cofely Workplace Ltd,FACILITIES MANAGEMENT," 160,000.00 ","Works - Construction, Repair & Maint.Buildings.Repair & Maintenance",Q1,,
18/05/2016,BUSINESS & CUSTOMER SERVICES,Brixton BID Limited,GENERAL OFFICE EXPENSES," 159,749.57 ",Consultancy.Business.NA,Q1,,
19/05/2016,BUSINESS & CUSTOMER SERVICES,inStreatham Ltd,GENERAL OFFICE EXPENSES," 156,619.20 ",Consultancy.Business.NA,Q1,,
25/05/2016,"REGENERATION, PLANNING & NEIGHBOURHOODS",Veolia ES (UK) Ltd,REFUSE COLLECTION," 156,444.50 ",Environmental Services.Waste Management.Waste Collection for Recycling,Q1,,
21/06/2016,"NEIGHBOURHOODS, ENVIRONMENT & EMPLOYMENT",Veolia ES (UK) Ltd,REFUSE COLLECTION," 156,444.50 ",Environmental Services.Waste Management.Waste Collection for Recycling,Q1,,
22/04/2016,STRATEGY & COMMISSIONING - HOUSING & COMMUNITIES (HRA),Northgate Public Services (UK) Limited,ICT MAINTENANCE AND SUPPORT," 155,190.39 ",Information Communication Technology.Services.Maintenance & Support,Q1,,
06/04/2016,"REGENERATION, PLANNING & NEIGHBOURHOODS",Veolia ES (UK) Ltd,WASTE DISPOSAL COSTS," 153,980.81 ",Environmental Services.Waste Management.NA,Q1,,
28/04/2016,BUSINESS TRANSFORMATION,Swiss Post Solutions Ltd,PRINTING," 150,423.17 ",Facilities & Management Services.Printing.NA,Q1,,
27/04/2016,CAPITAL CC,Mears Ltd,BUILDING ALTERATIONS AND MATERIALS," 150,234.34 ","Works - Construction, Repair & Maint.Buildings.Repair & Maintenance",Q1,,
15/04/2016,BUSINESS & CUSTOMER SERVICES,Capita Business Services Ltd,CONSULTANCY FEES," 150,000.00 ",Consultancy.Business.NA,Q1,,
11/05/2016,BUSINESS & CUSTOMER SERVICES,Bbh-lsl (Fundco 4) Ltd,PAYMENT TO PRIVATE SECTOR LANDLORDS (PSL)," 149,971.22 ",Housing Management.Letting Agents.NA,Q1,,
23/05/2016,"STRATEGY & COMMISSIONING - CHILDREN, DISABILITIES & PUBLIC HEALTH",Guys & St Thomas NHS Foundation Trust,PAYMENT TO HEALTH AUTHORITIES," 148,591.89 ",Healthcare.Public Health.NA,Q1,,
28/06/2016,CHILDREN'S SERVICES,Fostering for You,FOSTERING AGENCY PLACEMENTS - PRIVATE CONTRACTORS PAYMENT," 145,744.86 ",Social Community Care Supplies & Service.Children.Fostering,Q1,,
23/05/2016,ADULT SOCIAL CARE,Aspire Wellbeing,DAYCARE - PRIVATE CONTRACTORS PAYMENT," 144,740.00 ",Social Community Care Supplies & Service.Adult.Day Care,Q1,,
11/04/2016,STRATEGY & COMMISSIONING - HOUSING & COMMUNITIES (HRA),Cetra Housing Co-Operative Ltd,PRIVATE CONTRACTORS PAYMENT - OTHER," 137,559.25 ",Housing Management.Housing Association Services.NA,Q1,,
19/04/2016,FINANCE,Insight Investment,PROFESSIONAL SERVICES - GENERAL," 136,030.92 ",Financial Services.Investments.NA,Q1,,
22/06/2016,CAPITAL CC,Mears Ltd,FACILITIES MANAGEMENT," 136,028.32 ","Works - Construction, Repair & Maint.Buildings.Repair & Maintenance",Q1,,
08/06/2016,CORPORATE AFFAIRS,Zurich Municipal,INSURANCE (EXCL PREMISES AND TRANSPORT)," 134,055.22 ",Financial Services.Insurance.NA,Q1,,
18/05/2016,HOUSING MANAGEMENT SERVICES,General Dynamics Information Technology Ltd,ICT MAINTENANCE AND SUPPORT," 132,916.00 ",Information Communication Technology.Services.Application Service Provision,Q1,,
01/06/2016,CAPITAL CC,Apollo Property Services Group Ltd,"MAINTENANCE - EQUIPMENT, FURNITURE AND MATERIALS"," 130,999.92 ","Works - Construction, Repair & Maint.Buildings.Construction",Q1,,
22/04/2016,"REGENERATION, PLANNING & NEIGHBOURHOODS",Westminster City Council,CONSULTANCY FEES," 130,565.43 ",Consultancy.Business.NA,Q1,,
18/04/2016,HOUSING MANAGEMENT SERVICES,General Dynamics Information Technology Ltd,ICT MAINTENANCE AND SUPPORT," 129,237.00 ",Information Communication Technology.Services.Application Service Provision,Q1,,
18/05/2016,HOUSING MANAGEMENT SERVICES,General Dynamics Information Technology Ltd,ICT MAINTENANCE AND SUPPORT," 129,237.00 ",Information Communication Technology.Services.Application Service Provision,Q1,,
17/05/2016,CAPITAL CC,Mears Ltd,FACILITIES MANAGEMENT," 128,539.49 ","Works - Construction, Repair & Maint.Buildings.Repair & Maintenance",Q1,,
15/06/2016,CAPITAL CC,Sandwood Design & Build Ltd,"MAINTENANCE - EQUIPMENT, FURNITURE AND MATERIALS"," 127,070.00 ","Works - Construction, Repair & Maint.Buildings.Construction",Q1,,
11/04/2016,STRATEGY & COMMISSIONING - HOUSING & COMMUNITIES (HRA),Waltham Estate Resident Management Organisation,PRIVATE CONTRACTORS PAYMENT - OTHER," 127,033.25 ",Housing Management.Arms Length Management Organisations.NA,Q1,,
28/06/2016,CAPITAL CC,Apollo Property Services Group Ltd,"MAINTENANCE - EQUIPMENT, FURNITURE AND MATERIALS"," 125,798.18 ","Works - Construction, Repair & Maint.Buildings.Construction",Q1,,
30/06/2016,CAPITAL CC,ME Construction Ltd,FACILITIES MANAGEMENT," 125,718.49 ","Works - Construction, Repair & Maint.Buildings.Repair & Maintenance",Q1,,
27/06/2016,BUSINESS & CUSTOMER SERVICES,Vauxhall One,GENERAL OFFICE EXPENSES," 124,636.46 ",Financial Services.Council Tax & Business Rates.NA,Q1,,
12/04/2016,CAPITAL CC,Sandwood Design & Build Ltd,"MAINTENANCE - EQUIPMENT, FURNITURE AND MATERIALS"," 122,705.00 ","Works - Construction, Repair & Maint.Buildings.Construction",Q1,,
24/05/2016,CORPORATE AFFAIRS,Zurich Municipal,INSURANCE (EXCL PREMISES AND TRANSPORT)," 121,560.51 ",Financial Services.Insurance.NA,Q1,,
11/04/2016,CAPITAL CC,Muse Developments Ltd,"MAINTENANCE - EQUIPMENT, FURNITURE AND MATERIALS"," 119,677.00 ","Works - Construction, Repair & Maint.Architect.NA",Q1,,
11/04/2016,STRATEGY & COMMISSIONING - HOUSING & COMMUNITIES (HRA),Cottington Close TMC,PRIVATE CONTRACTORS PAYMENT - OTHER," 116,404.75 ",Housing Management.Arms Length Management Organisations.NA,Q1,,
08/04/2016,"REGENERATION, PLANNING & NEIGHBOURHOODS",Wandsworth Borough Council,STAFF DEVELOPMENT AND TRAINING," 115,947.00 ",Human Resources.Training & Conferences.Training,Q1,,
28/04/2016,CAPITAL CC,Mulalley & Co Ltd,FACILITIES MANAGEMENT," 112,929.46 ","Works - Construction, Repair & Maint.Buildings.Repair & Maintenance",Q1,,
20/04/2016,"STRATEGY & COMMISSIONING - CHILDREN, DISABILITIES & PUBLIC HEALTH",Kings College Hospital NHS Foundation Trust,PAYMENT TO HEALTH AUTHORITIES," 112,846.00 ",Healthcare.Public Health.NA,Q1,,
21/04/2016,"REGENERATION, PLANNING & NEIGHBOURHOODS",NSL Services Group Ltd,CONSULTANCY FEES," 112,344.47 ",Consultancy.Business.NA,Q1,,
16/06/2016,"NEIGHBOURHOODS, ENVIRONMENT & EMPLOYMENT",NSL Services Group Ltd,CONSULTANCY FEES," 112,344.47 ",Consultancy.Business.NA,Q1,,
08/04/2016,"REGENERATION, PLANNING & NEIGHBOURHOODS",Wandsworth Borough Council,STAFF DEVELOPMENT AND TRAINING," 111,845.63 ",Human Resources.Training & Conferences.Training,Q1,,
27/06/2016,"STRATEGIC HOUSING, REGENERATION & COMMUNITIES (HRA)",Karakusevic Carson Architects,"MAINTENANCE - EQUIPMENT, FURNITURE AND MATERIALS"," 110,850.00 ","Works - Construction, Repair & Maint.Architect.NA",Q1,,
01/06/2016,CAPITAL CC,Apollo Property Services Group Ltd,"MAINTENANCE - EQUIPMENT, FURNITURE AND MATERIALS"," 109,842.80 ","Works - Construction, Repair & Maint.Buildings.Construction",Q1,,
28/04/2016,CAPITAL CC,Oco Ltd_d,BUILDING ALTERATIONS AND MATERIALS," 109,652.96 ","Works - Construction, Repair & Maint.Buildings.Repair & Maintenance",Q1,,
19/04/2016,CHILDREN'S SERVICES,Tadley Horizon School,RESIDENTIAL PLACEMENTS - PRIVATE CONTRACTORS PAYMENT," 108,586.29 ",Education.School Services.NA,Q1,,
17/05/2016,"REGENERATION, PLANNING & NEIGHBOURHOODS",City Suburban Tree Surgeons Ltd,GROUNDS MAINTENANCE," 108,422.66 ",Horticultural.Tree Trimming.NA,Q1,,
11/04/2016,CAPITAL CC,Muse Developments Ltd,"MAINTENANCE - EQUIPMENT, FURNITURE AND MATERIALS"," 107,888.00 ","Works - Construction, Repair & Maint.Architect.NA",Q1,,
22/04/2016,CAPITAL CC,Mulalley & Co Ltd,FACILITIES MANAGEMENT," 107,437.78 ","Works - Construction, Repair & Maint.Buildings.Repair & Maintenance",Q1,,
22/06/2016,BUSINESS & CUSTOMER SERVICES,Lancedrum Ltd,RENTS PAYABLE," 106,201.77 ",Financial Services.Rents.NA,Q1,,
13/06/2016,ADULT SOCIAL CARE,MiHomecare Ltd,DOMICILIARY CARE - THIRD PARTY," 105,964.36 ",Social Community Care Supplies & Service.Adult.Domiciliary Care,Q1,,
17/05/2016,BUSINESS & CUSTOMER SERVICES,Cofely Workplace Ltd,SECURITY SERVICES (EXCLUDING PREMISES)," 105,892.46 ",Facilities & Management Services.Security.NA,Q1,,
17/05/2016,"REGENERATION, PLANNING & NEIGHBOURHOODS",F M Conway Ltd_d,"MAINTENANCE - EQUIPMENT, FURNITURE AND MATERIALS"," 103,224.90 ","Works - Construction, Repair & Maint.Roads.Repair & Maintenance",Q1,,
17/05/2016,BUSINESS & CUSTOMER SERVICES,Cofely Workplace Ltd,SECURITY SERVICES (EXCLUDING PREMISES)," 102,997.20 ",Facilities & Management Services.Security.NA,Q1,,
30/06/2016,BUSINESS & CUSTOMER SERVICES,Cofely Workplace Ltd,SECURITY SERVICES (EXCLUDING PREMISES)," 102,997.20 ",Facilities & Management Services.Security.NA,Q1,,
27/04/2016,CAPITAL CC,Mears Ltd,BUILDING ALTERATIONS AND MATERIALS," 102,880.32 ","Works - Construction, Repair & Maint.Buildings.Repair & Maintenance",Q1,,
23/06/2016,CAPITAL CC,Apollo Property Services Group Ltd,"MAINTENANCE - EQUIPMENT, FURNITURE AND MATERIALS"," 101,963.99 ","Works - Construction, Repair & Maint.Buildings.Construction",Q1,,
28/06/2016,CAPITAL CC,Apollo Property Services Group Ltd,"MAINTENANCE - EQUIPMENT, FURNITURE AND MATERIALS"," 101,701.45 ","Works - Construction, Repair & Maint.Buildings.Construction",Q1,,
28/04/2016,CAPITAL CC,Oco Ltd_d,BUILDING ALTERATIONS AND MATERIALS," 100,341.33 ","Works - Construction, Repair & Maint.Buildings.Repair & Maintenance",Q1,,
15/06/2016,"STRATEGY & COMMISSIONING - CHILDREN, DISABILITIES & PUBLIC HEALTH",Kings College Hospital NHS Foundation Trust,PAYMENT TO HEALTH AUTHORITIES," 100,285.00 ",Healthcare.Public Health.NA,Q1,,
15/06/2016,"STRATEGY & COMMISSIONING - CHILDREN, DISABILITIES & PUBLIC HEALTH",Kings College Hospital NHS Foundation Trust,PAYMENT TO HEALTH AUTHORITIES," 100,285.00 ",Healthcare.Public Health.NA,Q1,,
01/04/2016,BUSINESS & CUSTOMER SERVICES,Cofely Workplace Ltd,SECURITY SERVICES (EXCLUDING PREMISES)," 100,101.94 ",Facilities & Management Services.Security.NA,Q1,,
28/06/2016,CHILDREN'S SERVICES,Swanstaff Recruitment Ltd,STAFF RECRUITMENT COSTS," 100,000.00 ",Human Resources.Recruitment & Assessment.NA,Q1,,
09/06/2016,"REGENERATION, PLANNING & NEIGHBOURHOODS",Cycle Confident Ltd,ARTS AND LEISURE COSTS," 99,993.00 ",Arts & Leisure Services.Sport & Fitness.NA,Q1,,
27/04/2016,CAPITAL CC,John Rowan and Partners LLP,LEGAL FEES," 99,990.45 ",Legal Services.General Support.NA,Q1,,
26/05/2016,"STRATEGY & COMMISSIONING - CHILDREN, DISABILITIES & PUBLIC HEALTH",University College London,STAFF DEVELOPMENT AND TRAINING," 99,912.00 ",Human Resources.Training & Conferences.Training,Q1,,
30/06/2016,BUSINESS & CUSTOMER SERVICES,Cofely Workplace Ltd,SECURITY SERVICES (EXCLUDING PREMISES)," 99,243.49 ",Facilities & Management Services.Security.NA,Q1,,
23/05/2016,BUSINESS & CUSTOMER SERVICES,Clapham Business Improvement District,GENERAL OFFICE EXPENSES," 99,165.59 ",Consultancy.Business.NA,Q1,,
20/06/2016,STRATEGY & COMMISSIONING - CHILDREN,Young Lambeth Co-operative_d,PAYMENTS TO VOLUNTARY SECTOR," 99,000.00 ",Education.Educational Placements.NA,Q1,,
21/06/2016,CAPITAL CC,Mears Ltd,FACILITIES MANAGEMENT," 98,855.88 ","Works - Construction, Repair & Maint.Buildings.Repair & Maintenance",Q1,,
29/04/2016,CAPITAL CC,ISG Construction Ltd,"MAINTENANCE - EQUIPMENT, FURNITURE AND MATERIALS"," 96,760.06 ","Works - Construction, Repair & Maint.Buildings.Construction",Q1,,
12/05/2016,CAPITAL CC,Westcotec Ltd,"PURCHASE - EQUIPMENT, FURNITURE AND MATERIALS"," 96,750.00 ",Street & Traffic Management.Traffic Control.NA,Q1,,
17/06/2016,CAPITAL CC,ISG Construction Ltd,"MAINTENANCE - EQUIPMENT, FURNITURE AND MATERIALS"," 96,615.28 ","Works - Construction, Repair & Maint.Buildings.Construction",Q1,,
02/06/2016,CAPITAL CC,Veolia ES (UK) Ltd,OPEN SPACES WORKS," 96,488.00 ","Works - Construction, Repair & Maint.Open Spaces.Repair & Maintenance",Q1,,
05/05/2016,CAPITAL CC,Oco Ltd_d,BUILDING ALTERATIONS AND MATERIALS," 96,331.76 ",Building Construction Materials.Heating & Air Conditioning.NA,Q1,,
03/05/2016,CHILDREN'S SERVICES,Cambian SignPost Ltd,RESIDENTIAL PLACEMENTS - PRIVATE CONTRACTORS PAYMENT," 96,147.95 ",Social Community Care Supplies & Service.Children.Residential Care,Q1,,
28/06/2016,"NEIGHBOURHOODS, ENVIRONMENT & EMPLOYMENT",F M Conway Ltd_d,"MAINTENANCE - EQUIPMENT, FURNITURE AND MATERIALS"," 95,781.29 ","Works - Construction, Repair & Maint.Roads.Repair & Maintenance",Q1,,
15/06/2016,BUSINESS TRANSFORMATION,Specialist Computer Centers Plc,ICT HARDWARE," 95,602.00 ",Information Communication Technology.Hardware.NA,Q1,,
14/04/2016,CAPITAL CC,Chigwell Construction (London) Ltd,"MAINTENANCE - EQUIPMENT, FURNITURE AND MATERIALS"," 95,403.75 ","Works - Construction, Repair & Maint.Buildings.Construction",Q1,,
09/06/2016,"REGENERATION, PLANNING & NEIGHBOURHOODS",BT Redcare,SECURITY SERVICES (EXCLUDING PREMISES)," 93,984.57 ",Facilities & Management Services.Security.NA,Q1,,
11/04/2016,CAPITAL CC,Oco Ltd_d,BUILDING ALTERATIONS AND MATERIALS," 93,244.22 ",Building Construction Materials.Heating & Air Conditioning.NA,Q1,,
19/05/2016,BUSINESS TRANSFORMATION,British Telecommunications plc,LAND LINE TELEPHONE COSTS," 91,713.71 ",Information Communication Technology.Telecommunications.NA,Q1,,
11/05/2016,CAPITAL CC,Veolia ES (UK) Ltd,REFUSE COLLECTION," 91,708.36 ",Environmental Services.Waste Management.Waste Collection,Q1,,
27/05/2016,BUSINESS TRANSFORMATION,Virgin Media Business,LAND LINE TELEPHONE COSTS," 91,500.02 ",Information Communication Technology.Telecommunications.NA,Q1,,
25/05/2016,ADULT SOCIAL CARE,Southside Partnership,RESIDENTIAL CARE INCOME," 91,086.34 ",Social Community Care Supplies & Service.Adult.Residential Care,Q1,,
27/04/2016,CAPITAL CC,Oco Ltd_d,BUILDING ALTERATIONS AND MATERIALS," 91,018.30 ",Building Construction Materials.Heating & Air Conditioning.NA,Q1,,
06/06/2016,ADULT SOCIAL CARE,CT Plus (hackney),DIRECT TRANSPORT," 90,830.00 ",Public Transport.Passenger Transport.NA,Q1,,
06/06/2016,ADULT SOCIAL CARE,CT Plus (hackney),DIRECT TRANSPORT," 90,830.00 ",Public Transport.Passenger Transport.NA,Q1,,
02/06/2016,CAPITAL CC,Jerram Falkus Construction Ltd,"MAINTENANCE - EQUIPMENT, FURNITURE AND MATERIALS"," 90,087.00 ","Works - Construction, Repair & Maint.Buildings.Construction",Q1,,
11/04/2016,CAPITAL CC,Cyclehoop Ltd,"PURCHASE - EQUIPMENT, FURNITURE AND MATERIALS"," 89,250.00 ",Highway Equipment & Materials.Street Furniture & Ironworks.NA,Q1,,
18/05/2016,CAPITAL CC,Muse Developments Ltd,"MAINTENANCE - EQUIPMENT, FURNITURE AND MATERIALS"," 88,916.00 ","Works - Construction, Repair & Maint.Architect.NA",Q1,,
21/04/2016,CAPITAL CC,Ethelred Nursery School and Children's Centre,CONSULTANCY FEES," 88,858.57 ",Education.School Services.NA,Q1,,
13/04/2016,BUSINESS & CUSTOMER SERVICES,Cofely Workplace Ltd,SECURITY SERVICES (EXCLUDING PREMISES)," 88,598.09 ",Facilities & Management Services.Security.NA,Q1,,
14/04/2016,BUSINESS TRANSFORMATION,Virgin Media Business,ICT MAINTENANCE AND SUPPORT," 88,100.00 ",Information Communication Technology.Services.NA,Q1,,
13/04/2016,BUSINESS & CUSTOMER SERVICES,Cofely Workplace Ltd,FACILITIES MANAGEMENT," 87,860.72 ","Works - Construction, Repair & Maint.Buildings.Repair & Maintenance",Q1,,
10/05/2016,HOUSING MANAGEMENT SERVICES,Oco Ltd_d,RESPONSIVE REPAIRS - MECHANICAL AND ELECTRICAL," 87,412.42 ",Building Construction Materials.Heating & Air Conditioning.NA,Q1,,
15/06/2016,HOUSING MANAGEMENT SERVICES,Oco Ltd_d,RESPONSIVE REPAIRS - MECHANICAL AND ELECTRICAL," 87,412.42 ",Building Construction Materials.Heating & Air Conditioning.NA,Q1,,
24/05/2016,STRATEGY & COMMISSIONING - HOUSING & COMMUNITIES (HRA),Regenter Myatts Field North Ltd,"MAINTENANCE - EQUIPMENT, FURNITURE AND MATERIALS"," 87,355.82 ","Works - Construction, Repair & Maint.Buildings.Construction",Q1,,
01/04/2016,"STRATEGY & COMMISSIONING - CHILDREN, DISABILITIES & PUBLIC HEALTH",Women In Prison,ASYLUM SEEKERS - PRIVATE CONTRACTORS PAYMENT," 86,878.00 ",Social Community Care Supplies & Service.Adult.Asylum Seekers Services,Q1,,
06/06/2016,CAPITAL CC,Focus Education (Lambeth) Ltd,PROFESSIONAL SERVICES - GENERAL," 86,815.52 ",Education.School Services.NA,Q1,,
09/05/2016,CAPITAL CC,Bolt & Heeks Ltd,"MAINTENANCE - EQUIPMENT, FURNITURE AND MATERIALS"," 86,756.09 ","Works - Construction, Repair & Maint.Buildings.Construction",Q1,,
09/05/2016,CAPITAL CC,Bolt & Heeks Ltd,"MAINTENANCE - EQUIPMENT, FURNITURE AND MATERIALS"," 86,756.09 ","Works - Construction, Repair & Maint.Buildings.Construction",Q1,,
02/06/2016,CAPITAL CC,Mae LLP Architects,"MAINTENANCE - EQUIPMENT, FURNITURE AND MATERIALS"," 86,675.00 ","Works - Construction, Repair & Maint.Architect.NA",Q1,,
13/05/2016,FINANCE,EDF Energy Plc,ELECTRICITY," 86,575.35 ",Utilities.Electricity.NA,Q1,,
04/04/2016,"REGENERATION, PLANNING & NEIGHBOURHOODS",Westminster City Council,CONSULTANCY FEES," 85,193.00 ",Consultancy.Business.NA,Q1,,
31/05/2016,BUSINESS TRANSFORMATION,Swiss Post Solutions Ltd,PRINTING," 83,819.36 ",Facilities & Management Services.Printing.NA,Q1,,
04/05/2016,CAPITAL CC,Jerram Falkus Construction Ltd,"MAINTENANCE - EQUIPMENT, FURNITURE AND MATERIALS"," 82,251.00 ","Works - Construction, Repair & Maint.Buildings.Construction",Q1,,
06/06/2016,CAPITAL CC,Focus Education (Lambeth) Ltd,PROFESSIONAL SERVICES - GENERAL," 82,023.60 ",Education.School Services.NA,Q1,,
18/05/2016,CAPITAL CC,Mitie Property Services (UK) Ltd_d,"MAINTENANCE - EQUIPMENT, FURNITURE AND MATERIALS"," 82,011.99 ","Works - Construction, Repair & Maint.Buildings.Construction",Q1,,
18/04/2016,"STRATEGY & COMMISSIONING - CHILDREN, DISABILITIES & PUBLIC HEALTH",Kings Healthcare NHS Trust,PAYMENT TO HEALTH AUTHORITIES," 81,400.00 ",Healthcare.Public Health.NA,Q1,,
26/05/2016,"STRATEGY & COMMISSIONING - CHILDREN, DISABILITIES & PUBLIC HEALTH",Rosendale Primary School,PRIVATE CONTRACTORS PAYMENT - OTHER," 81,145.50 ",Education.School Services.NA,Q1,,
25/05/2016,ADULT SOCIAL CARE,Queens Oak Care Centre,RESIDENTIAL PLACEMENTS - PRIVATE CONTRACTORS PAYMENT," 80,856.86 ",Social Community Care Supplies & Service.Adult.Residential Care,Q1,,
21/06/2016,CAPITAL CC,Oco Ltd_d,BUILDING ALTERATIONS AND MATERIALS," 79,826.93 ",Building Construction Materials.Heating & Air Conditioning.NA,Q1,,
10/05/2016,HOUSING MANAGEMENT SERVICES,T Brown Group Ltd_d,RESPONSIVE REPAIRS - MECHANICAL AND ELECTRICAL," 79,703.81 ",Building Construction Materials.Heating & Air Conditioning.NA,Q1,,
15/06/2016,HOUSING MANAGEMENT SERVICES,T Brown Group Ltd_d,RESPONSIVE REPAIRS - MECHANICAL AND ELECTRICAL," 79,703.81 ",Building Construction Materials.Heating & Air Conditioning.NA,Q1,,
17/05/2016,BUSINESS & CUSTOMER SERVICES,Cofely Workplace Ltd,FACILITIES MANAGEMENT," 79,553.77 ","Works - Construction, Repair & Maint.Buildings.Repair & Maintenance",Q1,,
14/04/2016,BUSINESS & CUSTOMER SERVICES,Clapham Family Practice,PAYMENT TO HEALTH AUTHORITIES," 79,360.27 ",Healthcare.Public Health.NA,Q1,,
11/04/2016,CAPITAL CC,Cyclehoop Ltd,"PURCHASE - EQUIPMENT, FURNITURE AND MATERIALS"," 78,750.00 ",Highway Equipment & Materials.Street Furniture & Ironworks.NA,Q1,,
28/06/2016,ADULT SOCIAL CARE,Queens Oak Care Centre,RESIDENTIAL PLACEMENTS - PRIVATE CONTRACTORS PAYMENT," 78,248.57 ",Social Community Care Supplies & Service.Adult.Residential Care,Q1,,
27/04/2016,ADULT SOCIAL CARE,Queens Oak Care Centre,RESIDENTIAL PLACEMENTS - PRIVATE CONTRACTORS PAYMENT," 78,248.57 ",Social Community Care Supplies & Service.Adult.Residential Care,Q1,,
11/04/2016,STRATEGY & COMMISSIONING - HOUSING & COMMUNITIES (HRA),Holland Rise & Whitebeam Close TMO,PRIVATE CONTRACTORS PAYMENT - OTHER," 77,467.50 ",Housing Management.Arms Length Management Organisations.NA,Q1,,
25/05/2016,CAPITAL CC,ME Construction Ltd,FACILITIES MANAGEMENT," 76,549.85 ","Works - Construction, Repair & Maint.Buildings.Repair & Maintenance",Q1,,
04/04/2016,"SENIOR MANAGEMENT - CHILDREN, ADULTS AND HEALTH",NHS Lambeth Clinical Commissioning Group,PAYMENT TO HEALTH AUTHORITIES," 76,373.39 ",Healthcare.Public Health.NA,Q1,,
02/06/2016,CAPITAL CC,Veolia ES (UK) Ltd,REFUSE COLLECTION," 75,622.82 ",Environmental Services.Waste Management.Waste Collection,Q1,,
22/04/2016,CAPITAL CC,ISG Construction Ltd,BUILDING ALTERATIONS AND MATERIALS," 75,000.00 ","Works - Construction, Repair & Maint.Buildings.Construction",Q1,,
17/05/2016,"REGENERATION, PLANNING & NEIGHBOURHOODS",F M Conway Ltd_d,"MAINTENANCE - EQUIPMENT, FURNITURE AND MATERIALS"," 74,909.42 ","Works - Construction, Repair & Maint.Roads.Repair & Maintenance",Q1,,
18/05/2016,"STRATEGY & COMMISSIONING - CHILDREN, DISABILITIES & PUBLIC HEALTH",Riverside ECHG,PRIVATE CONTRACTORS PAYMENT - OTHER," 74,451.93 ",Social Community Care Supplies & Service.Adult.NA,Q1,,
08/04/2016,"REGENERATION, PLANNING & NEIGHBOURHOODS (HRA)",Hansen Palomares Solicitors,LEGAL FEES," 74,000.00 ",Social Community Care Supplies & Service.Adult.Advice & Counselling Services,Q1,,
11/04/2016,"REGENERATION, PLANNING & NEIGHBOURHOODS (HRA)",Hansen Palomares Solicitors,LEGAL FEES," 74,000.00 ",Social Community Care Supplies & Service.Adult.Advice & Counselling Services,Q1,,
26/04/2016,BUSINESS TRANSFORMATION,Canon (UK) Ltd,PHOTOCOPYING," 73,846.71 ",Facilities & Management Services.Reprographics.NA,Q1,,
03/06/2016,MAJOR CAPITAL PROGRAMMES (HRA),Airey Miller Partnership LLP,CONSULTANCY FEES," 73,800.00 ","Works - Construction, Repair & Maint.Consultancy.NA",Q1,,
01/04/2016,BUSINESS & CUSTOMER SERVICES,Cofely Workplace Ltd,CLEANING SERVICES," 73,001.61 ",Cleaning & Janitorial.Cleaning Service.Internal,Q1,,
16/05/2016,BUSINESS & CUSTOMER SERVICES,Cofely Workplace Ltd,CLEANING SERVICES," 73,001.61 ",Cleaning & Janitorial.Cleaning Service.Internal,Q1,,
17/05/2016,BUSINESS & CUSTOMER SERVICES,Cofely Workplace Ltd,CLEANING SERVICES," 73,001.61 ",Cleaning & Janitorial.Cleaning Service.Internal,Q1,,
30/06/2016,BUSINESS & CUSTOMER SERVICES,Cofely Workplace Ltd,CLEANING SERVICES," 73,001.61 ",Cleaning & Janitorial.Cleaning Service.Internal,Q1,,
29/04/2016,ADULT SOCIAL CARE,MiHomecare Ltd,DOMICILIARY CARE - THIRD PARTY," 72,628.54 ",Social Community Care Supplies & Service.Adult.Domiciliary Care,Q1,,
03/06/2016,MAJOR CAPITAL PROGRAMMES (HRA),Airey Miller Partnership LLP,CONSULTANCY FEES," 70,000.00 ","Works - Construction, Repair & Maint.Consultancy.NA",Q1,,
26/04/2016,"STRATEGY & COMMISSIONING - CHILDREN, DISABILITIES & PUBLIC HEALTH",Saint Mungo Association,STREET POPULATION SERVICES - PRIVATE CONTRACTORS PAYMENT," 68,193.17 ","Social Community Care Supplies & Service.Adult.Temporary Accommodation, Hostels",Q1,,
03/05/2016,CHILDREN'S SERVICES,London Borough of Wandsworth_d,RESIDENTIAL PLACEMENTS - PRIVATE CONTRACTORS PAYMENT," 67,960.16 ",Social Community Care Supplies & Service.Children.Residential Care,Q1,,
26/04/2016,"STRATEGY & COMMISSIONING - CHILDREN, DISABILITIES & PUBLIC HEALTH",Refuge,FLOATING SUPPORT SERVICES - PRIVATE CONTRACTORS PAYMENT," 67,317.12 ",Social Community Care Supplies & Service.Adult.Advice & Counselling Services,Q1,,
25/05/2016,ADULT SOCIAL CARE,Limetree Healthcare Ltd,RESIDENTIAL PLACEMENTS - PRIVATE CONTRACTORS PAYMENT," 66,588.00 ",Social Community Care Supplies & Service.Adult.Residential Care,Q1,,
03/05/2016,CHILDREN'S SERVICES,Cambian SignPost Ltd,RESIDENTIAL PLACEMENTS - PRIVATE CONTRACTORS PAYMENT," 66,371.43 ",Social Community Care Supplies & Service.Children.Residential Care,Q1,,
09/05/2016,CORPORATE ITEMS,London Councils,MEMBERSHIP AND SUBSCRIPTIONS," 65,741.00 ",Financial Services.Subscriptions.NA,Q1,,
26/04/2016,"STRATEGY & COMMISSIONING - CHILDREN, DISABILITIES & PUBLIC HEALTH",Thames Reach,PRIVATE CONTRACTORS PAYMENT - OTHER," 65,303.66 ",Social Community Care Supplies & Service.Adult.Sheltered Accommodation,Q1,,
23/05/2016,EDUCATION & LEARNING,Muntham House School Ltd,PROFESSIONAL SERVICES - GENERAL," 65,123.00 ",Education.School Services.NA,Q1,,
11/04/2016,CORPORATE AFFAIRS,Charles Taylor Services Ltd,INSURANCE (EXCL PREMISES AND TRANSPORT)," 64,908.39 ",Legal Services.General Support.NA,Q1,,
22/06/2016,ADULT SOCIAL CARE,Lambeth Mencap_d,FLOATING SUPPORT SERVICES - PRIVATE CONTRACTORS PAYMENT," 64,905.09 ",Social Community Care Supplies & Service.Adult.Domiciliary Care,Q1,,
25/05/2016,HOUSING MANAGEMENT SERVICES,Mitie Property Services (UK) Ltd_d,RESPONSIVE REPAIRS - MECHANICAL AND ELECTRICAL," 64,739.69 ","Works - Construction, Repair & Maint.Buildings.Construction",Q1,,
25/05/2016,HOUSING MANAGEMENT SERVICES,Mitie Property Services (UK) Ltd_d,RESPONSIVE REPAIRS - MECHANICAL AND ELECTRICAL," 64,739.69 ","Works - Construction, Repair & Maint.Buildings.Construction",Q1,,
28/06/2016,ADULT SOCIAL CARE,Limetree Healthcare Ltd,RESIDENTIAL PLACEMENTS - PRIVATE CONTRACTORS PAYMENT," 64,440.00 ",Social Community Care Supplies & Service.Adult.Residential Care,Q1,,
27/04/2016,ADULT SOCIAL CARE,Limetree Healthcare Ltd,RESIDENTIAL PLACEMENTS - PRIVATE CONTRACTORS PAYMENT," 64,440.00 ",Social Community Care Supplies & Service.Adult.Residential Care,Q1,,
11/04/2016,STRATEGY & COMMISSIONING - HOUSING & COMMUNITIES (HRA),Wellington Mills Housing TMC,PRIVATE CONTRACTORS PAYMENT - OTHER," 64,339.50 ",Housing Management.Arms Length Management Organisations.NA,Q1,,
26/04/2016,"STRATEGY & COMMISSIONING - CHILDREN, DISABILITIES & PUBLIC HEALTH",Single Homeless Project,FLOATING SUPPORT SERVICES - PRIVATE CONTRACTORS PAYMENT," 64,109.59 ",Social Community Care Supplies & Service.Adult.Sheltered Accommodation,Q1,,
29/04/2016,"REGENERATION, PLANNING & NEIGHBOURHOODS",Farthest Gate Ltd,ICT SOFTWARE," 63,950.00 ",Information Communication Technology.Software.NA,Q1,,
13/04/2016,CAPITAL CC,Apollo Property Services Group Ltd,"MAINTENANCE - EQUIPMENT, FURNITURE AND MATERIALS"," 63,741.61 ","Works - Construction, Repair & Maint.Buildings.Construction",Q1,,
19/05/2016,"REGENERATION, PLANNING & NEIGHBOURHOODS",London Councils,CONSULTANCY FEES," 62,965.00 ",Consultancy.Strategic Planning.NA,Q1,,
29/04/2016,CAPITAL CC,T Brown Group Ltd_d,BUILDING ALTERATIONS AND MATERIALS," 62,574.18 ",Building Construction Materials.Heating & Air Conditioning.NA,Q1,,
19/05/2016,CAPITAL CC,ME Construction Ltd,FACILITIES MANAGEMENT," 62,377.52 ","Works - Construction, Repair & Maint.Buildings.Repair & Maintenance",Q1,,
22/04/2016,CAPITAL CC,ME Construction Ltd,FACILITIES MANAGEMENT," 62,332.81 ","Works - Construction, Repair & Maint.Buildings.Repair & Maintenance",Q1,,
18/05/2016,CAPITAL CC,Underpin & Make Good (Contracting) Ltd_d,"MAINTENANCE - EQUIPMENT, FURNITURE AND MATERIALS"," 61,489.18 ","Works - Construction, Repair & Maint.Buildings.NA",Q1,,
22/06/2016,CAPITAL CC,Mears Ltd,FACILITIES MANAGEMENT," 61,479.46 ","Works - Construction, Repair & Maint.Buildings.Repair & Maintenance",Q1,,
25/05/2016,CAPITAL CC,ME Construction Ltd,FACILITIES MANAGEMENT," 60,499.38 ","Works - Construction, Repair & Maint.Buildings.Repair & Maintenance",Q1,,
16/05/2016,CAPITAL CC,Mears Ltd,FACILITIES MANAGEMENT," 60,232.67 ","Works - Construction, Repair & Maint.Buildings.Repair & Maintenance",Q1,,
27/05/2016,"STRATEGY & COMMISSIONING - CHILDREN, DISABILITIES & PUBLIC HEALTH",Imperial College Healthcare NHS Trust,PAYMENT TO HEALTH AUTHORITIES," 60,181.00 ",Healthcare.Public Health.NA,Q1,,
23/06/2016,CAPITAL CC,Lamya Construction Ltd,FACILITIES MANAGEMENT," 59,785.00 ","Works - Construction, Repair & Maint.Buildings.Repair & Maintenance",Q1,,
15/04/2016,FINANCE,Lambert Smith Hampton Group Ltd,CONSULTANCY FEES," 59,715.41 ",Consultancy.Technical & Feasibility.NA,Q1,,
28/06/2016,"NEIGHBOURHOODS, ENVIRONMENT & EMPLOYMENT",F M Conway Ltd_d,"MAINTENANCE - EQUIPMENT, FURNITURE AND MATERIALS"," 59,553.27 ","Works - Construction, Repair & Maint.Roads.Repair & Maintenance",Q1,,
24/06/2016,"PLANNING, TRANSPORT & DEVELOPMENT",City of London,BED & BREAKFAST - PRIVATE CONTRACTORS PAYMENT," 59,375.00 ","Social Community Care Supplies & Service.Adult.Temporary Accommodation, Short Stay",Q1,,
06/04/2016,BUSINESS TRANSFORMATION,Oracle Corporation UK Ltd,ICT SOFTWARE," 58,728.86 ",Information Communication Technology.Software.NA,Q1,,
14/06/2016,CHILDREN'S SERVICES,Potton Homes Ltd,RESIDENTIAL PLACEMENTS - PRIVATE CONTRACTORS PAYMENT," 58,336.28 ",Social Community Care Supplies & Service.Children.Residential Care,Q1,,
01/04/2016,BUSINESS & CUSTOMER SERVICES,Cofely Workplace Ltd,FACILITIES MANAGEMENT," 58,266.26 ","Works - Construction, Repair & Maint.Buildings.Repair & Maintenance",Q1,,
01/04/2016,CAPITAL CC,ME Construction Ltd,FACILITIES MANAGEMENT," 57,401.22 ","Works - Construction, Repair & Maint.Buildings.Repair & Maintenance",Q1,,
13/06/2016,BUSINESS TRANSFORMATION,Telefonica (UK) Ltd,ICT MAINTENANCE AND SUPPORT," 56,578.95 ",Information Communication Technology.Services.NA,Q1,,
01/04/2016,"REGENERATION, PLANNING & NEIGHBOURHOODS",London Councils,CONSULTANCY FEES," 56,259.00 ",Consultancy.Strategic Planning.NA,Q1,,
01/04/2016,BUSINESS & CUSTOMER SERVICES,Cofely Workplace Ltd,FACILITIES MANAGEMENT," 56,026.53 ","Works - Construction, Repair & Maint.Buildings.Repair & Maintenance",Q1,,
13/04/2016,BUSINESS & CUSTOMER SERVICES,Cofely Workplace Ltd,FACILITIES MANAGEMENT," 56,026.53 ","Works - Construction, Repair & Maint.Buildings.Repair & Maintenance",Q1,,
16/05/2016,BUSINESS & CUSTOMER SERVICES,Cofely Workplace Ltd,FACILITIES MANAGEMENT," 56,026.53 ","Works - Construction, Repair & Maint.Buildings.Repair & Maintenance",Q1,,
17/05/2016,BUSINESS & CUSTOMER SERVICES,Cofely Workplace Ltd,FACILITIES MANAGEMENT," 56,026.53 ","Works - Construction, Repair & Maint.Buildings.Repair & Maintenance",Q1,,
30/06/2016,BUSINESS & CUSTOMER SERVICES,Cofely Workplace Ltd,FACILITIES MANAGEMENT," 56,026.53 ","Works - Construction, Repair & Maint.Buildings.Repair & Maintenance",Q1,,
05/04/2016,EDUCATION & LEARNING,Cambian Autism Services Ltd,PROFESSIONAL SERVICES - GENERAL," 55,967.28 ",Education.School Services.NA,Q1,,
14/04/2016,"REGENERATION, PLANNING & NEIGHBOURHOODS",London Councils,CONSULTANCY FEES," 55,965.00 ",Consultancy.Strategic Planning.NA,Q1,,
25/05/2016,CHILDREN'S SERVICES,Daybreak Family Group Conferences,PRIVATE CONTRACTORS PAYMENT - OTHER," 55,750.00 ",Social Community Care Supplies & Service.Children.NA,Q1,,
10/06/2016,"STRATEGY & COMMISSIONING - CHILDREN, DISABILITIES & PUBLIC HEALTH",Kings College Hospital NHS Foundation Trust,PAYMENT TO HEALTH AUTHORITIES," 54,983.00 ",Healthcare.Public Health.NA,Q1,,
29/06/2016,PUBLIC HEALTH,Kings College Hospital NHS Foundation Trust,PAYMENT TO HEALTH AUTHORITIES," 54,982.00 ",Healthcare.Public Health.NA,Q1,,
22/04/2016,"STRATEGY & COMMISSIONING - CHILDREN, DISABILITIES & PUBLIC HEALTH",Kings College Hospital NHS Foundation Trust,PAYMENT TO HEALTH AUTHORITIES," 54,982.00 ",Healthcare.Public Health.NA,Q1,,
22/04/2016,"STRATEGY & COMMISSIONING - CHILDREN, DISABILITIES & PUBLIC HEALTH",Kings College Hospital NHS Foundation Trust,PAYMENT TO HEALTH AUTHORITIES," 54,982.00 ",Healthcare.Public Health.NA,Q1,,
22/04/2016,"STRATEGY & COMMISSIONING - CHILDREN, DISABILITIES & PUBLIC HEALTH",Kings College Hospital NHS Foundation Trust,PAYMENT TO HEALTH AUTHORITIES," 54,982.00 ",Healthcare.Public Health.NA,Q1,,
10/06/2016,"STRATEGY & COMMISSIONING - CHILDREN, DISABILITIES & PUBLIC HEALTH",Kings College Hospital NHS Foundation Trust,PAYMENT TO HEALTH AUTHORITIES," 54,982.00 ",Healthcare.Public Health.NA,Q1,,
18/04/2016,CAPITAL CC,Baily Garner LLP,FACILITIES MANAGEMENT," 54,840.01 ","Works - Construction, Repair & Maint.Buildings.Repair & Maintenance",Q1,,
14/06/2016,FINANCE,TLT LLP,LEGAL FEES," 54,580.00 ",Legal Services.Advocacy.NA,Q1,,
04/05/2016,CAPITAL CC,Muse Developments Ltd,"MAINTENANCE - EQUIPMENT, FURNITURE AND MATERIALS"," 54,454.00 ","Works - Construction, Repair & Maint.Architect.NA",Q1,,
27/06/2016,ADULT SOCIAL CARE,TOPAZ Social Work CIC,PRIVATE CONTRACTORS PAYMENT - OTHER," 54,354.25 ",Social Community Care Supplies & Service.Adult.NA,Q1,,
14/04/2016,ADULT SOCIAL CARE,TOPAZ Social Work CIC,PRIVATE CONTRACTORS PAYMENT - OTHER," 54,354.25 ",Social Community Care Supplies & Service.Adult.NA,Q1,,
13/06/2016,"REGENERATION, PLANNING & NEIGHBOURHOODS",F M Conway Ltd_d,"MAINTENANCE - EQUIPMENT, FURNITURE AND MATERIALS"," 54,011.25 ","Works - Construction, Repair & Maint.Roads.Repair & Maintenance",Q1,,
28/06/2016,"NEIGHBOURHOODS, ENVIRONMENT & EMPLOYMENT",F M Conway Ltd_d,"MAINTENANCE - EQUIPMENT, FURNITURE AND MATERIALS"," 53,898.75 ","Works - Construction, Repair & Maint.Roads.Repair & Maintenance",Q1,,
25/05/2016,ADULT SOCIAL CARE,Carewatch (Lambeth),DOMICILIARY CARE - THIRD PARTY," 53,895.80 ",Social Community Care Supplies & Service.Adult.Domiciliary Care,Q1,,
18/05/2016,CHILDREN'S SERVICES,Royal Borough of Kensington & Chelsea,CONSULTANCY FEES," 53,880.00 ",Consultancy.Business.NA,Q1,,
26/04/2016,"STRATEGY & COMMISSIONING - CHILDREN, DISABILITIES & PUBLIC HEALTH",Centrepoint Soho Ltd,PRIVATE CONTRACTORS PAYMENT - OTHER," 52,890.41 ",Social Community Care Supplies & Service.Adult.Sheltered Accommodation,Q1,,
26/04/2016,CAPITAL CC,Ark Build Plc,"MAINTENANCE - EQUIPMENT, FURNITURE AND MATERIALS"," 52,870.73 ","Works - Construction, Repair & Maint.Roads.NA",Q1,,
18/05/2016,CAPITAL CC,Muse Developments Ltd,"MAINTENANCE - EQUIPMENT, FURNITURE AND MATERIALS"," 52,760.00 ","Works - Construction, Repair & Maint.Architect.NA",Q1,,
25/05/2016,CHILDREN'S SERVICES,Saint Michael's Fellowship,RESIDENTIAL PLACEMENTS - PRIVATE CONTRACTORS PAYMENT," 52,350.00 ",Social Community Care Supplies & Service.Children.Residential Care,Q1,,
13/04/2016,BUSINESS & CUSTOMER SERVICES,Cofely Workplace Ltd,SECURITY SERVICES (EXCLUDING PREMISES)," 51,964.85 ",Facilities & Management Services.Security.NA,Q1,,
28/04/2016,CAPITAL CC,Mulalley & Co Ltd,FACILITIES MANAGEMENT," 51,300.94 ","Works - Construction, Repair & Maint.Buildings.Repair & Maintenance",Q1,,
22/06/2016,ADULT SOCIAL CARE,One Housing Group,FLOATING SUPPORT SERVICES - PRIVATE CONTRACTORS PAYMENT," 51,238.11 ",Social Community Care Supplies & Service.Adult.Sheltered Accommodation,Q1,,
11/05/2016,ADULT SOCIAL CARE,Lambeth Mencap_d,DOMICILIARY CARE - THIRD PARTY," 50,924.94 ",Social Community Care Supplies & Service.Adult.Domiciliary Care,Q1,,
23/06/2016,CAPITAL CC,Mears Ltd,FACILITIES MANAGEMENT," 50,756.17 ","Works - Construction, Repair & Maint.Buildings.Repair & Maintenance",Q1,,
23/05/2016,EDUCATION & LEARNING,Muntham House School Ltd,PROFESSIONAL SERVICES - GENERAL," 50,708.00 ",Education.School Services.NA,Q1,,
03/06/2016,"REGENERATION, PLANNING & NEIGHBOURHOODS",F M Conway Ltd_d,"MAINTENANCE - EQUIPMENT, FURNITURE AND MATERIALS"," 50,510.26 ","Works - Construction, Repair & Maint.Roads.Repair & Maintenance",Q1,,
03/06/2016,"REGENERATION, PLANNING & NEIGHBOURHOODS",F M Conway Ltd_d,"MAINTENANCE - EQUIPMENT, FURNITURE AND MATERIALS"," 50,510.26 ","Works - Construction, Repair & Maint.Roads.Repair & Maintenance",Q1,,
04/05/2016,BUSINESS & CUSTOMER SERVICES,RME Services Ltd,FACILITIES MANAGEMENT," 49,950.00 ","Works - Construction, Repair & Maint.Buildings.Repair & Maintenance",Q1,,
28/04/2016,CAPITAL CC,F M Conway Ltd_d,"MAINTENANCE - EQUIPMENT, FURNITURE AND MATERIALS"," 49,917.70 ","Works - Construction, Repair & Maint.Roads.Repair & Maintenance",Q1,,
21/04/2016,CHILDREN'S SERVICES,RedQuadrant Ltd,CONSULTANCY FEES," 49,770.00 ",Consultancy.Business.NA,Q1,,
26/04/2016,"STRATEGY & COMMISSIONING - CHILDREN, DISABILITIES & PUBLIC HEALTH",Look Ahead Housing & Care Ltd,PRIVATE CONTRACTORS PAYMENT - OTHER," 48,966.00 ",Social Community Care Supplies & Service.Adult.Advice & Counselling Services,Q1,,
18/05/2016,"STRATEGY & COMMISSIONING - CHILDREN, DISABILITIES & PUBLIC HEALTH",Saint Mungo Association,STREET POPULATION SERVICES - PRIVATE CONTRACTORS PAYMENT," 48,959.20 ","Social Community Care Supplies & Service.Adult.Temporary Accommodation, Hostels",Q1,,
22/06/2016,"STRATEGIC HOUSING, REGENERATION & COMMUNITIES",Saint Mungo Association,STREET POPULATION SERVICES - PRIVATE CONTRACTORS PAYMENT," 48,959.20 ","Social Community Care Supplies & Service.Adult.Temporary Accommodation, Hostels",Q1,,
09/06/2016,CHILDREN'S SERVICES,The Breslaff Centre,SUPPORTED OTHER ACCOMMODATION - PRIVATE CONTRACTORS PAYMENT," 48,760.00 ",Social Community Care Supplies & Service.Children.NA,Q1,,
02/06/2016,POLICY & COMMUNICATIONS,Local Government Association,MEMBERSHIP AND SUBSCRIPTIONS," 48,385.20 ",Financial Services.Subscriptions.NA,Q1,,
18/05/2016,"STRATEGY & COMMISSIONING - CHILDREN, DISABILITIES & PUBLIC HEALTH",Refuge,FLOATING SUPPORT SERVICES - PRIVATE CONTRACTORS PAYMENT," 48,330.24 ",Social Community Care Supplies & Service.Adult.Advice & Counselling Services,Q1,,
22/06/2016,"STRATEGIC HOUSING, REGENERATION & COMMUNITIES",Refuge,FLOATING SUPPORT SERVICES - PRIVATE CONTRACTORS PAYMENT," 48,330.24 ",Social Community Care Supplies & Service.Adult.Advice & Counselling Services,Q1,,
28/06/2016,HOUSING SERVICES (HRA),Mears Ltd,RESPONSIVE REPAIRS - MECHANICAL AND ELECTRICAL," 48,269.78 ","Works - Construction, Repair & Maint.Buildings.Repair & Maintenance",Q1,,
21/06/2016,CAPITAL CC,Mears Ltd,BUILDING ALTERATIONS AND MATERIALS," 48,184.61 ","Works - Construction, Repair & Maint.Buildings.Repair & Maintenance",Q1,,
20/06/2016,CHILDREN'S SERVICES,Coin Street Centre Trust_d,OTHER SOCIAL SERVICES TRANSFER PAYMENTS," 48,153.50 ",Human Resources.Training & Conferences.Conferences,Q1,,
26/04/2016,"STRATEGY & COMMISSIONING - CHILDREN, DISABILITIES & PUBLIC HEALTH",Southside Partnership,PRIVATE CONTRACTORS PAYMENT - OTHER," 48,112.02 ",Social Community Care Supplies & Service.Adult.Residential Care,Q1,,
17/05/2016,"REGENERATION, PLANNING & NEIGHBOURHOODS",London Cycling Campaign,PURCHASE OF VEHICLES RELATED COSTS," 48,064.00 ",Vehicle Management.Cycles.Purchase,Q1,,
03/06/2016,CAPITAL CC,Ingleton Wood LLP,CONSULTANCY FEES," 48,000.00 ",Consultancy.Business.NA,Q1,,
03/06/2016,CAPITAL CC,Ingleton Wood LLP,CONSULTANCY FEES," 48,000.00 ",Consultancy.Business.NA,Q1,,
13/04/2016,"REGENERATION, PLANNING & NEIGHBOURHOODS",Regeneris Consulting Ltd,CONSULTANCY FEES," 48,000.00 ",Consultancy.Technical & Feasibility.NA,Q1,,
23/05/2016,ADULT SOCIAL CARE,Allied Healthcare (UK) Ltd,DOMICILIARY CARE - THIRD PARTY," 47,922.81 ",Social Community Care Supplies & Service.Adult.Domiciliary Care,Q1,,
27/04/2016,FINANCE,Lambert Smith Hampton Group Ltd,CONSULTANCY FEES," 47,786.05 ",Consultancy.Technical & Feasibility.NA,Q1,,
18/04/2016,CAPITAL CC,Baily Garner LLP,FACILITIES MANAGEMENT," 47,751.00 ","Works - Construction, Repair & Maint.Buildings.Repair & Maintenance",Q1,,
20/06/2016,ADULT SOCIAL CARE,Allied Healthcare (UK) Ltd,DOMICILIARY CARE - THIRD PARTY," 47,359.79 ",Social Community Care Supplies & Service.Adult.Domiciliary Care,Q1,,
06/05/2016,CHILDREN'S SERVICES,198 Contemporary Arts & Learning Ltd,ARTS AND LEISURE COSTS," 47,123.50 ",Arts & Leisure Services.Organised Activities.NA,Q1,,
18/05/2016,"STRATEGY & COMMISSIONING - CHILDREN, DISABILITIES & PUBLIC HEALTH",Thames Reach,PRIVATE CONTRACTORS PAYMENT - OTHER," 46,884.68 ",Social Community Care Supplies & Service.Adult.Sheltered Accommodation,Q1,,
22/06/2016,"STRATEGIC HOUSING, REGENERATION & COMMUNITIES",Thames Reach,PRIVATE CONTRACTORS PAYMENT - OTHER," 46,884.68 ",Social Community Care Supplies & Service.Adult.Sheltered Accommodation,Q1,,
25/04/2016,ADULT SOCIAL CARE,Allied Healthcare (UK) Ltd,DOMICILIARY CARE - THIRD PARTY," 46,850.76 ",Social Community Care Supplies & Service.Adult.Domiciliary Care,Q1,,
26/04/2016,"STRATEGY & COMMISSIONING - CHILDREN, DISABILITIES & PUBLIC HEALTH",Family Mosaic,PRIVATE CONTRACTORS PAYMENT - OTHER," 46,632.80 ",Social Community Care Supplies & Service.Adult.Residential Care,Q1,,
25/05/2016,ADULT SOCIAL CARE,Windmill Care Centre,RESIDENTIAL PLACEMENTS - PRIVATE CONTRACTORS PAYMENT," 46,500.00 ",Social Community Care Supplies & Service.Adult.Residential Care,Q1,,
26/04/2016,"STRATEGY & COMMISSIONING - CHILDREN, DISABILITIES & PUBLIC HEALTH",Thames Reach,PRIVATE CONTRACTORS PAYMENT - OTHER," 46,280.91 ",Social Community Care Supplies & Service.Adult.Sheltered Accommodation,Q1,,
25/05/2016,"REGENERATION, PLANNING & NEIGHBOURHOODS",Veolia ES (UK) Ltd,WASTE DISPOSAL COSTS," 46,167.09 ",Environmental Services.Waste Management.NA,Q1,,
21/06/2016,"NEIGHBOURHOODS, ENVIRONMENT & EMPLOYMENT",Veolia ES (UK) Ltd,WASTE DISPOSAL COSTS," 46,167.09 ",Environmental Services.Waste Management.NA,Q1,,
18/05/2016,"STRATEGY & COMMISSIONING - CHILDREN, DISABILITIES & PUBLIC HEALTH",Single Homeless Project,FLOATING SUPPORT SERVICES - PRIVATE CONTRACTORS PAYMENT," 46,027.40 ",Social Community Care Supplies & Service.Adult.Sheltered Accommodation,Q1,,
22/06/2016,"STRATEGIC HOUSING, REGENERATION & COMMUNITIES",Single Homeless Project,FLOATING SUPPORT SERVICES - PRIVATE CONTRACTORS PAYMENT," 46,027.40 ",Social Community Care Supplies & Service.Adult.Sheltered Accommodation,Q1,,
01/04/2016,BUSINESS & CUSTOMER SERVICES,Cofely Workplace Ltd,SECURITY SERVICES (EXCLUDING PREMISES)," 45,868.97 ",Facilities & Management Services.Security.NA,Q1,,
12/05/2016,EDUCATION & LEARNING,Saint John's School & College,PROFESSIONAL SERVICES - GENERAL," 45,684.26 ",Education.School Services.NA,Q1,,
26/05/2016,EDUCATION & LEARNING,Saint John's School & College,PROFESSIONAL SERVICES - GENERAL," 45,684.26 ",Education.School Services.NA,Q1,,
25/04/2016,"REGENERATION, PLANNING & NEIGHBOURHOODS",Veolia ES (UK) Ltd,WASTE DISPOSAL COSTS," 45,440.05 ",Environmental Services.Waste Management.NA,Q1,,
06/04/2016,"REGENERATION, PLANNING & NEIGHBOURHOODS",Veolia ES (UK) Ltd,WASTE DISPOSAL COSTS," 45,440.05 ",Environmental Services.Waste Management.NA,Q1,,
27/04/2016,ADULT SOCIAL CARE,High View Care Services Ltd,RESIDENTIAL PLACEMENTS - PRIVATE CONTRACTORS PAYMENT," 45,051.43 ",Social Community Care Supplies & Service.Adult.Residential Care,Q1,,
01/06/2016,"STRATEGY & COMMISSIONING - CHILDREN, DISABILITIES & PUBLIC HEALTH",Enter Here LLP,CONSULTANCY FEES," 45,000.00 ",Consultancy.Management.Efficiency,Q1,,
28/06/2016,ADULT SOCIAL CARE,Windmill Care Centre,RESIDENTIAL PLACEMENTS - PRIVATE CONTRACTORS PAYMENT," 45,000.00 ",Social Community Care Supplies & Service.Adult.Residential Care,Q1,,
27/04/2016,ADULT SOCIAL CARE,Windmill Care Centre,RESIDENTIAL PLACEMENTS - PRIVATE CONTRACTORS PAYMENT," 45,000.00 ",Social Community Care Supplies & Service.Adult.Residential Care,Q1,,
29/04/2016,"REGENERATION, PLANNING & NEIGHBOURHOODS",Farthest Gate Ltd,ICT SOFTWARE," 44,883.45 ",Information Communication Technology.Software.NA,Q1,,
05/05/2016,CAPITAL CC,RME Services Ltd,FACILITIES MANAGEMENT," 44,650.00 ","Works - Construction, Repair & Maint.Buildings.Repair & Maintenance",Q1,,
17/06/2016,CAPITAL CC,Mears Ltd,FACILITIES MANAGEMENT," 44,485.34 ","Works - Construction, Repair & Maint.Buildings.Repair & Maintenance",Q1,,
25/05/2016,CHILDREN'S SERVICES,National Autistic Society,RESIDENTIAL PLACEMENTS - PRIVATE CONTRACTORS PAYMENT," 44,053.06 ",Social Community Care Supplies & Service.Children.Residential Care,Q1,,
04/04/2016,"REGENERATION, PLANNING & NEIGHBOURHOODS",Tyco Integrated Systems Ltd,SECURITY SERVICES (EXCLUDING PREMISES)," 43,750.35 ",Facilities & Management Services.Security.Closed-Circuit Television,Q1,,
21/06/2016,"NEIGHBOURHOODS, ENVIRONMENT & EMPLOYMENT",London Councils,CONSULTANCY FEES," 43,743.05 ",Consultancy.Strategic Planning.NA,Q1,,
26/05/2016,ADULT SOCIAL CARE,Aspire Wellbeing,DAYCARE - PRIVATE CONTRACTORS PAYMENT," 42,500.00 ",Social Community Care Supplies & Service.Adult.Day Care,Q1,,
17/05/2016,BUSINESS & CUSTOMER SERVICES,Cofely Workplace Ltd,SECURITY SERVICES (EXCLUDING PREMISES)," 42,362.79 ",Facilities & Management Services.Security.NA,Q1,,
26/04/2016,"STRATEGY & COMMISSIONING - CHILDREN, DISABILITIES & PUBLIC HEALTH",Look Ahead Housing & Care Ltd,PRIVATE CONTRACTORS PAYMENT - OTHER," 42,310.49 ",Social Community Care Supplies & Service.Adult.Advice & Counselling Services,Q1,,
13/06/2016,"REGENERATION, PLANNING & NEIGHBOURHOODS",F M Conway Ltd_d,"MAINTENANCE - EQUIPMENT, FURNITURE AND MATERIALS"," 42,279.06 ","Works - Construction, Repair & Maint.Roads.Repair & Maintenance",Q1,,
13/04/2016,BUSINESS & CUSTOMER SERVICES,Cofely Workplace Ltd,CLEANING SERVICES," 42,205.13 ",Cleaning & Janitorial.Cleaning Service.Internal,Q1,,
14/04/2016,CAPITAL CC,United Living South Ltd,"MAINTENANCE - EQUIPMENT, FURNITURE AND MATERIALS"," 42,076.95 ","Works - Construction, Repair & Maint.Buildings.Construction",Q1,,
27/04/2016,FINANCE,Automotive Leasing Ltd,VEHICLE LEASES," 41,651.80 ",Vehicle Management.Leasing.NA,Q1,,
21/04/2016,CHILDREN'S SERVICES,RedQuadrant Ltd,CONSULTANCY FEES," 41,650.00 ",Consultancy.Business.NA,Q1,,
27/05/2016,FINANCE,Lambert Smith Hampton Group Ltd,CONSULTANCY FEES," 41,110.65 ",Consultancy.Technical & Feasibility.NA,Q1,,
29/06/2016,"STRATEGIC HOUSING, REGENERATION & COMMUNITIES",OCS Group UK Ltd t/a Cannon,"PURCHASE - EQUIPMENT, FURNITURE AND MATERIALS"," 41,062.00 ",Street & Traffic Management.Closed-Circuit Television.NA,Q1,,
31/05/2016,CAPITAL CC,Igloo Regeneration Ltd,"MAINTENANCE - EQUIPMENT, FURNITURE AND MATERIALS"," 41,004.13 ","Works - Construction, Repair & Maint.Roads.Reconstruction & Resurfacing",Q1,,
01/04/2016,CAPITAL CC,ME Construction Ltd,FACILITIES MANAGEMENT," 40,761.56 ","Works - Construction, Repair & Maint.Buildings.Repair & Maintenance",Q1,,
24/06/2016,"NEIGHBOURHOODS, ENVIRONMENT & EMPLOYMENT",Veolia ES (UK) Ltd,OPEN SPACES WORKS," 40,736.85 ","Works - Construction, Repair & Maint.Open Spaces.Repair & Maintenance",Q1,,
28/04/2016,BUSINESS TRANSFORMATION,Swiss Post Solutions Ltd,PRINTING," 40,655.00 ",Facilities & Management Services.Printing.NA,Q1,,
31/05/2016,BUSINESS TRANSFORMATION,Swiss Post Solutions Ltd,PRINTING," 40,655.00 ",Facilities & Management Services.Printing.NA,Q1,,
28/06/2016,BUSINESS TRANSFORMATION,Swiss Post Solutions Ltd,PRINTING," 40,655.00 ",Facilities & Management Services.Printing.NA,Q1,,
26/04/2016,CAPITAL CC,Bolt & Heeks Ltd,"MAINTENANCE - EQUIPMENT, FURNITURE AND MATERIALS"," 40,573.93 ","Works - Construction, Repair & Maint.Buildings.Construction",Q1,,
26/04/2016,CAPITAL CC,Bolt & Heeks Ltd,"MAINTENANCE - EQUIPMENT, FURNITURE AND MATERIALS"," 40,573.93 ","Works - Construction, Repair & Maint.Buildings.Construction",Q1,,
28/04/2016,CAPITAL CC,Pellings LLP,CONSULTANCY FEES," 40,225.90 ","Works - Construction, Repair & Maint.Consultancy.NA",Q1,,
05/04/2016,EDUCATION & LEARNING,Cambian Autism Services Ltd,PROFESSIONAL SERVICES - GENERAL," 40,100.06 ",Education.School Services.NA,Q1,,
23/05/2016,CHILDREN'S SERVICES,Barnardo Services Ltd,PRIVATE CONTRACTORS PAYMENT - OTHER," 40,000.00 ",Social Community Care Supplies & Service.Children.NA,Q1,,
19/04/2016,"REGENERATION, PLANNING & NEIGHBOURHOODS",Westminster City Council,CONSULTANCY FEES," 40,000.00 ",Consultancy.Business.NA,Q1,,
27/04/2016,ADULT SOCIAL CARE,Dunheved Lodge,RESIDENTIAL PLACEMENTS - PRIVATE CONTRACTORS PAYMENT," 39,923.00 ",Social Community Care Supplies & Service.Adult.Residential Care,Q1,,
04/05/2016,CAPITAL CC,Russell Cawberry Ltd,"MAINTENANCE - EQUIPMENT, FURNITURE AND MATERIALS"," 39,910.26 ","Works - Construction, Repair & Maint.Buildings.Construction",Q1,,
04/05/2016,CAPITAL CC,Russell Cawberry Ltd,"MAINTENANCE - EQUIPMENT, FURNITURE AND MATERIALS"," 39,910.26 ","Works - Construction, Repair & Maint.Buildings.Construction",Q1,,
07/06/2016,"REGENERATION, PLANNING & NEIGHBOURHOODS",OCS Group UK Ltd t/a Cannon,"PURCHASE - EQUIPMENT, FURNITURE AND MATERIALS"," 39,866.00 ",Street & Traffic Management.Closed-Circuit Television.NA,Q1,,
07/06/2016,"REGENERATION, PLANNING & NEIGHBOURHOODS",OCS Group UK Ltd t/a Cannon,"PURCHASE - EQUIPMENT, FURNITURE AND MATERIALS"," 39,866.00 ",Street & Traffic Management.Closed-Circuit Television.NA,Q1,,
11/05/2016,CHILDREN'S SERVICES,London Borough of Hounslow,FOSTERING AGENCY PLACEMENTS - PRIVATE CONTRACTORS PAYMENT," 39,520.00 ",Consultancy.Procurement.NA,Q1,,
01/04/2016,ADULT SOCIAL CARE,Mosaic Clubhouse,PRIVATE CONTRACTORS PAYMENT - OTHER," 39,291.67 ",Social Community Care Supplies & Service.Adult.Mental Health Services,Q1,,
04/04/2016,HOUSING MANAGEMENT SERVICES,Apollo Property Services Group Ltd,OPEN SPACES WORKS," 39,193.37 ","Works - Construction, Repair & Maint.Open Spaces.Repair & Maintenance",Q1,,
18/04/2016,CAPITAL CC,Baily Garner LLP,FACILITIES MANAGEMENT," 39,171.44 ","Works - Construction, Repair & Maint.Buildings.Repair & Maintenance",Q1,,
10/05/2016,HOUSING MANAGEMENT SERVICES,Oco Ltd_d,RESPONSIVE REPAIRS - MECHANICAL AND ELECTRICAL," 38,917.58 ",Building Construction Materials.Heating & Air Conditioning.NA,Q1,,
15/06/2016,HOUSING MANAGEMENT SERVICES,Oco Ltd_d,RESPONSIVE REPAIRS - MECHANICAL AND ELECTRICAL," 38,917.58 ",Building Construction Materials.Heating & Air Conditioning.NA,Q1,,
27/05/2016,"STRATEGY & COMMISSIONING - CHILDREN, DISABILITIES & PUBLIC HEALTH",St George's Healthcare NHS Trust,PAYMENT TO HEALTH AUTHORITIES," 38,759.68 ",Healthcare.Public Health.NA,Q1,,
24/05/2016,CORPORATE AFFAIRS,Zurich Municipal,INSURANCE (EXCL PREMISES AND TRANSPORT)," 38,600.00 ",Financial Services.Insurance.NA,Q1,,
28/06/2016,HOUSING SERVICES (HRA),Mears Ltd,BUILDING ALTERATIONS AND MATERIALS," 38,382.10 ","Works - Construction, Repair & Maint.Buildings.Repair & Maintenance",Q1,,
12/04/2016,CAPITAL CC,T Brown Group Ltd_d,BUILDING ALTERATIONS AND MATERIALS," 38,313.32 ",Building Construction Materials.Heating & Air Conditioning.NA,Q1,,
18/05/2016,"STRATEGY & COMMISSIONING - CHILDREN, DISABILITIES & PUBLIC HEALTH",Centrepoint Soho Ltd,PRIVATE CONTRACTORS PAYMENT - OTHER," 37,972.60 ",Social Community Care Supplies & Service.Adult.Sheltered Accommodation,Q1,,
22/06/2016,"STRATEGIC HOUSING, REGENERATION & COMMUNITIES",Centrepoint Soho Ltd,PRIVATE CONTRACTORS PAYMENT - OTHER," 37,972.60 ",Social Community Care Supplies & Service.Adult.Sheltered Accommodation,Q1,,
17/06/2016,HOUSING SERVICES (HRA),Morrison Facilities Services Ltd_d,FACILITIES MANAGEMENT," 37,888.28 ","Works - Construction, Repair & Maint.Buildings.Repair & Maintenance",Q1,,
17/05/2016,BUSINESS & CUSTOMER SERVICES,Cofely Workplace Ltd,SECURITY SERVICES (EXCLUDING PREMISES)," 37,858.65 ",Facilities & Management Services.Security.NA,Q1,,
29/04/2016,HOUSING MANAGEMENT SERVICES,Morrison Facilities Services Ltd_d,FACILITIES MANAGEMENT," 37,805.99 ","Works - Construction, Repair & Maint.Buildings.Repair & Maintenance",Q1,,
26/04/2016,"STRATEGY & COMMISSIONING - CHILDREN, DISABILITIES & PUBLIC HEALTH",Saint Mungo Association,PRIVATE CONTRACTORS PAYMENT - OTHER," 37,802.09 ","Social Community Care Supplies & Service.Adult.Temporary Accommodation, Hostels",Q1,,
15/06/2016,CAPITAL CC,Jerram Falkus Construction Ltd,"MAINTENANCE - EQUIPMENT, FURNITURE AND MATERIALS"," 37,743.50 ","Works - Construction, Repair & Maint.Buildings.Construction",Q1,,
11/04/2016,CAPITAL CC,Muse Developments Ltd,"MAINTENANCE - EQUIPMENT, FURNITURE AND MATERIALS"," 37,741.00 ","Works - Construction, Repair & Maint.Architect.NA",Q1,,
17/06/2016,HOUSING SERVICES (HRA),Morrison Facilities Services Ltd_d,FACILITIES MANAGEMENT," 37,583.86 ","Works - Construction, Repair & Maint.Buildings.Repair & Maintenance",Q1,,
06/05/2016,"STRATEGY & COMMISSIONING - CHILDREN, DISABILITIES & PUBLIC HEALTH",Saint Michael's Fellowship,PRIVATE CONTRACTORS PAYMENT - OTHER," 37,500.00 ",Social Community Care Supplies & Service.Children.NA,Q1,,
04/05/2016,"STRATEGY & COMMISSIONING - CHILDREN, DISABILITIES & PUBLIC HEALTH",Saint Michael's Fellowship,PRIVATE CONTRACTORS PAYMENT - OTHER," 37,500.00 ",Social Community Care Supplies & Service.Children.NA,Q1,,
01/06/2016,"STRATEGY & COMMISSIONING - CHILDREN, DISABILITIES & PUBLIC HEALTH",The Iveagh House Surgery,PAYMENT TO HEALTH AUTHORITIES," 37,500.00 ",Healthcare.Public Health.NA,Q1,,
29/04/2016,HOUSING MANAGEMENT SERVICES,Morrison Facilities Services Ltd_d,FACILITIES MANAGEMENT," 37,341.15 ","Works - Construction, Repair & Maint.Buildings.Repair & Maintenance",Q1,,
26/04/2016,"STRATEGY & COMMISSIONING - CHILDREN, DISABILITIES & PUBLIC HEALTH",Southside Partnership,PRIVATE CONTRACTORS PAYMENT - OTHER," 37,339.27 ",Social Community Care Supplies & Service.Adult.Residential Care,Q1,,
26/04/2016,BUSINESS & CUSTOMER SERVICES,Interserve Consultind,CONSULTANCY FEES," 37,102.24 ","Works - Construction, Repair & Maint.Consultancy.NA",Q1,,
17/06/2016,BUSINESS & CUSTOMER SERVICES,South Bank Bid Ltd,GENERAL OFFICE EXPENSES," 37,094.26 ",Financial Services.Council Tax & Business Rates.NA,Q1,,
25/05/2016,CHILDREN'S SERVICES,Pebbles Care Ltd,RESIDENTIAL PLACEMENTS - PRIVATE CONTRACTORS PAYMENT," 37,028.57 ",Social Community Care Supplies & Service.Children.Residential Care,Q1,,
07/04/2016,"STRATEGY & COMMISSIONING - CHILDREN, DISABILITIES & PUBLIC HEALTH",Foundation66,PAYMENT TO HEALTH AUTHORITIES," 37,000.00 ",Healthcare.Public Health.NA,Q1,,
14/06/2016,BUSINESS TRANSFORMATION,London Grid for Learning,ICT MAINTENANCE AND SUPPORT," 36,865.00 ",Information Communication Technology.Services.Website Development,Q1,,
12/05/2016,CAPITAL CC,F M Conway Ltd_d,"MAINTENANCE - EQUIPMENT, FURNITURE AND MATERIALS"," 36,506.47 ","Works - Construction, Repair & Maint.Roads.Repair & Maintenance",Q1,,
18/04/2016,CAPITAL CC,Breyer Group Plc_d,"MAINTENANCE - EQUIPMENT, FURNITURE AND MATERIALS"," 36,476.96 ","Works - Construction, Repair & Maint.Buildings.Construction",Q1,,
22/06/2016,BUSINESS TRANSFORMATION,Landesk UK Ltd,ICT MAINTENANCE AND SUPPORT," 36,375.32 ",Information Communication Technology.Services.Maintenance & Support,Q1,,
20/04/2016,CAPITAL CC,Lamya Construction Ltd,FACILITIES MANAGEMENT," 36,300.00 ","Works - Construction, Repair & Maint.Buildings.Repair & Maintenance",Q1,,
16/05/2016,CAPITAL CC,Mitie Property Services (UK) Ltd_d,BUILDING ALTERATIONS AND MATERIALS," 36,245.63 ","Works - Construction, Repair & Maint.Buildings.Repair & Maintenance",Q1,,
28/04/2016,BUSINESS & CUSTOMER SERVICES,RME Services Ltd,FACILITIES MANAGEMENT," 36,000.00 ","Works - Construction, Repair & Maint.Buildings.Repair & Maintenance",Q1,,
30/06/2016,BUSINESS & CUSTOMER SERVICES,Cofely Workplace Ltd,FACILITIES MANAGEMENT," 35,974.11 ","Works - Construction, Repair & Maint.Buildings.Repair & Maintenance",Q1,,
07/06/2016,CAPITAL CC,John Rowan and Partners LLP,LEGAL FEES," 35,740.25 ",Legal Services.General Support.NA,Q1,,
25/04/2016,"REGENERATION, PLANNING & NEIGHBOURHOODS",Symology Ltd,ICT MAINTENANCE AND SUPPORT," 35,731.11 ",Information Communication Technology.Services.Maintenance & Support,Q1,,
16/05/2016,BUSINESS & CUSTOMER SERVICES,Cofely Workplace Ltd,FACILITIES MANAGEMENT," 35,659.12 ","Works - Construction, Repair & Maint.Buildings.Repair & Maintenance",Q1,,
15/04/2016,BUSINESS TRANSFORMATION,Vodafone Ltd,LAND LINE TELEPHONE COSTS," 35,580.15 ",Information Communication Technology.Telecommunications.NA,Q1,,
22/06/2016,ADULT SOCIAL CARE,Look Ahead Housing & Care Ltd,PRIVATE CONTRACTORS PAYMENT - OTHER," 35,155.08 ",Social Community Care Supplies & Service.Adult.Mental Health Services,Q1,,
18/05/2016,"STRATEGY & COMMISSIONING - CHILDREN, DISABILITIES & PUBLIC HEALTH",Look Ahead Housing & Care Ltd,PRIVATE CONTRACTORS PAYMENT - OTHER," 35,155.08 ",Social Community Care Supplies & Service.Adult.Advice & Counselling Services,Q1,,
13/04/2016,BUSINESS & CUSTOMER SERVICES,Clapham Business Improvement District,GENERAL OFFICE EXPENSES," 35,101.65 ",Consultancy.Business.NA,Q1,,
01/04/2016,"REGENERATION, PLANNING & NEIGHBOURHOODS",OCS Group UK Ltd t/a Cannon,"PURCHASE - EQUIPMENT, FURNITURE AND MATERIALS"," 35,021.96 ",Street & Traffic Management.Closed-Circuit Television.NA,Q1,,
31/05/2016,STRATEGY & COMMISSIONING - NEIGHBOURHOODS,Advising London,LEGAL FEES," 35,000.00 ",Legal Services.General Support.NA,Q1,,
13/05/2016,"STRATEGY & COMMISSIONING - CHILDREN, DISABILITIES & PUBLIC HEALTH",UINCAP International Union of Capoeira,OTHER SOCIAL SERVICES TRANSFER PAYMENTS," 34,900.00 ",Arts & Leisure Services.Organised Activities.NA,Q1,,
03/05/2016,CHILDREN'S SERVICES,Saint Michael's Fellowship,RESIDENTIAL PLACEMENTS - PRIVATE CONTRACTORS PAYMENT," 34,809.93 ",Social Community Care Supplies & Service.Children.Residential Care,Q1,,
10/05/2016,CAPITAL CC,Igloo Regeneration Ltd,"MAINTENANCE - EQUIPMENT, FURNITURE AND MATERIALS"," 34,715.87 ","Works - Construction, Repair & Maint.Roads.Reconstruction & Resurfacing",Q1,,
28/06/2016,CHILDREN'S SERVICES,Quality Protects Children Ltd,RESIDENTIAL PLACEMENTS - PRIVATE CONTRACTORS PAYMENT," 34,650.00 ",Social Community Care Supplies & Service.Children.Residential Care,Q1,,
22/06/2016,ADULT SOCIAL CARE,Southside Partnership,PRIVATE CONTRACTORS PAYMENT - OTHER," 34,541.96 ",Social Community Care Supplies & Service.Adult.Mental Health Services,Q1,,
18/05/2016,"STRATEGY & COMMISSIONING - CHILDREN, DISABILITIES & PUBLIC HEALTH",Southside Partnership,PRIVATE CONTRACTORS PAYMENT - OTHER," 34,541.96 ",Social Community Care Supplies & Service.Adult.Residential Care,Q1,,
05/04/2016,EDUCATION & LEARNING,Civica UK Ltd,ICT MAINTENANCE AND SUPPORT," 34,311.24 ",Information Communication Technology.Services.Maintenance & Support,Q1,,
10/05/2016,EDUCATION & LEARNING,Civica UK Ltd,ICT MAINTENANCE AND SUPPORT," 34,311.24 ",Information Communication Technology.Services.Maintenance & Support,Q1,,
03/06/2016,EDUCATION & LEARNING,Civica UK Ltd,ICT MAINTENANCE AND SUPPORT," 34,311.24 ",Information Communication Technology.Services.Maintenance & Support,Q1,,
25/04/2016,"REGENERATION, PLANNING & NEIGHBOURHOODS",Western Riverside Waste Authority,WASTE DISPOSAL COSTS," 33,984.86 ",Environmental Services.Waste Management.NA,Q1,,
22/06/2016,ADULT SOCIAL CARE,Family Mosaic,PRIVATE CONTRACTORS PAYMENT - OTHER," 33,479.96 ",Social Community Care Supplies & Service.Adult.Mental Health Services,Q1,,
18/05/2016,"STRATEGY & COMMISSIONING - CHILDREN, DISABILITIES & PUBLIC HEALTH",Family Mosaic,PRIVATE CONTRACTORS PAYMENT - OTHER," 33,479.96 ",Social Community Care Supplies & Service.Adult.Residential Care,Q1,,
17/05/2016,ADULT SOCIAL CARE,Lambeth Chinese Community Association,DOMICILIARY CARE - THIRD PARTY," 33,471.90 ",Social Community Care Supplies & Service.Adult.Domiciliary Care,Q1,,
13/05/2016,BUSINESS & CUSTOMER SERVICES,Interserve Consultind,CONSULTANCY FEES," 33,445.81 ","Works - Construction, Repair & Maint.Consultancy.NA",Q1,,
30/06/2016,ADULT SOCIAL CARE,Burgess Autistic Trust,SUPPORTED OTHER ACCOMMODATION - PRIVATE CONTRACTORS PAYMENT," 33,399.15 ",Social Community Care Supplies & Service.Supplies.NA,Q1,,
27/04/2016,ADULT SOCIAL CARE,Lifeways Community Care Ltd,SUPPORTED OTHER ACCOMMODATION - PRIVATE CONTRACTORS PAYMENT," 33,321.00 ",Social Community Care Supplies & Service.Adult.Sheltered Accommodation,Q1,,
13/06/2016,"REGENERATION, PLANNING & NEIGHBOURHOODS",F M Conway Ltd_d,"MAINTENANCE - EQUIPMENT, FURNITURE AND MATERIALS"," 33,262.93 ","Works - Construction, Repair & Maint.Roads.Repair & Maintenance",Q1,,
18/05/2016,"STRATEGY & COMMISSIONING - CHILDREN, DISABILITIES & PUBLIC HEALTH",Thames Reach,PRIVATE CONTRACTORS PAYMENT - OTHER," 33,227.32 ",Social Community Care Supplies & Service.Adult.Sheltered Accommodation,Q1,,
22/06/2016,"STRATEGIC HOUSING, REGENERATION & COMMUNITIES",Thames Reach,PRIVATE CONTRACTORS PAYMENT - OTHER," 33,227.32 ",Social Community Care Supplies & Service.Adult.Sheltered Accommodation,Q1,,
17/05/2016,STRATEGY & COMMISSIONING - HOUSING & COMMUNITIES,Fight For Change,ARTS AND LEISURE COSTS," 33,000.00 ",Arts & Leisure Services.Sport & Fitness.NA,Q1,,
07/06/2016,HOUSING NEEDS,Home Connections Letting Ltd,MEMBERSHIP AND SUBSCRIPTIONS," 33,000.00 ",Financial Services.Subscriptions.NA,Q1,,
10/05/2016,CAPITAL CC,Igloo Regeneration Ltd,"MAINTENANCE - EQUIPMENT, FURNITURE AND MATERIALS"," 32,951.60 ","Works - Construction, Repair & Maint.Roads.Reconstruction & Resurfacing",Q1,,
07/06/2016,STRATEGY & COMMISSIONING - HOUSING & COMMUNITIES (HRA),The Housing Ombudsman,MEMBERSHIP AND SUBSCRIPTIONS," 32,910.72 ",Financial Services.Subscriptions.NA,Q1,,
31/05/2016,CAPITAL CC,Mitie Property Services (UK) Ltd_d,BUILDING ALTERATIONS AND MATERIALS," 32,883.71 ","Works - Construction, Repair & Maint.Buildings.Repair & Maintenance",Q1,,
22/04/2016,EDUCATION & LEARNING,Saint Mary's School,PROFESSIONAL SERVICES - GENERAL," 32,840.00 ",Education.School Services.NA,Q1,,
11/04/2016,"REGENERATION, PLANNING & NEIGHBOURHOODS",Western Riverside Waste Authority,WASTE DISPOSAL COSTS," 32,804.84 ",Environmental Services.Waste Management.NA,Q1,,
29/06/2016,PUBLIC HEALTH,Naz Project London,PAYMENT TO HEALTH AUTHORITIES," 32,738.92 ",Healthcare.Public Health.NA,Q1,,
02/06/2016,CAPITAL CC,John Rowan and Partners LLP,LEGAL FEES," 32,711.38 ",Legal Services.General Support.NA,Q1,,
24/05/2016,MAJOR CAPITAL PROGRAMMES,Eversheds LLP,LEGAL FEES," 32,148.00 ",Legal Services.Advocacy.NA,Q1,,
01/04/2016,BUSINESS & CUSTOMER SERVICES,Cofely Workplace Ltd,FACILITIES MANAGEMENT," 32,139.51 ","Works - Construction, Repair & Maint.Buildings.Repair & Maintenance",Q1,,
13/04/2016,BUSINESS & CUSTOMER SERVICES,Cofely Workplace Ltd,FACILITIES MANAGEMENT," 32,139.51 ","Works - Construction, Repair & Maint.Buildings.Repair & Maintenance",Q1,,
16/05/2016,BUSINESS & CUSTOMER SERVICES,Cofely Workplace Ltd,FACILITIES MANAGEMENT," 32,139.51 ","Works - Construction, Repair & Maint.Buildings.Repair & Maintenance",Q1,,
17/05/2016,BUSINESS & CUSTOMER SERVICES,Cofely Workplace Ltd,FACILITIES MANAGEMENT," 32,139.51 ","Works - Construction, Repair & Maint.Buildings.Repair & Maintenance",Q1,,
30/06/2016,BUSINESS & CUSTOMER SERVICES,Cofely Workplace Ltd,FACILITIES MANAGEMENT," 32,139.51 ","Works - Construction, Repair & Maint.Buildings.Repair & Maintenance",Q1,,
28/06/2016,ADULT SOCIAL CARE,Glen Care Group,RESIDENTIAL PLACEMENTS - PRIVATE CONTRACTORS PAYMENT," 32,014.29 ",Social Community Care Supplies & Service.Adult.Residential Care,Q1,,
03/06/2016,CAPITAL CC,Ingleton Wood LLP,CONSULTANCY FEES," 32,000.00 ",Consultancy.Business.NA,Q1,,
20/06/2016,EDUCATION & LEARNING,University of Southampton,AGENCY STAFF," 32,000.00 ",Human Resources.Temporary & Agency Staff.Professional,Q1,,
17/06/2016,CAPITAL CC,ISG Construction Ltd,"MAINTENANCE - EQUIPMENT, FURNITURE AND MATERIALS"," 31,996.50 ","Works - Construction, Repair & Maint.Buildings.Construction",Q1,,
17/05/2016,CAPITAL CC,Mears Ltd,BUILDING ALTERATIONS AND MATERIALS," 31,922.59 ","Works - Construction, Repair & Maint.Buildings.Repair & Maintenance",Q1,,
27/04/2016,CORPORATE AFFAIRS,Peabody Trust,CONTRIBUTIONS FROM OTHER LOCAL AUTHORITIES (INCOME)," 31,875.00 ",Legal Services.Specialist Support.NA,Q1,,
13/06/2016,"REGENERATION, PLANNING & NEIGHBOURHOODS",F M Conway Ltd_d,"MAINTENANCE - EQUIPMENT, FURNITURE AND MATERIALS"," 31,793.47 ","Works - Construction, Repair & Maint.Roads.Repair & Maintenance",Q1,,
06/06/2016,CHILDREN'S SERVICES,Hillcrest Children Services Ltd,RESIDENTIAL PLACEMENTS - PRIVATE CONTRACTORS PAYMENT," 31,545.72 ",Social Community Care Supplies & Service.Children.Residential Care,Q1,,
18/04/2016,CHILDREN'S SERVICES,Pact,ADOPTION ALLOWANCE - PRIVATE CONTRACTORS PAYMENT," 31,534.00 ",Social Community Care Supplies & Service.Children.Adoption Inter-Agency Fees,Q1,,
26/04/2016,"STRATEGY & COMMISSIONING - CHILDREN, DISABILITIES & PUBLIC HEALTH",Evolve Housing & Support,PRIVATE CONTRACTORS PAYMENT - OTHER," 31,513.62 ",Facilities & Management Services.Room Hire.NA,Q1,,
05/05/2016,"STRATEGY & COMMISSIONING - CHILDREN, DISABILITIES & PUBLIC HEALTH",198 Contemporary Arts & Learning Ltd,GRANTS AND CONTRIBUTIONS," 31,500.00 ",Financial Services.Grants.NA,Q1,,
29/04/2016,ADULT SOCIAL CARE,Allied Healthcare (UK) Ltd,DOMICILIARY CARE - THIRD PARTY," 31,458.99 ",Social Community Care Supplies & Service.Adult.Domiciliary Care,Q1,,
12/05/2016,ADULT SOCIAL CARE,Lambeth Mencap_d,DOMICILIARY CARE - THIRD PARTY," 31,287.36 ",Social Community Care Supplies & Service.Adult.Domiciliary Care,Q1,,
03/05/2016,ADULT SOCIAL CARE,Allied Healthcare (UK) Ltd,DOMICILIARY CARE - THIRD PARTY," 31,267.96 ",Social Community Care Supplies & Service.Adult.Domiciliary Care,Q1,,
13/06/2016,ADULT SOCIAL CARE,MiHomecare Ltd,DOMICILIARY CARE - THIRD PARTY," 31,220.38 ",Social Community Care Supplies & Service.Adult.Domiciliary Care,Q1,,
11/04/2016,BUSINESS TRANSFORMATION,Capgemini UK Plc,ICT MAINTENANCE AND SUPPORT," 31,200.00 ",Information Communication Technology.Services.Maintenance & Support,Q1,,
22/06/2016,ADULT SOCIAL CARE,Riverside ECHG,PRIVATE CONTRACTORS PAYMENT - OTHER," 31,114.24 ",Social Community Care Supplies & Service.Adult.Mental Health Services,Q1,,
28/06/2016,"NEIGHBOURHOODS, ENVIRONMENT & EMPLOYMENT",F M Conway Ltd_d,"MAINTENANCE - EQUIPMENT, FURNITURE AND MATERIALS"," 31,056.82 ","Works - Construction, Repair & Maint.Roads.Repair & Maintenance",Q1,,
25/05/2016,BUSINESS TRANSFORMATION,South East CSU,PAYMENT TO HEALTH AUTHORITIES," 31,043.60 ",Healthcare.Public Health.NA,Q1,,
25/04/2016,ADULT SOCIAL CARE,Allied Healthcare (UK) Ltd,DOMICILIARY CARE - THIRD PARTY," 30,793.88 ",Social Community Care Supplies & Service.Adult.Domiciliary Care,Q1,,
23/05/2016,ADULT SOCIAL CARE,Allied Healthcare (UK) Ltd,DOMICILIARY CARE - THIRD PARTY," 30,687.81 ",Social Community Care Supplies & Service.Adult.Domiciliary Care,Q1,,
01/06/2016,HUMAN RESOURCES AND ORGANISATIONAL DEVELOPMENT,MeLearning Ltd,STAFF DEVELOPMENT AND TRAINING," 30,530.00 ",Human Resources.Training & Conferences.Training,Q1,,
21/06/2016,ADULT SOCIAL CARE,Allied Healthcare (UK) Ltd,DOMICILIARY CARE - THIRD PARTY," 30,500.33 ",Social Community Care Supplies & Service.Adult.Domiciliary Care,Q1,,
21/06/2016,CHILDREN'S SERVICES,Freshstart Care Solutions Ltd,RENTS PAYABLE," 30,454.28 ",Social Community Care Supplies & Service.Children.Residential Care,Q1,,
18/05/2016,"STRATEGY & COMMISSIONING - CHILDREN, DISABILITIES & PUBLIC HEALTH",Look Ahead Housing & Care Ltd,PRIVATE CONTRACTORS PAYMENT - OTHER," 30,376.76 ",Social Community Care Supplies & Service.Adult.Advice & Counselling Services,Q1,,
22/06/2016,"STRATEGIC HOUSING, REGENERATION & COMMUNITIES",Look Ahead Housing & Care Ltd,PRIVATE CONTRACTORS PAYMENT - OTHER," 30,376.76 ",Social Community Care Supplies & Service.Adult.Advice & Counselling Services,Q1,,
06/06/2016,CAPITAL CC,John Rowan and Partners LLP,LEGAL FEES," 30,300.00 ",Legal Services.General Support.NA,Q1,,
06/06/2016,CAPITAL CC,John Rowan and Partners LLP,LEGAL FEES," 30,300.00 ",Legal Services.General Support.NA,Q1,,
06/06/2016,CAPITAL CC,John Rowan and Partners LLP,LEGAL FEES," 30,300.00 ",Legal Services.General Support.NA,Q1,,
30/06/2016,CHILDREN'S SERVICES,Cambian Childcare Ltd,RESIDENTIAL PLACEMENTS - PRIVATE CONTRACTORS PAYMENT," 30,077.14 ",Social Community Care Supplies & Service.Children.Residential Care,Q1,,
31/05/2016,ADULT SOCIAL CARE,Allied Healthcare (UK) Ltd,DOMICILIARY CARE - THIRD PARTY," 30,065.92 ",Social Community Care Supplies & Service.Adult.Domiciliary Care,Q1,,
21/06/2016,BUSINESS & CUSTOMER SERVICES,Waterloo Quarter Business Alliance,GENERAL OFFICE EXPENSES," 30,053.59 ",Financial Services.Subscriptions.NA,Q1,,
21/06/2016,"NEIGHBOURHOODS, ENVIRONMENT & EMPLOYMENT",Western Riverside Waste Authority,WASTE DISPOSAL COSTS," 30,044.60 ",Environmental Services.Waste Management.NA,Q1,,
07/06/2016,CORPORATE AFFAIRS,PricewaterhouseCoopers LLP,AUDIT FEES," 30,000.00 ",Financial Services.Audit.NA,Q1,,
13/06/2016,CORPORATE AFFAIRS,PricewaterhouseCoopers LLP,AUDIT FEES," 30,000.00 ",Financial Services.Audit.NA,Q1,,
22/06/2016,FINANCE,PricewaterhouseCoopers LLP,AUDIT FEES," 30,000.00 ",Financial Services.Audit.NA,Q1,,
27/04/2016,ADULT SOCIAL CARE,South London & Maudsley (nhs) Trust,PAYMENT TO HEALTH AUTHORITIES," 30,000.00 ",Healthcare.Public Health.NA,Q1,,
18/05/2016,STRATEGY & COMMISSIONING - HOUSING & COMMUNITIES,WSP UK Limited,CONSULTANCY FEES," 29,950.00 ",Consultancy.Technical & Feasibility.NA,Q1,,
25/05/2016,CAPITAL CC,Grant Thornton,PROFESSIONAL SERVICES - GENERAL," 29,933.09 ",Financial Services.Accountancy.NA,Q1,,
21/06/2016,ADULT SOCIAL CARE,Allied Healthcare (UK) Ltd,DOMICILIARY CARE - THIRD PARTY," 29,889.75 ",Social Community Care Supplies & Service.Adult.Domiciliary Care,Q1,,
31/05/2016,ADULT SOCIAL CARE,Allied Healthcare (UK) Ltd,DOMICILIARY CARE - THIRD PARTY," 29,818.30 ",Social Community Care Supplies & Service.Adult.Domiciliary Care,Q1,,
06/04/2016,BUSINESS TRANSFORMATION,Oracle Corporation UK Ltd,ICT SOFTWARE," 29,729.72 ",Information Communication Technology.Software.NA,Q1,,
25/04/2016,EDUCATION & LEARNING,Morley College Ltd,PAYMENTS TO VOLUNTARY SECTOR," 29,718.00 ",Education.Adult & Further Education Services.NA,Q1,,
25/05/2016,EDUCATION & LEARNING,Morley College Ltd,PAYMENTS TO VOLUNTARY SECTOR," 29,718.00 ",Education.Adult & Further Education Services.NA,Q1,,
30/06/2016,EDUCATION & LEARNING,Morley College Ltd,PAYMENTS TO VOLUNTARY SECTOR," 29,718.00 ",Education.Adult & Further Education Services.NA,Q1,,
04/05/2016,CHILDREN'S SERVICES,Croydon Council,DESIGN AND PHOTOGRAPHIC COSTS," 29,700.00 ",Facilities & Management Services.Design & Photography.NA,Q1,,
26/04/2016,"STRATEGY & COMMISSIONING - CHILDREN, DISABILITIES & PUBLIC HEALTH",Saint Mungo Association,PRIVATE CONTRACTORS PAYMENT - OTHER," 29,510.30 ","Social Community Care Supplies & Service.Adult.Temporary Accommodation, Hostels",Q1,,
20/06/2016,FINANCE,Energy Auditing Agency Ltd,CONSULTANCY FEES," 29,403.00 ",Consultancy.Business.NA,Q1,,
11/04/2016,BUSINESS TRANSFORMATION,Capgemini UK Plc,ICT MAINTENANCE AND SUPPORT," 29,390.13 ",Information Communication Technology.Services.Maintenance & Support,Q1,,
13/05/2016,BUSINESS TRANSFORMATION,Capgemini UK Plc,ICT MAINTENANCE AND SUPPORT," 29,390.13 ",Information Communication Technology.Services.Maintenance & Support,Q1,,
13/06/2016,BUSINESS TRANSFORMATION,Capgemini UK Plc,ICT MAINTENANCE AND SUPPORT," 29,390.13 ",Information Communication Technology.Services.Maintenance & Support,Q1,,
16/05/2016,EDUCATION & LEARNING,Charlton Park Academy,PRIVATE CONTRACTORS PAYMENT - OTHER," 29,372.05 ",Social Community Care Supplies & Service.Children.Residential Care,Q1,,
12/04/2016,"REGENERATION, PLANNING & NEIGHBOURHOODS",Liberty Printers Ltd,PRINTING," 29,293.56 ",Facilities & Management Services.Printing.NA,Q1,,
05/04/2016,BUSINESS TRANSFORMATION,Virgin Media Business,ICT HARDWARE," 29,210.00 ",Information Communication Technology.Hardware.NA,Q1,,
25/05/2016,CAPITAL CC,Grant Thornton,PROFESSIONAL SERVICES - GENERAL," 29,101.28 ",Financial Services.Accountancy.NA,Q1,,
12/05/2016,CHILDREN'S SERVICES,Esland North Ltd,RESIDENTIAL PLACEMENTS - PRIVATE CONTRACTORS PAYMENT," 29,089.28 ",Social Community Care Supplies & Service.Children.Residential Care,Q1,,
29/04/2016,"REGENERATION, PLANNING & NEIGHBOURHOODS",Farthest Gate Ltd,ICT SOFTWARE," 28,942.50 ",Information Communication Technology.Software.NA,Q1,,
27/04/2016,ADULT SOCIAL CARE,BUPA Care Homes,NURSING HOMES - PRIVATE CONTRACTORS PAYMENT," 28,762.14 ",Social Community Care Supplies & Service.Adult.Nursing Homes,Q1,,
08/04/2016,BUSINESS TRANSFORMATION,The Hay Group Management Ltd,STAFF DEVELOPMENT AND TRAINING," 28,500.00 ",Human Resources.Training & Conferences.Training,Q1,,
22/04/2016,HUMAN RESOURCES AND ORGANISATIONAL DEVELOPMENT,Reed Business Information Ltd,ICT MAINTENANCE AND SUPPORT," 28,292.00 ",Information Communication Technology.Services.NA,Q1,,
19/05/2016,CAPITAL CC,Ark Build Plc,"MAINTENANCE - EQUIPMENT, FURNITURE AND MATERIALS"," 28,151.52 ","Works - Construction, Repair & Maint.Roads.NA",Q1,,
13/06/2016,ADULT SOCIAL CARE,Jontek Ltd,ICT SOFTWARE," 28,121.00 ",Information Communication Technology.Software.NA,Q1,,
22/06/2016,CAPITAL CC,Invicta Preservation Ltd_d,FACILITIES MANAGEMENT," 28,064.86 ","Works - Construction, Repair & Maint.Buildings.Repair & Maintenance",Q1,,
28/06/2016,"NEIGHBOURHOODS, ENVIRONMENT & EMPLOYMENT",F M Conway Ltd_d,"MAINTENANCE - EQUIPMENT, FURNITURE AND MATERIALS"," 27,881.16 ","Works - Construction, Repair & Maint.Roads.Repair & Maintenance",Q1,,
11/05/2016,"REGENERATION, PLANNING & NEIGHBOURHOODS",Veolia ES (UK) Ltd,STREET SWEEPING," 27,752.70 ",Environmental Services.Street Cleansing.Sweeping,Q1,,
28/06/2016,CHILDREN'S SERVICES,Freshstart Care Solutions Ltd,RENTS PAYABLE," 27,685.72 ",Social Community Care Supplies & Service.Children.Residential Care,Q1,,
06/04/2016,BUSINESS TRANSFORMATION,Vodafone Ltd,LAND LINE TELEPHONE COSTS," 27,638.48 ",Information Communication Technology.Telecommunications.NA,Q1,,
29/04/2016,"STRATEGY & COMMISSIONING - CHILDREN, DISABILITIES & PUBLIC HEALTH",ROI Consulting Ltd,CONSULTANCY FEES," 27,600.00 ",Consultancy.Management.NA,Q1,,
25/05/2016,ADULT SOCIAL CARE,Supreme Homes Ltd - Fir Trees House,RESIDENTIAL PLACEMENTS - PRIVATE CONTRACTORS PAYMENT," 27,283.03 ",Social Community Care Supplies & Service.Adult.Residential Care,Q1,,
27/05/2016,STRATEGY & COMMISSIONING - NEIGHBOURHOODS,Centre 70 Advice Centre,LEGAL FEES," 27,207.25 ",Legal Services.General Support.NA,Q1,,
18/05/2016,"STRATEGY & COMMISSIONING - CHILDREN, DISABILITIES & PUBLIC HEALTH",Saint Mungo Association,PRIVATE CONTRACTORS PAYMENT - OTHER," 27,139.96 ","Social Community Care Supplies & Service.Adult.Temporary Accommodation, Hostels",Q1,,
22/06/2016,"STRATEGIC HOUSING, REGENERATION & COMMUNITIES",Saint Mungo Association,PRIVATE CONTRACTORS PAYMENT - OTHER," 27,139.96 ","Social Community Care Supplies & Service.Adult.Temporary Accommodation, Hostels",Q1,,
10/06/2016,ADULT SOCIAL CARE,Corelogic Ltd,ICT SOFTWARE," 27,121.00 ",Information Communication Technology.Software.Customised & Bespoke,Q1,,
26/04/2016,"STRATEGY & COMMISSIONING - CHILDREN, DISABILITIES & PUBLIC HEALTH",Look Ahead Housing & Care Ltd,FLOATING SUPPORT SERVICES - PRIVATE CONTRACTORS PAYMENT," 27,083.61 ",Social Community Care Supplies & Service.Adult.Advice & Counselling Services,Q1,,
18/05/2016,CAPITAL CC,Muse Developments Ltd,"MAINTENANCE - EQUIPMENT, FURNITURE AND MATERIALS"," 27,081.00 ","Works - Construction, Repair & Maint.Architect.NA",Q1,,
28/04/2016,CAPITAL CC,F M Conway Ltd_d,"MAINTENANCE - EQUIPMENT, FURNITURE AND MATERIALS"," 27,027.39 ","Works - Construction, Repair & Maint.Roads.Repair & Maintenance",Q1,,
13/04/2016,CAPITAL CC,Cyclehoop Ltd,"PURCHASE - EQUIPMENT, FURNITURE AND MATERIALS"," 27,000.00 ",Highway Equipment & Materials.Street Furniture & Ironworks.NA,Q1,,
01/04/2016,"STRATEGY & COMMISSIONING - CHILDREN, DISABILITIES & PUBLIC HEALTH",Merton & Lambeth Citizens Advice Bureaux Ltd,LEGAL FEES," 27,000.00 ",Legal Services.General Support.NA,Q1,,
28/06/2016,CHILDREN'S SERVICES,Sherico Care Services Ltd,RESIDENTIAL PLACEMENTS - PRIVATE CONTRACTORS PAYMENT," 27,000.00 ",Social Community Care Supplies & Service.Children.Residential Care,Q1,,
06/04/2016,CHILDREN'S SERVICES,Destiny House Ltd,RESIDENTIAL PLACEMENTS - PRIVATE CONTRACTORS PAYMENT," 26,965.57 ",Social Community Care Supplies & Service.Children.Residential Care,Q1,,
25/05/2016,CHILDREN'S SERVICES,Destiny House Ltd,RESIDENTIAL PLACEMENTS - PRIVATE CONTRACTORS PAYMENT," 26,965.57 ",Social Community Care Supplies & Service.Children.Residential Care,Q1,,
26/04/2016,"STRATEGY & COMMISSIONING - CHILDREN, DISABILITIES & PUBLIC HEALTH",Thames Reach,PRIVATE CONTRACTORS PAYMENT - OTHER," 26,954.85 ",Social Community Care Supplies & Service.Adult.Sheltered Accommodation,Q1,,
29/06/2016,ADULT SOCIAL CARE,Lifeways Community Care Ltd,SUPPORTED OTHER ACCOMMODATION - PRIVATE CONTRACTORS PAYMENT," 26,931.00 ",Social Community Care Supplies & Service.Adult.Sheltered Accommodation,Q1,,
22/06/2016,ADULT SOCIAL CARE,Southside Partnership,PRIVATE CONTRACTORS PAYMENT - OTHER," 26,807.68 ",Social Community Care Supplies & Service.Adult.Mental Health Services,Q1,,
18/05/2016,"STRATEGY & COMMISSIONING - CHILDREN, DISABILITIES & PUBLIC HEALTH",Southside Partnership,PRIVATE CONTRACTORS PAYMENT - OTHER," 26,807.68 ",Social Community Care Supplies & Service.Adult.Residential Care,Q1,,
21/06/2016,BUSINESS TRANSFORMATION,Vodafone Ltd,LAND LINE TELEPHONE COSTS," 26,718.96 ",Information Communication Technology.Telecommunications.NA,Q1,,
25/05/2016,"REGENERATION, PLANNING & NEIGHBOURHOODS",Veolia ES (UK) Ltd,WASTE DISPOSAL COSTS," 26,658.14 ",Environmental Services.Waste Management.NA,Q1,,
21/06/2016,"NEIGHBOURHOODS, ENVIRONMENT & EMPLOYMENT",Veolia ES (UK) Ltd,WASTE DISPOSAL COSTS," 26,658.14 ",Environmental Services.Waste Management.NA,Q1,,
06/04/2016,BUSINESS TRANSFORMATION,Vodafone Ltd,LAND LINE TELEPHONE COSTS," 26,501.84 ",Information Communication Technology.Telecommunications.NA,Q1,,
23/05/2016,"REGENERATION, PLANNING & NEIGHBOURHOODS",Western Riverside Waste Authority,WASTE DISPOSAL COSTS," 26,501.58 ",Environmental Services.Waste Management.NA,Q1,,
25/05/2016,"REGENERATION, PLANNING & NEIGHBOURHOODS",Veolia ES (UK) Ltd,REFUSE COLLECTION," 26,462.00 ",Environmental Services.Waste Management.Waste Collection,Q1,,
21/06/2016,"NEIGHBOURHOODS, ENVIRONMENT & EMPLOYMENT",Veolia ES (UK) Ltd,REFUSE COLLECTION," 26,462.00 ",Environmental Services.Waste Management.Waste Collection,Q1,,
28/06/2016,"STRATEGIC HOUSING, REGENERATION & COMMUNITIES (HRA)",Morrison Facilities Services Ltd_d,RESPONSIVE REPAIRS - BUILDING," 26,443.45 ","Works - Construction, Repair & Maint.Buildings.Repair & Maintenance",Q1,,
28/06/2016,"STRATEGIC HOUSING, REGENERATION & COMMUNITIES (HRA)",Morrison Facilities Services Ltd_d,RESPONSIVE REPAIRS - BUILDING," 26,443.45 ","Works - Construction, Repair & Maint.Buildings.Repair & Maintenance",Q1,,
28/06/2016,"STRATEGIC HOUSING, REGENERATION & COMMUNITIES (HRA)",Morrison Facilities Services Ltd_d,RESPONSIVE REPAIRS - BUILDING," 26,443.45 ","Works - Construction, Repair & Maint.Buildings.Repair & Maintenance",Q1,,
14/06/2016,HOUSING MANAGEMENT SERVICES,Morrison Facilities Services Ltd_d,RESPONSIVE REPAIRS - BUILDING," 26,443.45 ","Works - Construction, Repair & Maint.Buildings.Repair & Maintenance",Q1,,
06/04/2016,STRATEGY & COMMISSIONING - NEIGHBOURHOODS,Veolia ES (UK) Ltd,STREET SWEEPING," 26,417.00 ",Environmental Services.Street Cleansing.NA,Q1,,
26/05/2016,HOUSING MANAGEMENT SERVICES,Russell Play,"MAINTENANCE - EQUIPMENT, FURNITURE AND MATERIALS"," 26,393.35 ",Sports & Playground Equipment & Maint.Playground Equipment Maintenance.NA,Q1,,
10/06/2016,MAJOR CAPITAL PROGRAMMES,Soden Construction Ltd,"MAINTENANCE - EQUIPMENT, FURNITURE AND MATERIALS"," 26,387.29 ","Works - Construction, Repair & Maint.Buildings.Construction",Q1,,
15/04/2016,HOUSING MANAGEMENT SERVICES,Baylis Landscape Contractors Ltd_d,OPEN SPACES WORKS," 26,385.69 ","Works - Construction, Repair & Maint.Open Spaces.Repair & Maintenance",Q1,,
17/05/2016,ADULT SOCIAL CARE,L K Recruitment Ltd,DOMICILIARY CARE - THIRD PARTY," 26,301.51 ",Social Community Care Supplies & Service.Adult.Domiciliary Care,Q1,,
18/05/2016,"STRATEGY & COMMISSIONING - CHILDREN, DISABILITIES & PUBLIC HEALTH",Ekaya Housing Association Ltd,PRIVATE CONTRACTORS PAYMENT - OTHER," 26,281.80 ","Social Community Care Supplies & Service.Adult.Temporary Accommodation, Long Stay",Q1,,
06/04/2016,"REGENERATION, PLANNING & NEIGHBOURHOODS",Veolia ES (UK) Ltd,WASTE DISPOSAL COSTS," 26,238.33 ",Environmental Services.Waste Management.NA,Q1,,
25/05/2016,"REGENERATION, PLANNING & NEIGHBOURHOODS",Veolia ES (UK) Ltd,WASTE DISPOSAL COSTS," 26,199.55 ",Environmental Services.Waste Management.NA,Q1,,
21/06/2016,"NEIGHBOURHOODS, ENVIRONMENT & EMPLOYMENT",Veolia ES (UK) Ltd,WASTE DISPOSAL COSTS," 26,199.55 ",Environmental Services.Waste Management.NA,Q1,,
04/04/2016,EDUCATION & LEARNING,Saint Mary's School,PROFESSIONAL SERVICES - GENERAL," 26,161.00 ",Education.School Services.NA,Q1,,
28/06/2016,CHILDREN'S SERVICES,Destiny House Ltd,RESIDENTIAL PLACEMENTS - PRIVATE CONTRACTORS PAYMENT," 26,095.72 ",Social Community Care Supplies & Service.Children.Residential Care,Q1,,
05/05/2016,CHILDREN'S SERVICES,Destiny House Ltd,RESIDENTIAL PLACEMENTS - PRIVATE CONTRACTORS PAYMENT," 26,095.71 ",Social Community Care Supplies & Service.Children.Residential Care,Q1,,
06/04/2016,"REGENERATION, PLANNING & NEIGHBOURHOODS",Veolia ES (UK) Ltd,WASTE DISPOSAL COSTS," 26,045.28 ",Environmental Services.Waste Management.NA,Q1,,
25/05/2016,ADULT SOCIAL CARE,Precious Homes Ltd,RESIDENTIAL PLACEMENTS - PRIVATE CONTRACTORS PAYMENT," 26,036.41 ",Social Community Care Supplies & Service.Adult.Residential Care,Q1,,
12/04/2016,HOUSING NEEDS,TV Edwards LLP,LEGAL FEES," 26,000.00 ",Legal Services.Advocacy.NA,Q1,,
18/04/2016,ADULT SOCIAL CARE,Apetito Ltd,MEALS ON WHEELS - PRIVATE CONTRACTORS PAYMENT," 25,898.52 ",Catering.Social Care.Meals On Wheels,Q1,,
06/04/2016,"REGENERATION, PLANNING & NEIGHBOURHOODS",Veolia ES (UK) Ltd,STREET SWEEPING," 25,786.96 ",Environmental Services.Street Cleansing.NA,Q1,,
28/06/2016,CAPITAL CC,Igloo Regeneration Ltd,"MAINTENANCE - EQUIPMENT, FURNITURE AND MATERIALS"," 25,778.80 ","Works - Construction, Repair & Maint.Roads.Reconstruction & Resurfacing",Q1,,
11/05/2016,EDUCATION & LEARNING,The National Centre for Young People with Epilepsy,PAYMENT TO OTHER LOCAL AUTHORITIES," 25,761.34 ",Education.Educational Placements.NA,Q1,,
07/06/2016,EDUCATION & LEARNING,The National Centre for Young People with Epilepsy,PAYMENT TO OTHER LOCAL AUTHORITIES," 25,761.34 ",Education.Educational Placements.NA,Q1,,
16/06/2016,EDUCATION & LEARNING,The National Centre for Young People with Epilepsy,PAYMENT TO OTHER LOCAL AUTHORITIES," 25,761.34 ",Education.Educational Placements.NA,Q1,,
11/05/2016,ADULT SOCIAL CARE,Sanctuary Care Ltd,DOMICILIARY CARE - THIRD PARTY," 25,750.31 ",Social Community Care Supplies & Service.Adult.Residential Care,Q1,,
26/04/2016,"STRATEGY & COMMISSIONING - CHILDREN, DISABILITIES & PUBLIC HEALTH",Ekaya Housing Association Ltd,PRIVATE CONTRACTORS PAYMENT - OTHER," 25,434.00 ","Social Community Care Supplies & Service.Adult.Temporary Accommodation, Long Stay",Q1,,
22/06/2016,"STRATEGIC HOUSING, REGENERATION & COMMUNITIES",Ekaya Housing Association Ltd,PRIVATE CONTRACTORS PAYMENT - OTHER," 25,434.00 ","Social Community Care Supplies & Service.Adult.Temporary Accommodation, Short Stay",Q1,,
30/06/2016,CAPITAL CC,ME Construction Ltd,FACILITIES MANAGEMENT," 25,432.40 ","Works - Construction, Repair & Maint.Buildings.Repair & Maintenance",Q1,,
27/04/2016,ADULT SOCIAL CARE,Goldknight Trading Ltd,SUPPORTED OTHER ACCOMMODATION - PRIVATE CONTRACTORS PAYMENT," 25,321.50 ",Social Community Care Supplies & Service.Adult.Sheltered Accommodation,Q1,,
28/04/2016,CAPITAL CC,F M Conway Ltd_d,"MAINTENANCE - EQUIPMENT, FURNITURE AND MATERIALS"," 25,267.37 ","Works - Construction, Repair & Maint.Roads.Repair & Maintenance",Q1,,
11/05/2016,CAPITAL CC,Apollo Property Services Group Ltd,"MAINTENANCE - EQUIPMENT, FURNITURE AND MATERIALS"," 25,264.02 ","Works - Construction, Repair & Maint.Buildings.Construction",Q1,,
26/04/2016,CAPITAL CC,Ark Build Plc,"MAINTENANCE - EQUIPMENT, FURNITURE AND MATERIALS"," 25,260.69 ","Works - Construction, Repair & Maint.Roads.NA",Q1,,
11/05/2016,CAPITAL CC,Ark Build Plc,"MAINTENANCE - EQUIPMENT, FURNITURE AND MATERIALS"," 25,260.69 ","Works - Construction, Repair & Maint.Roads.NA",Q1,,
29/06/2016,ADULT SOCIAL CARE,Precious Homes Ltd,RESIDENTIAL PLACEMENTS - PRIVATE CONTRACTORS PAYMENT," 25,196.53 ",Social Community Care Supplies & Service.Adult.Residential Care,Q1,,
27/04/2016,ADULT SOCIAL CARE,Precious Homes Ltd,RESIDENTIAL PLACEMENTS - PRIVATE CONTRACTORS PAYMENT," 25,196.53 ",Social Community Care Supplies & Service.Adult.Residential Care,Q1,,
17/05/2016,BUSINESS & CUSTOMER SERVICES,Cofely Workplace Ltd,SECURITY SERVICES (EXCLUDING PREMISES)," 25,133.56 ",Financial Services.Cash Collection.NA,Q1,,
26/05/2016,"REGENERATION, PLANNING & NEIGHBOURHOODS",Furnace Managed Services Ltd,BEREAVEMENT SERVICES EQUIPMENT," 25,080.00 ",Cemetery & Crematorium.Equipment.NA,Q1,,
09/06/2016,"REGENERATION, PLANNING & NEIGHBOURHOODS",Furnace Managed Services Ltd,BEREAVEMENT SERVICES EQUIPMENT," 25,080.00 ",Cemetery & Crematorium.Equipment.NA,Q1,,
20/06/2016,ADULT SOCIAL CARE,Apetito Ltd,MEALS ON WHEELS - PRIVATE CONTRACTORS PAYMENT," 25,007.01 ",Catering.Social Care.Meals On Wheels,Q1,,
10/05/2016,HOUSING MANAGEMENT SERVICES,Anthony Gold Solicitors,LEGAL FEES," 25,000.00 ",Legal Services.Advocacy.NA,Q1,,
03/05/2016,"REGENERATION, PLANNING & NEIGHBOURHOODS",Cycle Confident Ltd,ARTS AND LEISURE COSTS," 25,000.00 ",Arts & Leisure Services.Sport & Fitness.NA,Q1,,
06/04/2016,STRATEGY & COMMISSIONING - ADULTS,NHS Lambeth Clinical Commissioning Group,PAYMENT TO HEALTH AUTHORITIES," 25,000.00 ",Healthcare.Public Health.NA,Q1,,
10/05/2016,CHILDREN'S SERVICES,Post Adoption Centre,ADOPTION ALLOWANCE - PRIVATE CONTRACTORS PAYMENT," 24,982.00 ",Social Community Care Supplies & Service.Children.Adoption,Q1,,
15/06/2016,CHILDREN'S SERVICES,Freshstart Care Solutions Ltd,RENTS PAYABLE," 24,904.55 ",Social Community Care Supplies & Service.Children.Residential Care,Q1,,
26/04/2016,BUSINESS & CUSTOMER SERVICES,Policy In Practice (Parsotum Ltd),CONSULTANCY FEES," 24,900.00 ",Consultancy.Business.NA,Q1,,
17/05/2016,STRATEGY & COMMISSIONING - NEIGHBOURHOODS,Brixton Advice Centre,PRIVATE CONTRACTORS PAYMENT - OTHER," 24,807.25 ",Social Community Care Supplies & Service.Adult.Advice & Counselling Services,Q1,,
26/04/2016,HOUSING MANAGEMENT SERVICES,Precision Lift Services Ltd_d,RESPONSIVE REPAIRS - MECHANICAL AND ELECTRICAL," 24,759.77 ",Facilities & Management Services.Lifts.NA,Q1,,
14/06/2016,HOUSING MANAGEMENT SERVICES,Precision Lift Services Ltd_d,RESPONSIVE REPAIRS - MECHANICAL AND ELECTRICAL," 24,759.77 ",Facilities & Management Services.Lifts.NA,Q1,,
04/04/2016,HOUSING MANAGEMENT SERVICES,Mears Ltd,FACILITIES MANAGEMENT," 24,686.79 ","Works - Construction, Repair & Maint.Buildings.Repair & Maintenance",Q1,,
13/05/2016,HOUSING MANAGEMENT SERVICES,Mears Ltd,FACILITIES MANAGEMENT," 24,686.79 ","Works - Construction, Repair & Maint.Buildings.Repair & Maintenance",Q1,,
13/05/2016,HOUSING MANAGEMENT SERVICES,Mears Ltd,FACILITIES MANAGEMENT," 24,686.79 ","Works - Construction, Repair & Maint.Buildings.Repair & Maintenance",Q1,,
26/05/2016,HOUSING MANAGEMENT SERVICES,Mears Ltd,FACILITIES MANAGEMENT," 24,686.79 ","Works - Construction, Repair & Maint.Buildings.Repair & Maintenance",Q1,,
17/05/2016,CHILDREN'S SERVICES,Bromley Healthcare CIC,RESIDENTIAL PLACEMENTS - PRIVATE CONTRACTORS PAYMENT," 24,680.00 ",Social Community Care Supplies & Service.Children.Residential Care,Q1,,
22/06/2016,EDUCATION & LEARNING,Saint Edward's School,PROFESSIONAL SERVICES - GENERAL," 24,543.00 ",Education.School Services.NA,Q1,,
12/04/2016,HOUSING MANAGEMENT SERVICES,G L Hockfield & Co Solicitors,LEGAL FEES," 24,500.00 ",Legal Services.Advocacy.NA,Q1,,
26/05/2016,ADULT SOCIAL CARE,Sanctuary Care Ltd,DOMICILIARY CARE - THIRD PARTY," 24,458.72 ",Social Community Care Supplies & Service.Adult.Residential Care,Q1,,
04/05/2016,CAPITAL CC,Muse Developments Ltd,"MAINTENANCE - EQUIPMENT, FURNITURE AND MATERIALS"," 24,401.00 ","Works - Construction, Repair & Maint.Architect.NA",Q1,,
12/05/2016,STRATEGY & COMMISSIONING - NEIGHBOURHOODS,Lambeth Law Centre,PRIVATE CONTRACTORS PAYMENT - OTHER," 24,328.50 ",Social Community Care Supplies & Service.Adult.Advice & Counselling Services,Q1,,
09/06/2016,CAPITAL CC,Mears Ltd,FACILITIES MANAGEMENT," 24,322.39 ","Works - Construction, Repair & Maint.Buildings.Repair & Maintenance",Q1,,
27/04/2016,CHILDREN'S SERVICES,Above Beyond Care,RENTS PAYABLE," 24,321.43 ",Social Community Care Supplies & Service.Children.Residential Care,Q1,,
24/06/2016,ADULT SOCIAL CARE,Sanctuary Care Ltd,DOMICILIARY CARE - THIRD PARTY," 24,190.91 ",Social Community Care Supplies & Service.Adult.Residential Care,Q1,,
15/06/2016,HOUSING MANAGEMENT SERVICES,Mears Ltd,RESPONSIVE REPAIRS - BUILDING," 24,148.80 ","Works - Construction, Repair & Maint.Buildings.Repair & Maintenance",Q1,,
03/05/2016,CHILDREN'S SERVICES,Quality Protects Children Ltd,RESIDENTIAL PLACEMENTS - PRIVATE CONTRACTORS PAYMENT," 24,142.85 ",Social Community Care Supplies & Service.Children.Residential Care,Q1,,
07/04/2016,CHILDREN'S SERVICES,Catch22,PRIVATE CONTRACTORS PAYMENT - OTHER," 24,022.00 ",Social Community Care Supplies & Service.Children.Residential Care,Q1,,
13/06/2016,"REGENERATION, PLANNING & NEIGHBOURHOODS",F M Conway Ltd_d,"MAINTENANCE - EQUIPMENT, FURNITURE AND MATERIALS"," 23,981.51 ","Works - Construction, Repair & Maint.Roads.Repair & Maintenance",Q1,,
08/04/2016,ADULT SOCIAL CARE,Sanctuary Care Ltd,DOMICILIARY CARE - THIRD PARTY," 23,885.81 ",Social Community Care Supplies & Service.Adult.Residential Care,Q1,,
27/05/2016,"STRATEGY & COMMISSIONING - CHILDREN, DISABILITIES & PUBLIC HEALTH",St George's Healthcare NHS Trust,PAYMENT TO HEALTH AUTHORITIES," 23,877.05 ",Healthcare.Public Health.NA,Q1,,
27/04/2016,ADULT SOCIAL CARE,Ashby House Care Home,NURSING HOMES - PRIVATE CONTRACTORS PAYMENT," 23,865.15 ",Social Community Care Supplies & Service.Adult.Nursing Homes,Q1,,
04/04/2016,HOUSING MANAGEMENT SERVICES,Frankham Consultancy Group Ltd,CONSULTANCY FEES," 23,833.40 ","Works - Construction, Repair & Maint.Consultancy.NA",Q1,,
26/04/2016,CAPITAL CC,Kier Construction Ltd,"MAINTENANCE - EQUIPMENT, FURNITURE AND MATERIALS"," 23,789.64 ","Works - Construction, Repair & Maint.Buildings.Construction",Q1,,
15/06/2016,CHILDREN'S SERVICES,Freshstart Care Solutions Ltd,RENTS PAYABLE," 23,767.70 ",Social Community Care Supplies & Service.Children.Residential Care,Q1,,
29/06/2016,ADULT SOCIAL CARE,Dunheved Lodge,RESIDENTIAL PLACEMENTS - PRIVATE CONTRACTORS PAYMENT," 23,690.56 ",Social Community Care Supplies & Service.Adult.Residential Care,Q1,,
08/06/2016,ADULT SOCIAL CARE,Apetito Ltd,MEALS ON WHEELS - PRIVATE CONTRACTORS PAYMENT," 23,658.07 ",Catering.Social Care.Meals On Wheels,Q1,,
22/06/2016,BUSINESS TRANSFORMATION,Landesk UK Ltd,ICT MAINTENANCE AND SUPPORT," 23,643.60 ",Information Communication Technology.Services.Maintenance & Support,Q1,,
18/04/2016,CAPITAL CC,TCL Group,GRANTS AND CONTRIBUTIONS," 23,631.57 ",Financial Services.Grants.NA,Q1,,
27/04/2016,ADULT SOCIAL CARE,BHHI,NURSING HOMES - PRIVATE CONTRACTORS PAYMENT," 23,542.86 ",Social Community Care Supplies & Service.Adult.Nursing Homes,Q1,,
07/06/2016,CAPITAL CC,John Rowan and Partners LLP,LEGAL FEES," 23,503.49 ",Legal Services.General Support.NA,Q1,,
23/05/2016,ADULT SOCIAL CARE,Sanctuary Care Ltd,DOMICILIARY CARE - THIRD PARTY," 23,431.55 ",Social Community Care Supplies & Service.Adult.Residential Care,Q1,,
27/05/2016,"STRATEGY & COMMISSIONING - CHILDREN, DISABILITIES & PUBLIC HEALTH",Health Education Link Service,PAYMENT TO HEALTH AUTHORITIES," 23,333.00 ",Healthcare.Public Health.NA,Q1,,
25/05/2016,CHILDREN'S SERVICES,Quality Protects Children Ltd,RESIDENTIAL PLACEMENTS - PRIVATE CONTRACTORS PAYMENT," 23,214.28 ",Social Community Care Supplies & Service.Children.Residential Care,Q1,,
06/05/2016,HOUSING MANAGEMENT SERVICES,Apex Lift & Escalator Engineers Ltd_d,RESPONSIVE REPAIRS - MECHANICAL AND ELECTRICAL," 23,018.17 ",Facilities & Management Services.Lifts.NA,Q1,,
15/06/2016,HOUSING MANAGEMENT SERVICES,Apex Lift & Escalator Engineers Ltd_d,RESPONSIVE REPAIRS - MECHANICAL AND ELECTRICAL," 23,018.17 ",Facilities & Management Services.Lifts.NA,Q1,,
26/04/2016,"STRATEGY & COMMISSIONING - CHILDREN, DISABILITIES & PUBLIC HEALTH",NACRO,PRIVATE CONTRACTORS PAYMENT - OTHER," 22,929.88 ",Social Community Care Supplies & Service.Adult.NA,Q1,,
22/06/2016,CAPITAL CC,Gatecraft Fencing Service Ltd,BUILDING ALTERATIONS AND MATERIALS," 22,799.00 ",Building Construction Materials.Fencing.NA,Q1,,
25/05/2016,ADULT SOCIAL CARE,229 Mitcham Lane Ltd,RESIDENTIAL PLACEMENTS - PRIVATE CONTRACTORS PAYMENT," 22,762.86 ",Social Community Care Supplies & Service.Adult.Residential Care,Q1,,
28/06/2016,CAPITAL CC,Apollo Property Services Group Ltd,"MAINTENANCE - EQUIPMENT, FURNITURE AND MATERIALS"," 22,698.92 ","Works - Construction, Repair & Maint.Buildings.Construction",Q1,,
18/04/2016,ADULT SOCIAL CARE,Elibariki Procare Ltd,DOMICILIARY CARE - THIRD PARTY," 22,627.50 ",Social Community Care Supplies & Service.Adult.Domiciliary Care,Q1,,
18/05/2016,"STRATEGY & COMMISSIONING - CHILDREN, DISABILITIES & PUBLIC HEALTH",Evolve Housing & Support,PRIVATE CONTRACTORS PAYMENT - OTHER," 22,625.16 ",Facilities & Management Services.Room Hire.NA,Q1,,
22/06/2016,"STRATEGIC HOUSING, REGENERATION & COMMUNITIES",Evolve Housing & Support,PRIVATE CONTRACTORS PAYMENT - OTHER," 22,625.16 ",Facilities & Management Services.Room Hire.NA,Q1,,
08/04/2016,HOUSING MANAGEMENT SERVICES,Centre 70 Advice Centre,LEGAL FEES," 22,500.00 ",Legal Services.General Support.NA,Q1,,
13/05/2016,HOUSING MANAGEMENT SERVICES,Alphatrack Systems Ltd_d,RESPONSIVE REPAIRS - MECHANICAL AND ELECTRICAL," 22,229.87 ",Facilities & Management Services.Security.Closed-Circuit Television,Q1,,
24/05/2016,HOUSING MANAGEMENT SERVICES,Alphatrack Systems Ltd_d,RESPONSIVE REPAIRS - MECHANICAL AND ELECTRICAL," 22,229.87 ",Facilities & Management Services.Security.Closed-Circuit Television,Q1,,
28/06/2016,"NEIGHBOURHOODS, ENVIRONMENT & EMPLOYMENT",F M Conway Ltd_d,"MAINTENANCE - EQUIPMENT, FURNITURE AND MATERIALS"," 22,142.66 ","Works - Construction, Repair & Maint.Roads.Repair & Maintenance",Q1,,
19/04/2016,HOUSING MANAGEMENT SERVICES,Streetspace Group,"MAINTENANCE - EQUIPMENT, FURNITURE AND MATERIALS"," 22,074.59 ","Works - Construction, Repair & Maint.Roads.Repair & Maintenance",Q1,,
05/05/2016,STRATEGY & COMMISSIONING - NEIGHBOURHOODS,St Mungo Community Housing Association,PRIVATE CONTRACTORS PAYMENT - OTHER," 22,000.00 ","Social Community Care Supplies & Service.Adult.Temporary Accommodation, Hostels",Q1,,
05/05/2016,STRATEGY & COMMISSIONING - NEIGHBOURHOODS,St Mungo Community Housing Association,PRIVATE CONTRACTORS PAYMENT - OTHER," 22,000.00 ","Social Community Care Supplies & Service.Adult.Temporary Accommodation, Hostels",Q1,,
25/05/2016,ADULT SOCIAL CARE,Precious Homes Ltd,RESIDENTIAL PLACEMENTS - PRIVATE CONTRACTORS PAYMENT," 21,830.64 ",Social Community Care Supplies & Service.Adult.Residential Care,Q1,,
12/04/2016,CAPITAL CC,T Brown Group Ltd_d,BUILDING ALTERATIONS AND MATERIALS," 21,823.73 ",Building Construction Materials.Heating & Air Conditioning.NA,Q1,,
27/04/2016,CHILDREN'S SERVICES,National Fostering Agency,FOSTERING AGENCY PLACEMENTS - PRIVATE CONTRACTORS PAYMENT," 21,821.88 ",Social Community Care Supplies & Service.Children.Fostering,Q1,,
08/04/2016,"STRATEGY & COMMISSIONING - CHILDREN, DISABILITIES & PUBLIC HEALTH",V Pearce Consulting & Associates,PAYMENT TO HEALTH AUTHORITIES," 21,750.00 ",Healthcare.Public Health.NA,Q1,,
27/04/2016,CAPITAL CC,Mears Ltd,BUILDING ALTERATIONS AND MATERIALS," 21,733.92 ","Works - Construction, Repair & Maint.Buildings.Repair & Maintenance",Q1,,
28/06/2016,CHILDREN'S SERVICES,National Autistic Society,RESIDENTIAL PLACEMENTS - PRIVATE CONTRACTORS PAYMENT," 21,665.45 ",Social Community Care Supplies & Service.Children.Residential Care,Q1,,
25/05/2016,CHILDREN'S SERVICES,Bryn Melyn Care Ltd,RESIDENTIAL PLACEMENTS - PRIVATE CONTRACTORS PAYMENT," 21,611.43 ",Social Community Care Supplies & Service.Children.Residential Care,Q1,,
11/05/2016,"REGENERATION, PLANNING & NEIGHBOURHOODS",Japanese Knotweed Ltd,GROUNDS MAINTENANCE," 21,608.26 ",Horticultural.Weed Control.NA,Q1,,
03/05/2016,CHILDREN'S SERVICES,Bryn Melyn Care Ltd,RESIDENTIAL PLACEMENTS - PRIVATE CONTRACTORS PAYMENT," 21,602.57 ",Social Community Care Supplies & Service.Children.Residential Care,Q1,,
22/06/2016,CAPITAL CC,CVU_d,"MAINTENANCE - EQUIPMENT, FURNITURE AND MATERIALS"," 21,578.64 ","Works - Construction, Repair & Maint.Roads.Construction",Q1,,
18/04/2016,CORPORATE AFFAIRS,Croydon Council,INSURANCE (EXCL PREMISES AND TRANSPORT)," 21,478.52 ",Facilities & Management Services.Design & Photography.NA,Q1,,
24/06/2016,EDUCATION & LEARNING,BeyondAutism,PROFESSIONAL SERVICES - GENERAL," 21,347.66 ",Education.Statutory Education Services.Curriculum,Q1,,
24/06/2016,EDUCATION & LEARNING,BeyondAutism,PROFESSIONAL SERVICES - GENERAL," 21,347.66 ",Education.Statutory Education Services.Curriculum,Q1,,
24/06/2016,EDUCATION & LEARNING,BeyondAutism,PROFESSIONAL SERVICES - GENERAL," 21,347.66 ",Education.Statutory Education Services.Curriculum,Q1,,
24/06/2016,EDUCATION & LEARNING,BeyondAutism,PROFESSIONAL SERVICES - GENERAL," 21,347.66 ",Education.Statutory Education Services.Curriculum,Q1,,
24/06/2016,EDUCATION & LEARNING,BeyondAutism,PROFESSIONAL SERVICES - GENERAL," 21,347.66 ",Education.Statutory Education Services.Curriculum,Q1,,
24/06/2016,EDUCATION & LEARNING,BeyondAutism,PROFESSIONAL SERVICES - GENERAL," 21,347.66 ",Education.Statutory Education Services.Curriculum,Q1,,
24/06/2016,EDUCATION & LEARNING,BeyondAutism,PROFESSIONAL SERVICES - GENERAL," 21,347.66 ",Education.Statutory Education Services.Curriculum,Q1,,
24/06/2016,EDUCATION & LEARNING,BeyondAutism,PROFESSIONAL SERVICES - GENERAL," 21,347.66 ",Education.Statutory Education Services.Curriculum,Q1,,
29/04/2016,ADULT SOCIAL CARE,MiHomecare Ltd,DOMICILIARY CARE - THIRD PARTY," 21,230.24 ",Social Community Care Supplies & Service.Adult.Domiciliary Care,Q1,,
22/06/2016,ADULT SOCIAL CARE,Goldknight Trading Ltd,PRIVATE CONTRACTORS PAYMENT - OTHER," 21,228.46 ",Social Community Care Supplies & Service.Adult.Mental Health Services,Q1,,
18/05/2016,"STRATEGY & COMMISSIONING - CHILDREN, DISABILITIES & PUBLIC HEALTH",Saint Mungo Association,PRIVATE CONTRACTORS PAYMENT - OTHER," 21,186.88 ","Social Community Care Supplies & Service.Adult.Temporary Accommodation, Hostels",Q1,,
22/06/2016,"STRATEGIC HOUSING, REGENERATION & COMMUNITIES",Saint Mungo Association,PRIVATE CONTRACTORS PAYMENT - OTHER," 21,186.88 ","Social Community Care Supplies & Service.Adult.Temporary Accommodation, Hostels",Q1,,
27/04/2016,CHILDREN'S SERVICES,Fostering Support Group,FOSTERING AGENCY PLACEMENTS - PRIVATE CONTRACTORS PAYMENT," 21,180.61 ",Social Community Care Supplies & Service.Children.Fostering,Q1,,
24/05/2016,CAPITAL CC,F M Conway Ltd_d,"MAINTENANCE - EQUIPMENT, FURNITURE AND MATERIALS"," 21,150.00 ","Works - Construction, Repair & Maint.Roads.Repair & Maintenance",Q1,,
29/06/2016,ADULT SOCIAL CARE,Precious Homes Ltd,RESIDENTIAL PLACEMENTS - PRIVATE CONTRACTORS PAYMENT," 21,126.43 ",Social Community Care Supplies & Service.Adult.Residential Care,Q1,,
27/04/2016,ADULT SOCIAL CARE,Precious Homes Ltd,RESIDENTIAL PLACEMENTS - PRIVATE CONTRACTORS PAYMENT," 21,126.43 ",Social Community Care Supplies & Service.Adult.Residential Care,Q1,,
26/04/2016,FINANCE,Deloitte LLP,AUDIT FEES," 21,121.00 ",Financial Services.Audit.NA,Q1,,
20/06/2016,ADULT SOCIAL CARE,Allied Healthcare (UK) Ltd,DOMICILIARY CARE - THIRD PARTY," 21,024.16 ",Social Community Care Supplies & Service.Adult.Domiciliary Care,Q1,,
22/06/2016,ADULT SOCIAL CARE,Southside Partnership,PRIVATE CONTRACTORS PAYMENT - OTHER," 21,006.26 ",Social Community Care Supplies & Service.Adult.Mental Health Services,Q1,,
26/04/2016,STRATEGY & COMMISSIONING - HOUSING & COMMUNITIES,Streatham Common Community Operations Ltd,OPEN SPACES WORKS," 21,000.00 ","Works - Construction, Repair & Maint.Open Spaces.Repair & Maintenance",Q1,,
31/05/2016,STRATEGY & COMMISSIONING - NEIGHBOURHOODS,Advising London,LEGAL FEES," 20,993.00 ",Legal Services.General Support.NA,Q1,,
03/05/2016,CHILDREN'S SERVICES,Bryn Melyn Care Ltd,RESIDENTIAL PLACEMENTS - PRIVATE CONTRACTORS PAYMENT," 20,914.29 ",Social Community Care Supplies & Service.Children.Residential Care,Q1,,
28/06/2016,CHILDREN'S SERVICES,Bryn Melyn Care Ltd,RESIDENTIAL PLACEMENTS - PRIVATE CONTRACTORS PAYMENT," 20,914.28 ",Social Community Care Supplies & Service.Children.Residential Care,Q1,,
25/05/2016,CHILDREN'S SERVICES,Quality Protects Children Ltd,RESIDENTIAL PLACEMENTS - PRIVATE CONTRACTORS PAYMENT," 20,914.28 ",Social Community Care Supplies & Service.Children.Residential Care,Q1,,
26/04/2016,"STRATEGY & COMMISSIONING - CHILDREN, DISABILITIES & PUBLIC HEALTH",Saint Mungo Association,PRIVATE CONTRACTORS PAYMENT - OTHER," 20,903.28 ","Social Community Care Supplies & Service.Adult.Temporary Accommodation, Hostels",Q1,,
16/06/2016,CHILDREN'S SERVICES,High Trees Community Development Trust,PRIVATE CONTRACTORS PAYMENT - OTHER," 20,868.00 ",Social Community Care Supplies & Service.Children.Childcare Services,Q1,,
06/04/2016,FINANCE,British Gas Business,ELECTRICITY," 20,803.21 ",Utilities.Electricity.NA,Q1,,
23/05/2016,CAPITAL CC,Focus Education (Lambeth) Ltd,PROFESSIONAL SERVICES - GENERAL," 20,782.75 ",Education.School Services.NA,Q1,,
20/05/2016,CAPITAL CC,Focus Education (Lambeth) Ltd,PROFESSIONAL SERVICES - GENERAL," 20,782.75 ",Education.School Services.NA,Q1,,
06/06/2016,CAPITAL CC,Focus Education (Lambeth) Ltd,PROFESSIONAL SERVICES - GENERAL," 20,782.75 ",Education.School Services.NA,Q1,,
23/05/2016,MAJOR CAPITAL PROGRAMMES,Focus Education (Lambeth) Ltd,PROFESSIONAL SERVICES - GENERAL," 20,782.75 ",Education.School Services.NA,Q1,,
22/06/2016,BUSINESS TRANSFORMATION,Specialist Computer Centers Plc,ICT HARDWARE," 20,736.00 ",Information Communication Technology.Hardware.NA,Q1,,
27/04/2016,CHILDREN'S SERVICES,Fostercare UK Ltd,FOSTERING AGENCY PLACEMENTS - PRIVATE CONTRACTORS PAYMENT," 20,635.71 ",Social Community Care Supplies & Service.Children.Fostering,Q1,,
24/06/2016,CHILDREN'S SERVICES,The Adolescent and Children's Trust (TACT),PRIVATE CONTRACTORS PAYMENT - OTHER," 20,625.00 ",Social Community Care Supplies & Service.Children.NA,Q1,,
28/06/2016,CHILDREN'S SERVICES,Kedleston Schools (London) Ltd,RESIDENTIAL PLACEMENTS - PRIVATE CONTRACTORS PAYMENT," 20,614.29 ",Social Community Care Supplies & Service.Children.Residential Care,Q1,,
23/05/2016,CAPITAL CC,Muse Developments Ltd,"MAINTENANCE - EQUIPMENT, FURNITURE AND MATERIALS"," 20,604.00 ","Works - Construction, Repair & Maint.Architect.NA",Q1,,
28/06/2016,CHILDREN'S SERVICES,Pebbles Care Ltd,RESIDENTIAL PLACEMENTS - PRIVATE CONTRACTORS PAYMENT," 20,571.43 ",Social Community Care Supplies & Service.Children.Residential Care,Q1,,
29/06/2016,CAPITAL CC,Landolt and Brown Ltd,"MAINTENANCE - EQUIPMENT, FURNITURE AND MATERIALS"," 20,528.00 ","Works - Construction, Repair & Maint.Architect.NA",Q1,,
26/05/2016,EDUCATION & LEARNING,A* Transport Ltd,DIRECT TRANSPORT," 20,498.00 ",Public Transport.Passenger Transport.NA,Q1,,
26/05/2016,EDUCATION & LEARNING,A* Transport Ltd,DIRECT TRANSPORT," 20,474.00 ",Public Transport.Passenger Transport.NA,Q1,,
23/05/2016,ADULT SOCIAL CARE,Allied Healthcare (UK) Ltd,DOMICILIARY CARE - THIRD PARTY," 20,465.28 ",Social Community Care Supplies & Service.Adult.Domiciliary Care,Q1,,
30/06/2016,CHILDREN'S SERVICES,Cambian Childcare Ltd,RESIDENTIAL PLACEMENTS - PRIVATE CONTRACTORS PAYMENT," 20,371.43 ",Social Community Care Supplies & Service.Children.Residential Care,Q1,,
27/04/2016,CHILDREN'S SERVICES,Help Me Grow,FOSTERING AGENCY PLACEMENTS - PRIVATE CONTRACTORS PAYMENT," 20,365.71 ",Social Community Care Supplies & Service.Children.Fostering,Q1,,
28/04/2016,BUSINESS TRANSFORMATION,Swiss Post Solutions Ltd,PRINTING," 20,353.72 ",Facilities & Management Services.Printing.NA,Q1,,
04/04/2016,"REGENERATION, PLANNING & NEIGHBOURHOODS",NSL Services Group Ltd,CONSULTANCY FEES," 20,252.25 ",Consultancy.Business.NA,Q1,,
22/04/2016,CHILDREN'S SERVICES,Inner Circle Recruitment,STAFF RECRUITMENT COSTS," 20,250.00 ",Human Resources.Recruitment & Assessment.NA,Q1,,
28/06/2016,CHILDREN'S SERVICES,Hillcrest Children Services Ltd,FOSTERING AGENCY PLACEMENTS - PRIVATE CONTRACTORS PAYMENT," 20,148.57 ",Social Community Care Supplies & Service.Children.Fostering,Q1,,
05/04/2016,ADULT SOCIAL CARE,Allied Healthcare (UK) Ltd,DOMICILIARY CARE - THIRD PARTY," 20,114.90 ",Social Community Care Supplies & Service.Adult.Domiciliary Care,Q1,,
11/05/2016,"REGENERATION, PLANNING & NEIGHBOURHOODS",GoodPeople Business Ltd,PROFESSIONAL SERVICES - GENERAL," 20,088.70 ",Human Resources.Professional & Advisory Services.NA,Q1,,
13/04/2016,"REGENERATION, PLANNING & NEIGHBOURHOODS",Cycle Confident Ltd,ARTS AND LEISURE COSTS," 20,088.00 ",Arts & Leisure Services.Sport & Fitness.NA,Q1,,
26/04/2016,FINANCE,The Technology Forge Ltd,ICT SOFTWARE," 20,045.00 ",Information Communication Technology.Software.NA,Q1,,
25/05/2016,CHILDREN'S SERVICES,Esland North Ltd,RESIDENTIAL PLACEMENTS - PRIVATE CONTRACTORS PAYMENT," 20,039.29 ",Social Community Care Supplies & Service.Children.Residential Care,Q1,,
20/05/2016,STRATEGY & COMMISSIONING - HOUSING & COMMUNITIES,Growing Against Violence,CONSULTANCY FEES," 20,000.00 ",Consultancy.Business.NA,Q1,,
01/06/2016,STRATEGY & COMMISSIONING - HOUSING & COMMUNITIES,Growing Against Violence,CONSULTANCY FEES," 20,000.00 ",Consultancy.Business.NA,Q1,,
25/04/2016,STRATEGY & COMMISSIONING - HOUSING & COMMUNITIES,Locality UK,CONSULTANCY FEES," 20,000.00 ",Consultancy.Strategic Planning.NA,Q1,,
27/04/2016,ADULT SOCIAL CARE,NHS Lambeth Clinical Commissioning Group,PAYMENT TO HEALTH AUTHORITIES," 20,000.00 ",Healthcare.Public Health.NA,Q1,,
17/06/2016,"PLANNING, TRANSPORT & DEVELOPMENT",People Empowering People,ARTS AND LEISURE COSTS," 20,000.00 ",Arts & Leisure Services.Sport & Fitness.NA,Q1,,
07/06/2016,CORPORATE AFFAIRS,PricewaterhouseCoopers LLP,AUDIT FEES," 20,000.00 ",Financial Services.Audit.NA,Q1,,
25/05/2016,CHILDREN'S SERVICES,Supporting Futures Ltd,RESIDENTIAL PLACEMENTS - PRIVATE CONTRACTORS PAYMENT," 19,928.57 ",Social Community Care Supplies & Service.Children.Residential Care,Q1,,
15/04/2016,STRATEGY & COMMISSIONING - NEIGHBOURHOODS,Nef Consulting Ltd,STAFF DEVELOPMENT AND TRAINING," 19,900.00 ",Human Resources.Training & Conferences.Training,Q1,,
11/05/2016,ADULT SOCIAL CARE,Allied Healthcare (UK) Ltd,DOMICILIARY CARE - THIRD PARTY," 19,879.20 ",Social Community Care Supplies & Service.Adult.Domiciliary Care,Q1,,
11/05/2016,ADULT SOCIAL CARE,Allied Healthcare (UK) Ltd,DOMICILIARY CARE - THIRD PARTY," 19,879.20 ",Social Community Care Supplies & Service.Adult.Domiciliary Care,Q1,,
25/04/2016,EDUCATION & LEARNING,PC Werth Ltd,"PURCHASE - EQUIPMENT, FURNITURE AND MATERIALS"," 19,873.00 ",Education.Supplies.NA,Q1,,
26/05/2016,STRATEGY & COMMISSIONING - HOUSING & COMMUNITIES,Streatham Youth & Community Trust_d,PRIVATE CONTRACTORS PAYMENT - OTHER," 19,856.00 ",Social Community Care Supplies & Service.Children.Childcare Services,Q1,,
22/04/2016,CHILDREN'S SERVICES,Inner Circle Recruitment,STAFF RECRUITMENT COSTS," 19,845.00 ",Human Resources.Recruitment & Assessment.NA,Q1,,
01/06/2016,CAPITAL CC,Jhk Construction Ltd,GRANTS AND CONTRIBUTIONS," 19,764.11 ",Financial Services.Grants.NA,Q1,,
31/05/2016,BUSINESS TRANSFORMATION,Swiss Post Solutions Ltd,PRINTING," 19,742.82 ",Facilities & Management Services.Printing.NA,Q1,,
30/06/2016,CHILDREN'S SERVICES,Cambian Childcare Ltd,RESIDENTIAL PLACEMENTS - PRIVATE CONTRACTORS PAYMENT," 19,714.28 ",Social Community Care Supplies & Service.Children.Residential Care,Q1,,
26/04/2016,"STRATEGY & COMMISSIONING - CHILDREN, DISABILITIES & PUBLIC HEALTH",Solace Women's Aid,PRIVATE CONTRACTORS PAYMENT - OTHER," 19,677.39 ",Social Community Care Supplies & Service.Adult.Advice & Counselling Services,Q1,,
28/04/2016,BUSINESS & CUSTOMER SERVICES,RME Services Ltd,FACILITIES MANAGEMENT," 19,500.00 ","Works - Construction, Repair & Maint.Buildings.Repair & Maintenance",Q1,,
26/04/2016,"STRATEGY & COMMISSIONING - CHILDREN, DISABILITIES & PUBLIC HEALTH",Age UK Lambeth,FLOATING SUPPORT SERVICES - PRIVATE CONTRACTORS PAYMENT," 19,489.97 ",Social Community Care Supplies & Service.Adult.NA,Q1,,
25/05/2016,CHILDREN'S SERVICES,Liberty House,RESIDENTIAL PLACEMENTS - PRIVATE CONTRACTORS PAYMENT," 19,485.71 ",Social Community Care Supplies & Service.Children.Residential Care,Q1,,
23/05/2016,"REGENERATION, PLANNING & NEIGHBOURHOODS",F M Conway Ltd_d,"MAINTENANCE - EQUIPMENT, FURNITURE AND MATERIALS"," 19,473.27 ","Works - Construction, Repair & Maint.Roads.Repair & Maintenance",Q1,,
23/05/2016,"REGENERATION, PLANNING & NEIGHBOURHOODS",F M Conway Ltd_d,"MAINTENANCE - EQUIPMENT, FURNITURE AND MATERIALS"," 19,473.27 ","Works - Construction, Repair & Maint.Roads.Repair & Maintenance",Q1,,
26/05/2016,EDUCATION & LEARNING,A* Transport Ltd,DIRECT TRANSPORT," 19,473.00 ",Public Transport.Passenger Transport.NA,Q1,,
18/05/2016,"STRATEGY & COMMISSIONING - CHILDREN, DISABILITIES & PUBLIC HEALTH",Look Ahead Housing & Care Ltd,FLOATING SUPPORT SERVICES - PRIVATE CONTRACTORS PAYMENT," 19,444.64 ",Social Community Care Supplies & Service.Adult.Advice & Counselling Services,Q1,,
13/04/2016,FINANCE,British Gas Business,ELECTRICITY," 19,398.12 ",Utilities.Electricity.NA,Q1,,
19/05/2016,ADULT SOCIAL CARE,Bluebird Care Lambeth,DOMICILIARY CARE - THIRD PARTY," 19,398.00 ",Social Community Care Supplies & Service.Adult.Domiciliary Care,Q1,,
21/06/2016,EDUCATION & LEARNING,Cressey Oasis Education Ltd,PROFESSIONAL SERVICES - GENERAL," 19,394.33 ",Education.School Services.NA,Q1,,
28/06/2016,CHILDREN'S SERVICES,Esland North Ltd,RESIDENTIAL PLACEMENTS - PRIVATE CONTRACTORS PAYMENT," 19,392.85 ",Social Community Care Supplies & Service.Children.Residential Care,Q1,,
17/05/2016,"REGENERATION, PLANNING & NEIGHBOURHOODS",Roots & Shoots,PREMISES HIRE - FACILITIES," 19,358.00 ",Facilities & Management Services.Room Hire.NA,Q1,,
26/05/2016,BUSINESS TRANSFORMATION,Specialist Computer Centers Plc,ICT HARDWARE," 19,353.60 ",Information Communication Technology.Hardware.NA,Q1,,
22/06/2016,ADULT SOCIAL CARE,Thames Reach,PRIVATE CONTRACTORS PAYMENT - OTHER," 19,352.20 ",Social Community Care Supplies & Service.Adult.Mental Health Services,Q1,,
18/05/2016,"STRATEGY & COMMISSIONING - CHILDREN, DISABILITIES & PUBLIC HEALTH",Thames Reach,PRIVATE CONTRACTORS PAYMENT - OTHER," 19,352.20 ",Social Community Care Supplies & Service.Adult.Sheltered Accommodation,Q1,,
09/05/2016,FINANCE,Baillie Gifford Life Ltd,PROFESSIONAL SERVICES - GENERAL," 19,352.16 ",Financial Services.Pension Funds.NA,Q1,,
17/05/2016,"REGENERATION, PLANNING & NEIGHBOURHOODS",Roots & Shoots,PREMISES HIRE - FACILITIES," 19,305.50 ",Facilities & Management Services.Room Hire.NA,Q1,,
28/06/2016,CHILDREN'S SERVICES,Supporting Futures Ltd,RESIDENTIAL PLACEMENTS - PRIVATE CONTRACTORS PAYMENT," 19,285.72 ",Social Community Care Supplies & Service.Children.Residential Care,Q1,,
03/05/2016,CHILDREN'S SERVICES,Supporting Futures Ltd,RESIDENTIAL PLACEMENTS - PRIVATE CONTRACTORS PAYMENT," 19,285.71 ",Social Community Care Supplies & Service.Children.Residential Care,Q1,,
25/05/2016,CHILDREN'S SERVICES,Mcrae Residential Care Services,RESIDENTIAL PLACEMENTS - PRIVATE CONTRACTORS PAYMENT," 19,251.00 ",Social Community Care Supplies & Service.Children.Residential Care,Q1,,
25/05/2016,CHILDREN'S SERVICES,3 Dimensions Care Ltd,RESIDENTIAL PLACEMENTS - PRIVATE CONTRACTORS PAYMENT," 19,228.86 ",Social Community Care Supplies & Service.Children.Fostering,Q1,,
22/06/2016,"NEIGHBOURHOODS, ENVIRONMENT & EMPLOYMENT",GoodPeople Business Ltd,PROFESSIONAL SERVICES - GENERAL," 19,126.33 ",Human Resources.Professional & Advisory Services.NA,Q1,,
26/04/2016,"STRATEGY & COMMISSIONING - CHILDREN, DISABILITIES & PUBLIC HEALTH",Sanctuary Carr-Gomm,PRIVATE CONTRACTORS PAYMENT - OTHER," 19,012.50 ","Social Community Care Supplies & Service.Adult.Temporary Accommodation, Long Stay",Q1,,
27/06/2016,"STRATEGIC HOUSING, REGENERATION & COMMUNITIES (HRA)",Karakusevic Carson Architects,"MAINTENANCE - EQUIPMENT, FURNITURE AND MATERIALS"," 19,000.00 ","Works - Construction, Repair & Maint.Architect.NA",Q1,,
26/04/2016,"REGENERATION, PLANNING & NEIGHBOURHOODS",Veolia Es Southwark Ltd,REFUSE COLLECTION," 18,997.61 ",Environmental Services.Waste Management.Waste Collection for Recycling,Q1,,
26/05/2016,CAPITAL CC,Pellings LLP,CONSULTANCY FEES," 18,975.00 ","Works - Construction, Repair & Maint.Consultancy.NA",Q1,,
26/05/2016,CAPITAL CC,Pellings LLP,CONSULTANCY FEES," 18,975.00 ","Works - Construction, Repair & Maint.Consultancy.NA",Q1,,
22/04/2016,CHILDREN'S SERVICES,Inner Circle Recruitment,STAFF RECRUITMENT COSTS," 18,900.00 ",Human Resources.Recruitment & Assessment.NA,Q1,,
22/04/2016,CHILDREN'S SERVICES,Inner Circle Recruitment,STAFF RECRUITMENT COSTS," 18,900.00 ",Human Resources.Recruitment & Assessment.NA,Q1,,
08/06/2016,"REGENERATION, PLANNING & NEIGHBOURHOODS",Peddle My Wheels Ltd,ARTS AND LEISURE COSTS," 18,900.00 ",Arts & Leisure Services.Sport & Fitness.NA,Q1,,
30/06/2016,CAPITAL CC,Veolia ES (UK) Ltd,REFUSE COLLECTION," 18,900.00 ",Environmental Services.Waste Management.Waste Collection,Q1,,
28/06/2016,CHILDREN'S SERVICES,Liberty House,RESIDENTIAL PLACEMENTS - PRIVATE CONTRACTORS PAYMENT," 18,857.15 ",Social Community Care Supplies & Service.Children.Residential Care,Q1,,
03/05/2016,CHILDREN'S SERVICES,Liberty House,RESIDENTIAL PLACEMENTS - PRIVATE CONTRACTORS PAYMENT," 18,857.14 ",Social Community Care Supplies & Service.Children.Residential Care,Q1,,
25/05/2016,ADULT SOCIAL CARE,Frontier Support Services Ltd,SUPPORTED OTHER ACCOMMODATION - PRIVATE CONTRACTORS PAYMENT," 18,788.44 ",Social Community Care Supplies & Service.Adult.Sheltered Accommodation,Q1,,
21/06/2016,ADULT SOCIAL CARE,BDC - NORTHERN HOUSE,RESPITE CARE - PRIVATE CONTRACTORS PAYMENT," 18,783.33 ",Social Community Care Supplies & Service.Adult.Residential Care,Q1,,
27/04/2016,ADULT SOCIAL CARE,Sanctuary Care Ltd,RESIDENTIAL PLACEMENTS - PRIVATE CONTRACTORS PAYMENT," 18,767.66 ",Social Community Care Supplies & Service.Adult.Residential Care,Q1,,
06/06/2016,CHILDREN'S SERVICES,Ethelbert Specialist Homes Ltd,RESIDENTIAL PLACEMENTS - PRIVATE CONTRACTORS PAYMENT," 18,745.99 ",Social Community Care Supplies & Service.Children.Residential Care,Q1,,
26/05/2016,EDUCATION & LEARNING,A* Transport Ltd,DIRECT TRANSPORT," 18,672.50 ",Public Transport.Passenger Transport.NA,Q1,,
21/06/2016,CAPITAL CC,Mears Ltd,BUILDING ALTERATIONS AND MATERIALS," 18,650.54 ","Works - Construction, Repair & Maint.Buildings.Repair & Maintenance",Q1,,
03/05/2016,CHILDREN'S SERVICES,Mcrae Residential Care Services,RESIDENTIAL PLACEMENTS - PRIVATE CONTRACTORS PAYMENT," 18,630.00 ",Social Community Care Supplies & Service.Children.Residential Care,Q1,,
28/06/2016,CHILDREN'S SERVICES,Mcrae Residential Care Services,RESIDENTIAL PLACEMENTS - PRIVATE CONTRACTORS PAYMENT," 18,630.00 ",Social Community Care Supplies & Service.Children.Residential Care,Q1,,
03/05/2016,CHILDREN'S SERVICES,3 Dimensions Care Ltd,RESIDENTIAL PLACEMENTS - PRIVATE CONTRACTORS PAYMENT," 18,608.57 ",Social Community Care Supplies & Service.Children.Fostering,Q1,,
28/06/2016,CHILDREN'S SERVICES,3 Dimensions Care Ltd,RESIDENTIAL PLACEMENTS - PRIVATE CONTRACTORS PAYMENT," 18,608.57 ",Social Community Care Supplies & Service.Children.Fostering,Q1,,
25/05/2016,ADULT SOCIAL CARE,High View Care Services Ltd,RESIDENTIAL PLACEMENTS - PRIVATE CONTRACTORS PAYMENT," 18,559.26 ",Social Community Care Supplies & Service.Adult.Residential Care,Q1,,
10/05/2016,HOUSING MANAGEMENT SERVICES,Mears Ltd,BUILDING ALTERATIONS AND MATERIALS," 18,527.24 ","Works - Construction, Repair & Maint.Buildings.Repair & Maintenance",Q1,,
11/04/2016,CHILDREN'S SERVICES,Freshstart Care Solutions Ltd,RENTS PAYABLE," 18,457.15 ",Social Community Care Supplies & Service.Children.Residential Care,Q1,,
10/05/2016,EDUCATION & LEARNING,London Grid for Learning,ICT MAINTENANCE AND SUPPORT," 18,457.00 ",Information Communication Technology.Services.Website Development,Q1,,
26/05/2016,EDUCATION & LEARNING,A* Transport Ltd,DIRECT TRANSPORT," 18,446.50 ",Public Transport.Passenger Transport.NA,Q1,,
31/05/2016,CHILDREN'S SERVICES,Catch22,PRIVATE CONTRACTORS PAYMENT - OTHER," 18,444.82 ",Social Community Care Supplies & Service.Children.NA,Q1,,
27/05/2016,BUSINESS TRANSFORMATION,Virgin Media Business,LAND LINE TELEPHONE COSTS," 18,335.49 ",Information Communication Technology.Telecommunications.NA,Q1,,
14/04/2016,CAPITAL CC,Baily Garner LLP,FACILITIES MANAGEMENT," 18,293.65 ","Works - Construction, Repair & Maint.Buildings.Repair & Maintenance",Q1,,
14/04/2016,CAPITAL CC,Baily Garner LLP,FACILITIES MANAGEMENT," 18,293.65 ","Works - Construction, Repair & Maint.Buildings.Repair & Maintenance",Q1,,
25/05/2016,ADULT SOCIAL CARE,Parkcare Homes Ltd (No.2) - KENT,RESIDENTIAL PLACEMENTS - PRIVATE CONTRACTORS PAYMENT," 18,228.31 ",Social Community Care Supplies & Service.Adult.Residential Care,Q1,,
27/04/2016,ADULT SOCIAL CARE,Frontier Support Services Ltd,SUPPORTED OTHER ACCOMMODATION - PRIVATE CONTRACTORS PAYMENT," 18,182.36 ",Social Community Care Supplies & Service.Adult.Sheltered Accommodation,Q1,,
28/06/2016,ADULT SOCIAL CARE,Frontier Support Services Ltd,SUPPORTED OTHER ACCOMMODATION - PRIVATE CONTRACTORS PAYMENT," 18,182.35 ",Social Community Care Supplies & Service.Adult.Sheltered Accommodation,Q1,,
14/04/2016,CAPITAL CC,Baily Garner LLP,FACILITIES MANAGEMENT," 18,141.71 ","Works - Construction, Repair & Maint.Buildings.Repair & Maintenance",Q1,,
14/04/2016,CAPITAL CC,Baily Garner LLP,FACILITIES MANAGEMENT," 18,141.59 ","Works - Construction, Repair & Maint.Buildings.Repair & Maintenance",Q1,,
26/04/2016,"STRATEGY & COMMISSIONING - CHILDREN, DISABILITIES & PUBLIC HEALTH",Thames Reach,STREET POPULATION SERVICES - PRIVATE CONTRACTORS PAYMENT," 18,120.24 ",Social Community Care Supplies & Service.Adult.Sheltered Accommodation,Q1,,
25/05/2016,CHILDREN'S SERVICES,Bryn Melyn Care Ltd,RESIDENTIAL PLACEMENTS - PRIVATE CONTRACTORS PAYMENT," 18,118.29 ",Social Community Care Supplies & Service.Children.Residential Care,Q1,,
23/05/2016,"REGENERATION, PLANNING & NEIGHBOURHOODS",F M Conway Ltd_d,"MAINTENANCE - EQUIPMENT, FURNITURE AND MATERIALS"," 18,058.53 ","Works - Construction, Repair & Maint.Roads.Repair & Maintenance",Q1,,
23/05/2016,"REGENERATION, PLANNING & NEIGHBOURHOODS",F M Conway Ltd_d,"MAINTENANCE - EQUIPMENT, FURNITURE AND MATERIALS"," 18,058.53 ","Works - Construction, Repair & Maint.Roads.Repair & Maintenance",Q1,,
26/05/2016,EDUCATION & LEARNING,A* Transport Ltd,DIRECT TRANSPORT," 18,046.50 ",Public Transport.Passenger Transport.NA,Q1,,
25/05/2016,CHILDREN'S SERVICES,Cambian SignPost Ltd,RESIDENTIAL PLACEMENTS - PRIVATE CONTRACTORS PAYMENT," 18,045.72 ",Social Community Care Supplies & Service.Children.Residential Care,Q1,,
31/05/2016,CAPITAL CC,Grant Thornton,PROFESSIONAL SERVICES - GENERAL," 18,042.32 ",Financial Services.Accountancy.NA,Q1,,
27/04/2016,ADULT SOCIAL CARE,Salvation Army,RESIDENTIAL PLACEMENTS - PRIVATE CONTRACTORS PAYMENT," 18,036.04 ",Social Community Care Supplies & Service.Adult.Residential Care,Q1,,
07/04/2016,EDUCATION & LEARNING,A* Transport Ltd,DIRECT TRANSPORT," 18,033.00 ",Public Transport.Passenger Transport.NA,Q1,,
11/05/2016,"REGENERATION, PLANNING & NEIGHBOURHOODS",Wandsworth Borough Council,BUSINESS RATES PAYABLE," 18,016.25 ",Human Resources.Training & Conferences.Training,Q1,,
20/06/2016,POLICY & COMMUNICATIONS,Whole Nine Yards Productions Ltd,EVENTS," 18,000.00 ",Arts & Leisure Services.Events.NA,Q1,,
18/04/2016,CAPITAL CC,CVU_d,"MAINTENANCE - EQUIPMENT, FURNITURE AND MATERIALS"," 17,978.54 ","Works - Construction, Repair & Maint.Roads.Construction",Q1,,
27/04/2016,EDUCATION & LEARNING,Morley College Ltd,PAYMENTS TO VOLUNTARY SECTOR," 17,938.54 ",Education.Adult & Further Education Services.NA,Q1,,
19/04/2016,EDUCATION & LEARNING,Cressey Oasis Education Ltd,PROFESSIONAL SERVICES - GENERAL," 17,901.07 ",Education.School Services.NA,Q1,,
28/06/2016,BUSINESS TRANSFORMATION,Swiss Post Solutions Ltd,PRINTING," 17,863.69 ",Facilities & Management Services.Printing.NA,Q1,,
28/04/2016,CAPITAL CC,F M Conway Ltd_d,"MAINTENANCE - EQUIPMENT, FURNITURE AND MATERIALS"," 17,828.23 ","Works - Construction, Repair & Maint.Roads.Repair & Maintenance",Q1,,
19/05/2016,ADULT SOCIAL CARE,Bluebird Care Lambeth,DOMICILIARY CARE - THIRD PARTY," 17,742.00 ",Social Community Care Supplies & Service.Adult.Domiciliary Care,Q1,,
17/06/2016,BUSINESS & CUSTOMER SERVICES,Clapham Business Improvement District,GENERAL OFFICE EXPENSES," 17,736.00 ",Consultancy.Business.NA,Q1,,
17/05/2016,"REGENERATION, PLANNING & NEIGHBOURHOODS",Veolia ES (UK) Ltd,STREET SWEEPING," 17,707.72 ",Environmental Services.Street Cleansing.Sweeping,Q1,,
13/06/2016,CORPORATE AFFAIRS,PricewaterhouseCoopers LLP,AUDIT FEES," 17,680.00 ",Financial Services.Audit.NA,Q1,,
26/04/2016,"STRATEGY & COMMISSIONING - CHILDREN, DISABILITIES & PUBLIC HEALTH",Thames Reach,PRIVATE CONTRACTORS PAYMENT - OTHER," 17,660.87 ",Social Community Care Supplies & Service.Adult.Sheltered Accommodation,Q1,,
29/06/2016,ADULT SOCIAL CARE,Parkcare Homes Ltd (No.2) - KENT,RESIDENTIAL PLACEMENTS - PRIVATE CONTRACTORS PAYMENT," 17,640.30 ",Social Community Care Supplies & Service.Adult.Residential Care,Q1,,
27/04/2016,ADULT SOCIAL CARE,Parkcare Homes Ltd (No.2) - KENT,RESIDENTIAL PLACEMENTS - PRIVATE CONTRACTORS PAYMENT," 17,640.30 ",Social Community Care Supplies & Service.Adult.Residential Care,Q1,,
04/04/2016,BUSINESS TRANSFORMATION,Specialist Computer Centers Plc,CONSULTANCY FEES," 17,600.00 ",Information Communication Technology.Services.Consultancy,Q1,,
20/06/2016,EDUCATION & LEARNING,Cressey Oasis Education Ltd,PROFESSIONAL SERVICES - GENERAL," 17,576.00 ",Education.School Services.NA,Q1,,
15/06/2016,BUSINESS & CUSTOMER SERVICES,Emmaus South Lambeth Community,PRIVATE CONTRACTORS PAYMENT - OTHER," 17,500.00 ",Social Community Care Supplies & Service.Adult.Sheltered Accommodation,Q1,,
26/04/2016,BUSINESS TRANSFORMATION,Northgate Public Services (UK) Limited,CONSULTANCY FEES," 17,500.00 ",Information Communication Technology.Services.Consultancy,Q1,,
03/05/2016,CHILDREN'S SERVICES,Cambian SignPost Ltd,RESIDENTIAL PLACEMENTS - PRIVATE CONTRACTORS PAYMENT," 17,463.60 ",Social Community Care Supplies & Service.Children.Residential Care,Q1,,
28/06/2016,CHILDREN'S SERVICES,Cambian SignPost Ltd,RESIDENTIAL PLACEMENTS - PRIVATE CONTRACTORS PAYMENT," 17,463.60 ",Social Community Care Supplies & Service.Children.Residential Care,Q1,,
06/04/2016,HOUSING MANAGEMENT SERVICES,High Trees Community Development Trust,PROFESSIONAL SERVICES - GENERAL," 17,453.50 ",Education.Adult & Further Education Services.NA,Q1,,
25/05/2016,CHILDREN'S SERVICES,Quality Protects Children Ltd,RESIDENTIAL PLACEMENTS - PRIVATE CONTRACTORS PAYMENT," 17,448.57 ",Social Community Care Supplies & Service.Children.Residential Care,Q1,,
17/05/2016,ADULT SOCIAL CARE,Thames Homecare Ltd,DOMICILIARY CARE - THIRD PARTY," 17,435.25 ",Social Community Care Supplies & Service.Adult.Domiciliary Care,Q1,,
26/05/2016,EDUCATION & LEARNING,A* Transport Ltd,DIRECT TRANSPORT," 17,422.50 ",Public Transport.Passenger Transport.NA,Q1,,
10/06/2016,ADULT SOCIAL CARE,Sanctuary Care Ltd,DOMICILIARY CARE - THIRD PARTY," 17,404.55 ",Social Community Care Supplies & Service.Adult.Residential Care,Q1,,
08/04/2016,HOUSING MANAGEMENT SERVICES,J S Estates Ltd,RENTS PAYABLE," 17,404.20 ",Financial Services.Rents.NA,Q1,,
28/06/2016,CHILDREN'S SERVICES,Freshstart Care Solutions Ltd,RENTS PAYABLE," 17,391.00 ",Social Community Care Supplies & Service.Children.Residential Care,Q1,,
27/05/2016,"STRATEGY & COMMISSIONING - CHILDREN, DISABILITIES & PUBLIC HEALTH",High Trees Community Development Trust,PRIVATE CONTRACTORS PAYMENT - OTHER," 17,382.50 ",Social Community Care Supplies & Service.Children.Childcare Services,Q1,,
25/05/2016,ADULT SOCIAL CARE,Sanctuary Care Ltd,DOMICILIARY CARE - THIRD PARTY," 17,336.75 ",Social Community Care Supplies & Service.Adult.Residential Care,Q1,,
23/05/2016,"STRATEGY & COMMISSIONING - CHILDREN, DISABILITIES & PUBLIC HEALTH",Croydon Health Services NHS Trust,PAYMENT TO HEALTH AUTHORITIES," 17,303.20 ",Healthcare.Public Health.NA,Q1,,
24/05/2016,HUMAN RESOURCES AND ORGANISATIONAL DEVELOPMENT,JGP Resourcing Ltd,STAFF RECRUITMENT COSTS," 17,300.00 ",Human Resources.Recruitment & Assessment.NA,Q1,,
03/05/2016,CHILDREN'S SERVICES,Hillcrest Children Services Ltd,RESIDENTIAL PLACEMENTS - PRIVATE CONTRACTORS PAYMENT," 17,285.72 ",Social Community Care Supplies & Service.Children.Residential Care,Q1,,
23/05/2016,EDUCATION & LEARNING,The Chelsea Group of Children Ltd,PROFESSIONAL SERVICES - GENERAL," 17,285.00 ",Education.School Services.NA,Q1,,
25/05/2016,CHILDREN'S SERVICES,Keys 16 Plus Independent Living Services Ltd,RESIDENTIAL PLACEMENTS - PRIVATE CONTRACTORS PAYMENT," 17,271.43 ",Social Community Care Supplies & Service.Adult.Sheltered Accommodation,Q1,,
18/05/2016,CAPITAL CC,Pellings LLP,CONSULTANCY FEES," 17,249.74 ","Works - Construction, Repair & Maint.Consultancy.NA",Q1,,
17/05/2016,BUSINESS & CUSTOMER SERVICES,Cofely Workplace Ltd,SECURITY SERVICES (EXCLUDING PREMISES)," 17,229.23 ",Financial Services.Cash Collection.NA,Q1,,
22/06/2016,EDUCATION & LEARNING,Cressey Oasis Education Ltd,PROFESSIONAL SERVICES - GENERAL," 17,134.33 ",Education.School Services.NA,Q1,,
24/06/2016,EDUCATION & LEARNING,BeyondAutism,PROFESSIONAL SERVICES - GENERAL," 17,115.70 ",Education.Statutory Education Services.Curriculum,Q1,,
24/06/2016,EDUCATION & LEARNING,BeyondAutism,PROFESSIONAL SERVICES - GENERAL," 17,115.70 ",Education.Statutory Education Services.Curriculum,Q1,,
26/04/2016,"STRATEGY & COMMISSIONING - CHILDREN, DISABILITIES & PUBLIC HEALTH",Thames Reach,STREET POPULATION SERVICES - PRIVATE CONTRACTORS PAYMENT," 17,073.36 ",Social Community Care Supplies & Service.Adult.Sheltered Accommodation,Q1,,
25/05/2016,ADULT SOCIAL CARE,The Hesley Group Ltd,RESIDENTIAL PLACEMENTS - PRIVATE CONTRACTORS PAYMENT," 17,067.71 ",Social Community Care Supplies & Service.Adult.Residential Care,Q1,,
25/05/2016,ADULT SOCIAL CARE,The Hesley Group Ltd,RESIDENTIAL PLACEMENTS - PRIVATE CONTRACTORS PAYMENT," 17,067.71 ",Social Community Care Supplies & Service.Adult.Residential Care,Q1,,
10/06/2016,BUSINESS TRANSFORMATION,Vodafone Ltd,LAND LINE TELEPHONE COSTS," 16,973.73 ",Information Communication Technology.Telecommunications.NA,Q1,,
10/06/2016,BUSINESS TRANSFORMATION,Vodafone Ltd,LAND LINE TELEPHONE COSTS," 16,973.73 ",Information Communication Technology.Telecommunications.NA,Q1,,
10/06/2016,ADULT SOCIAL CARE,Sanctuary Care Ltd,DOMICILIARY CARE - THIRD PARTY," 16,957.07 ",Social Community Care Supplies & Service.Adult.Residential Care,Q1,,
22/06/2016,EDUCATION & LEARNING,Cressey Oasis Education Ltd,PROFESSIONAL SERVICES - GENERAL," 16,924.79 ",Education.School Services.NA,Q1,,
28/06/2016,EDUCATION & LEARNING,Cressey Oasis Education Ltd,PROFESSIONAL SERVICES - GENERAL," 16,924.45 ",Education.School Services.NA,Q1,,
02/06/2016,STRATEGY & COMMISSIONING - HOUSING & COMMUNITIES (HRA),Devonshires Solicitors,LEGAL FEES," 16,898.50 ",Legal Services.General Support.NA,Q1,,
28/06/2016,CHILDREN'S SERVICES,Quality Protects Children Ltd,RESIDENTIAL PLACEMENTS - PRIVATE CONTRACTORS PAYMENT," 16,885.72 ",Social Community Care Supplies & Service.Children.Residential Care,Q1,,
03/05/2016,CHILDREN'S SERVICES,Quality Protects Children Ltd,RESIDENTIAL PLACEMENTS - PRIVATE CONTRACTORS PAYMENT," 16,885.71 ",Social Community Care Supplies & Service.Children.Residential Care,Q1,,
27/06/2016,CHILDREN'S SERVICES,Hempsall Consultancies Ltd,"PURCHASE - EQUIPMENT, FURNITURE AND MATERIALS"," 16,834.00 ",Domestic Goods.Commercial.NA,Q1,,
25/04/2016,"STRATEGY & COMMISSIONING - CHILDREN, DISABILITIES & PUBLIC HEALTH",Hempsall Consultancies Ltd,"PURCHASE - EQUIPMENT, FURNITURE AND MATERIALS"," 16,834.00 ",Domestic Goods.Commercial.NA,Q1,,
24/05/2016,"REGENERATION, PLANNING & NEIGHBOURHOODS",King's College London,PRIVATE CONTRACTORS PAYMENT - OTHER," 16,816.00 ",Environmental Services.Monitoring.NA,Q1,,
05/04/2016,"SENIOR MANAGEMENT - CHILDREN, ADULTS AND HEALTH",NHS Lambeth Clinical Commissioning Group,PAYMENT TO HEALTH AUTHORITIES," 16,810.26 ",Healthcare.Public Health.NA,Q1,,
07/06/2016,CAPITAL CC,Driver Trett,"MAINTENANCE - EQUIPMENT, FURNITURE AND MATERIALS"," 16,808.30 ",Consultancy.Business.NA,Q1,,
11/05/2016,STRATEGY & COMMISSIONING - NEIGHBOURHOODS,West London Mission,PRIVATE CONTRACTORS PAYMENT - OTHER," 16,800.00 ",Social Community Care Supplies & Service.Adult.Advice & Counselling Services,Q1,,
08/06/2016,"STRATEGY & COMMISSIONING - CHILDREN, DISABILITIES & PUBLIC HEALTH",Learning Unlimited,STAFF DEVELOPMENT AND TRAINING," 16,739.00 ",Human Resources.Training & Conferences.Conferences,Q1,,
16/05/2016,"STRATEGY & COMMISSIONING - CHILDREN, DISABILITIES & PUBLIC HEALTH",Westbury Chemist,PAYMENT TO HEALTH AUTHORITIES," 16,722.00 ",Healthcare.Public Health.NA,Q1,,
03/05/2016,CHILDREN'S SERVICES,Keys 16 Plus Independent Living Services Ltd,RESIDENTIAL PLACEMENTS - PRIVATE CONTRACTORS PAYMENT," 16,714.29 ",Social Community Care Supplies & Service.Adult.Sheltered Accommodation,Q1,,
28/06/2016,CHILDREN'S SERVICES,Keys 16 Plus Independent Living Services Ltd,RESIDENTIAL PLACEMENTS - PRIVATE CONTRACTORS PAYMENT," 16,714.28 ",Social Community Care Supplies & Service.Adult.Sheltered Accommodation,Q1,,
27/06/2016,EDUCATION & LEARNING,Cressey Oasis Education Ltd,PROFESSIONAL SERVICES - GENERAL," 16,695.13 ",Education.School Services.NA,Q1,,
22/06/2016,ADULT SOCIAL CARE,Look Ahead Housing & Care Ltd,FLOATING SUPPORT SERVICES - PRIVATE CONTRACTORS PAYMENT," 16,666.83 ",Social Community Care Supplies & Service.Adult.Mental Health Services,Q1,,
19/04/2016,"REGENERATION, PLANNING & NEIGHBOURHOODS",Lambeth Lighting Services,"PURCHASE - EQUIPMENT, FURNITURE AND MATERIALS"," 16,621.57 ",Highway Equipment & Materials.Street Lighting.NA,Q1,,
24/06/2016,EDUCATION & LEARNING,Eagle House School,PROFESSIONAL SERVICES - GENERAL," 16,618.33 ",Education.School Services.NA,Q1,,
24/06/2016,EDUCATION & LEARNING,Eagle House School,PROFESSIONAL SERVICES - GENERAL," 16,618.33 ",Education.School Services.NA,Q1,,
24/06/2016,EDUCATION & LEARNING,Eagle House School,PROFESSIONAL SERVICES - GENERAL," 16,618.33 ",Education.School Services.NA,Q1,,
07/04/2016,"REGENERATION, PLANNING & NEIGHBOURHOODS",Ove Arup & Partners Ltd,"MAINTENANCE - EQUIPMENT, FURNITURE AND MATERIALS"," 16,600.00 ","Works - Construction, Repair & Maint.Architect.NA",Q1,,
24/06/2016,BUSINESS & CUSTOMER SERVICES,Interserve Consultind,CONSULTANCY FEES," 16,531.68 ","Works - Construction, Repair & Maint.Consultancy.NA",Q1,,
30/06/2016,ADULT SOCIAL CARE,The Hesley Group Ltd,RESIDENTIAL PLACEMENTS - PRIVATE CONTRACTORS PAYMENT," 16,517.15 ",Social Community Care Supplies & Service.Adult.Residential Care,Q1,,
30/06/2016,ADULT SOCIAL CARE,The Hesley Group Ltd,RESIDENTIAL PLACEMENTS - PRIVATE CONTRACTORS PAYMENT," 16,517.15 ",Social Community Care Supplies & Service.Adult.Residential Care,Q1,,
27/04/2016,ADULT SOCIAL CARE,The Hesley Group Ltd,RESIDENTIAL PLACEMENTS - PRIVATE CONTRACTORS PAYMENT," 16,517.14 ",Social Community Care Supplies & Service.Adult.Residential Care,Q1,,
27/04/2016,ADULT SOCIAL CARE,The Hesley Group Ltd,RESIDENTIAL PLACEMENTS - PRIVATE CONTRACTORS PAYMENT," 16,517.14 ",Social Community Care Supplies & Service.Adult.Residential Care,Q1,,
22/06/2016,"NEIGHBOURHOODS, ENVIRONMENT & EMPLOYMENT",Contender Systems Ltd,ICT SOFTWARE," 16,471.55 ",Information Communication Technology.Software.NA,Q1,,
18/05/2016,"STRATEGY & COMMISSIONING - CHILDREN, DISABILITIES & PUBLIC HEALTH",NACRO,PRIVATE CONTRACTORS PAYMENT - OTHER," 16,462.48 ",Social Community Care Supplies & Service.Adult.NA,Q1,,
22/06/2016,"STRATEGIC HOUSING, REGENERATION & COMMUNITIES",NACRO,PRIVATE CONTRACTORS PAYMENT - OTHER," 16,462.48 ",Social Community Care Supplies & Service.Adult.NA,Q1,,
29/06/2016,ADULT SOCIAL CARE,Saffronland Homes,RESIDENTIAL PLACEMENTS - PRIVATE CONTRACTORS PAYMENT," 16,429.13 ",Social Community Care Supplies & Service.Adult.Residential Care,Q1,,
30/06/2016,CHILDREN'S SERVICES,Cambian Childcare Ltd,RESIDENTIAL PLACEMENTS - PRIVATE CONTRACTORS PAYMENT," 16,405.72 ",Social Community Care Supplies & Service.Children.Residential Care,Q1,,
08/04/2016,ADULT SOCIAL CARE,Sanctuary Care Ltd,DOMICILIARY CARE - THIRD PARTY," 16,268.90 ",Social Community Care Supplies & Service.Adult.Residential Care,Q1,,
28/06/2016,EDUCATION & LEARNING,LVS Hassocks,PROFESSIONAL SERVICES - GENERAL," 16,226.00 ",Education.School Services.NA,Q1,,
28/06/2016,BUSINESS TRANSFORMATION,Fotheringham Associates Ltd,CONSULTANCY FEES," 16,200.00 ",Information Communication Technology.Services.Consultancy,Q1,,
18/04/2016,ADULT SOCIAL CARE,Glen Care Group,RESIDENTIAL PLACEMENTS - PRIVATE CONTRACTORS PAYMENT," 16,200.00 ",Social Community Care Supplies & Service.Adult.Residential Care,Q1,,
11/05/2016,CHILDREN'S SERVICES,XCEL 2000 Fostercare Services Ltd,FOSTERING AGENCY PLACEMENTS - PRIVATE CONTRACTORS PAYMENT," 16,183.57 ",Social Community Care Supplies & Service.Children.Fostering,Q1,,
30/06/2016,"STRATEGIC HOUSING, REGENERATION & COMMUNITIES",Eurovia Infrastructure Ltd_d,SECURITY SERVICES (EXCLUDING PREMISES)," 16,175.72 ",Facilities & Management Services.Security.Closed-Circuit Television,Q1,,
30/06/2016,"STRATEGIC HOUSING, REGENERATION & COMMUNITIES",Eurovia Infrastructure Ltd_d,SECURITY SERVICES (EXCLUDING PREMISES)," 16,175.72 ",Facilities & Management Services.Security.Closed-Circuit Television,Q1,,
25/05/2016,"STRATEGY & COMMISSIONING - CHILDREN, DISABILITIES & PUBLIC HEALTH",Barts Health NHS Trust,PAYMENT TO HEALTH AUTHORITIES," 16,056.00 ",Healthcare.Public Health.NA,Q1,,
14/06/2016,HOUSING MANAGEMENT SERVICES,Judge & Priestley Solicitors,LEGAL FEES," 16,055.50 ",Legal Services.General Support.NA,Q1,,
21/06/2016,CHILDREN'S SERVICES,Freshstart Care Solutions Ltd,RENTS PAYABLE," 16,028.57 ",Social Community Care Supplies & Service.Children.Residential Care,Q1,,
24/05/2016,HOUSING NEEDS,Brixton Advice Centre,LEGAL FEES," 16,000.00 ",Social Community Care Supplies & Service.Adult.Advice & Counselling Services,Q1,,
22/04/2016,HUMAN RESOURCES AND ORGANISATIONAL DEVELOPMENT,Learning Pool Ltd,MEMBERSHIP AND SUBSCRIPTIONS," 16,000.00 ",Financial Services.Subscriptions.NA,Q1,,
27/05/2016,"REGENERATION, PLANNING & NEIGHBOURHOODS",Stitch Studio,CONSULTANCY FEES," 16,000.00 ",Consultancy.Business.NA,Q1,,
31/05/2016,"REGENERATION, PLANNING & NEIGHBOURHOODS",GoodPeople Business Ltd,PROFESSIONAL SERVICES - GENERAL," 15,999.20 ",Human Resources.Professional & Advisory Services.NA,Q1,,
25/05/2016,ADULT SOCIAL CARE,Autus Court (Precious Homes Ltd),RESIDENTIAL PLACEMENTS - PRIVATE CONTRACTORS PAYMENT," 15,976.07 ",Social Community Care Supplies & Service.Adult.Residential Care,Q1,,
28/06/2016,BUSINESS TRANSFORMATION,Fotheringham Associates Ltd,CONSULTANCY FEES," 15,960.00 ",Information Communication Technology.Services.Consultancy,Q1,,
10/05/2016,HOUSING MANAGEMENT SERVICES,Housemark Ltd,MEMBERSHIP AND SUBSCRIPTIONS," 15,959.68 ",Financial Services.Subscriptions.NA,Q1,,
16/05/2016,POLICY & COMMUNICATIONS,Cedarsave Communications Ltd,"ADVERTISING, PUBLICITY AND MARKETING"," 15,958.51 ",Facilities & Management Services.Advertising.Statutory,Q1,,
28/06/2016,CAPITAL CC,Lamya Construction Ltd,FACILITIES MANAGEMENT," 15,940.00 ","Works - Construction, Repair & Maint.Buildings.Repair & Maintenance",Q1,,
23/05/2016,"REGENERATION, PLANNING & NEIGHBOURHOODS",F M Conway Ltd_d,"MAINTENANCE - EQUIPMENT, FURNITURE AND MATERIALS"," 15,884.10 ","Works - Construction, Repair & Maint.Roads.Repair & Maintenance",Q1,,
23/05/2016,"REGENERATION, PLANNING & NEIGHBOURHOODS",F M Conway Ltd_d,"MAINTENANCE - EQUIPMENT, FURNITURE AND MATERIALS"," 15,884.10 ","Works - Construction, Repair & Maint.Roads.Repair & Maintenance",Q1,,
27/04/2016,ADULT SOCIAL CARE,High View Care Services Ltd,RESIDENTIAL PLACEMENTS - PRIVATE CONTRACTORS PAYMENT," 15,873.19 ",Social Community Care Supplies & Service.Adult.Residential Care,Q1,,
24/06/2016,EDUCATION & LEARNING,Eagle House School,PROFESSIONAL SERVICES - GENERAL," 15,867.33 ",Education.School Services.NA,Q1,,
24/06/2016,EDUCATION & LEARNING,Eagle House School,PROFESSIONAL SERVICES - GENERAL," 15,867.33 ",Education.School Services.NA,Q1,,
24/06/2016,EDUCATION & LEARNING,Eagle House School,PROFESSIONAL SERVICES - GENERAL," 15,867.33 ",Education.School Services.NA,Q1,,
10/06/2016,"STRATEGY & COMMISSIONING - CHILDREN, DISABILITIES & PUBLIC HEALTH",Mawbey Group Practice,PAYMENT TO HEALTH AUTHORITIES," 15,817.68 ",Healthcare.Public Health.NA,Q1,,
01/04/2016,CHILDREN'S SERVICES,Lambeth Contact a Family,PRIVATE CONTRACTORS PAYMENT - OTHER," 15,804.25 ",Social Community Care Supplies & Service.Children.NA,Q1,,
26/05/2016,EDUCATION & LEARNING,A* Transport Ltd,DIRECT TRANSPORT," 15,801.00 ",Public Transport.Passenger Transport.NA,Q1,,
06/04/2016,FINANCE,British Gas Business,ELECTRICITY," 15,796.56 ",Utilities.Electricity.NA,Q1,,
19/04/2016,"REGENERATION, PLANNING & NEIGHBOURHOODS",Eurovia Infrastructure Ltd_d,SECURITY SERVICES (EXCLUDING PREMISES)," 15,781.19 ",Facilities & Management Services.Security.Closed-Circuit Television,Q1,,
20/04/2016,"REGENERATION, PLANNING & NEIGHBOURHOODS",Eurovia Infrastructure Ltd_d,SECURITY SERVICES (EXCLUDING PREMISES)," 15,781.19 ",Facilities & Management Services.Security.Closed-Circuit Television,Q1,,
20/04/2016,"REGENERATION, PLANNING & NEIGHBOURHOODS",Eurovia Infrastructure Ltd_d,SECURITY SERVICES (EXCLUDING PREMISES)," 15,781.19 ",Facilities & Management Services.Security.Closed-Circuit Television,Q1,,
29/04/2016,"REGENERATION, PLANNING & NEIGHBOURHOODS",Farthest Gate Ltd,ICT SOFTWARE," 15,750.00 ",Information Communication Technology.Software.NA,Q1,,
25/05/2016,ADULT SOCIAL CARE,The Rathbone Centre,SUPPORTED OTHER ACCOMMODATION - PRIVATE CONTRACTORS PAYMENT," 15,703.94 ",Social Community Care Supplies & Service.Adult.Sheltered Accommodation,Q1,,
26/05/2016,EDUCATION & LEARNING,A* Transport Ltd,DIRECT TRANSPORT," 15,658.00 ",Public Transport.Passenger Transport.NA,Q1,,
25/05/2016,CHILDREN'S SERVICES,Ethelbert Specialist Homes Ltd,RESIDENTIAL PLACEMENTS - PRIVATE CONTRACTORS PAYMENT," 15,595.48 ",Social Community Care Supplies & Service.Children.Residential Care,Q1,,
18/05/2016,"STRATEGY & COMMISSIONING - CHILDREN, DISABILITIES & PUBLIC HEALTH",Look Ahead Housing & Care Ltd,PRIVATE CONTRACTORS PAYMENT - OTHER," 15,582.60 ",Social Community Care Supplies & Service.Adult.Advice & Counselling Services,Q1,,
28/06/2016,CHILDREN'S SERVICES,Hillcrest Children Services Ltd,RESIDENTIAL PLACEMENTS - PRIVATE CONTRACTORS PAYMENT," 15,514.28 ",Social Community Care Supplies & Service.Children.Residential Care,Q1,,
25/05/2016,CHILDREN'S SERVICES,Merryvale Children's Home,RESIDENTIAL PLACEMENTS - PRIVATE CONTRACTORS PAYMENT," 15,500.00 ",Social Community Care Supplies & Service.Children.Residential Care,Q1,,
25/05/2016,CHILDREN'S SERVICES,Merryvale Children's Home,RESIDENTIAL PLACEMENTS - PRIVATE CONTRACTORS PAYMENT," 15,500.00 ",Social Community Care Supplies & Service.Children.Residential Care,Q1,,
25/05/2016,CHILDREN'S SERVICES,Merryvale Children's Home,RESIDENTIAL PLACEMENTS - PRIVATE CONTRACTORS PAYMENT," 15,500.00 ",Social Community Care Supplies & Service.Children.Residential Care,Q1,,
08/06/2016,EDUCATION & LEARNING,Octavia House Schools Ltd,PROFESSIONAL SERVICES - GENERAL," 15,500.00 ",Education.School Services.NA,Q1,,
08/06/2016,EDUCATION & LEARNING,Octavia House Schools Ltd,PROFESSIONAL SERVICES - GENERAL," 15,500.00 ",Education.School Services.NA,Q1,,
08/06/2016,EDUCATION & LEARNING,Octavia House Schools Ltd,PROFESSIONAL SERVICES - GENERAL," 15,500.00 ",Education.School Services.NA,Q1,,
21/04/2016,STRATEGY & COMMISSIONING - HOUSING & COMMUNITIES (HRA),Roupell Park Resident Management Organisation Ltd,MAST INCOME," 15,500.00 ",Housing Management.Arms Length Management Organisations.NA,Q1,,
28/06/2016,ADULT SOCIAL CARE,Autus Court (Precious Homes Ltd),RESIDENTIAL PLACEMENTS - PRIVATE CONTRACTORS PAYMENT," 15,460.72 ",Social Community Care Supplies & Service.Adult.Residential Care,Q1,,
27/04/2016,ADULT SOCIAL CARE,Autus Court (Precious Homes Ltd),RESIDENTIAL PLACEMENTS - PRIVATE CONTRACTORS PAYMENT," 15,460.71 ",Social Community Care Supplies & Service.Adult.Residential Care,Q1,,
16/06/2016,ADULT SOCIAL CARE,Metropolitan Support Trust,PRIVATE CONTRACTORS PAYMENT - OTHER," 15,456.57 ",Social Community Care Supplies & Service.Adult.Sheltered Accommodation,Q1,,
01/06/2016,CHILDREN'S SERVICES,Lewis Reed (WAV) Ltd,PRIVATE CONTRACTORS PAYMENT - OTHER," 15,452.00 ",Social Community Care Supplies & Service.Children.NA,Q1,,
27/04/2016,ADULT SOCIAL CARE,Clifton Manor,RESIDENTIAL PLACEMENTS - PRIVATE CONTRACTORS PAYMENT," 15,429.96 ",Social Community Care Supplies & Service.Adult.Residential Care,Q1,,
02/06/2016,EDUCATION & LEARNING,Kelly Executive,CLIENT TRANSPORT," 15,359.00 ",Public Transport.Taxi Services.NA,Q1,,
02/06/2016,EDUCATION & LEARNING,Kelly Executive,CLIENT TRANSPORT," 15,359.00 ",Public Transport.Taxi Services.NA,Q1,,
28/06/2016,EDUCATION & LEARNING,Kelly Executive,CLIENT TRANSPORT," 15,265.00 ",Public Transport.Taxi Services.NA,Q1,,
05/04/2016,EDUCATION & LEARNING,Cambian Autism Services Ltd,PROFESSIONAL SERVICES - GENERAL," 15,258.88 ",Education.School Services.NA,Q1,,
27/04/2016,ADULT SOCIAL CARE,Rosedene Nursing Home,NURSING HOMES - PRIVATE CONTRACTORS PAYMENT," 15,228.58 ",Social Community Care Supplies & Service.Adult.Nursing Homes,Q1,,
04/04/2016,CAPITAL CC,Project Centre Ltd,BUILDING ALTERATIONS AND MATERIALS," 15,200.00 ","Works - Construction, Repair & Maint.Roads.NA",Q1,,
27/04/2016,ADULT SOCIAL CARE,The Rathbone Centre,SUPPORTED OTHER ACCOMMODATION - PRIVATE CONTRACTORS PAYMENT," 15,197.36 ",Social Community Care Supplies & Service.Adult.Sheltered Accommodation,Q1,,
29/06/2016,ADULT SOCIAL CARE,The Rathbone Centre,SUPPORTED OTHER ACCOMMODATION - PRIVATE CONTRACTORS PAYMENT," 15,197.35 ",Social Community Care Supplies & Service.Adult.Sheltered Accommodation,Q1,,
18/04/2016,FINANCE,EDF Energy Plc,ELECTRICITY," 15,179.27 ",Utilities.Electricity.NA,Q1,,
05/04/2016,NO RECOURSE TO PUBLIC FUNDS,Metropolitan Housing Trust Ltd_d,RENTS PAYABLE," 15,163.20 ","Social Community Care Supplies & Service.Adult.Temporary Accommodation, Long Stay",Q1,,
22/06/2016,NO RECOURSE TO PUBLIC FUNDS,Metropolitan Housing Trust Ltd_d,RENTS PAYABLE," 15,163.20 ","Social Community Care Supplies & Service.Adult.Temporary Accommodation, Long Stay",Q1,,
25/05/2016,CHILDREN'S SERVICES,Hillcrest Children Services Ltd,RESIDENTIAL PLACEMENTS - PRIVATE CONTRACTORS PAYMENT," 15,145.71 ",Social Community Care Supplies & Service.Children.Residential Care,Q1,,
28/06/2016,EDUCATION & LEARNING,Kelly Executive,CLIENT TRANSPORT," 15,133.00 ",Public Transport.Taxi Services.NA,Q1,,
28/04/2016,CAPITAL CC,F M Conway Ltd_d,"MAINTENANCE - EQUIPMENT, FURNITURE AND MATERIALS"," 15,121.51 ","Works - Construction, Repair & Maint.Roads.Repair & Maintenance",Q1,,
22/04/2016,CHILDREN'S SERVICES,Inner Circle Recruitment,STAFF RECRUITMENT COSTS," 15,120.00 ",Human Resources.Recruitment & Assessment.NA,Q1,,
16/05/2016,HOUSING MANAGEMENT SERVICES,Plastic Omnium Urban Systems Ltd t/a Sulo MGB,WASTE DISPOSAL COSTS," 15,096.00 ",Environmental Services.Waste Management.Consumables,Q1,,
03/05/2016,CHILDREN'S SERVICES,Ethelbert Specialist Homes Ltd,RESIDENTIAL PLACEMENTS - PRIVATE CONTRACTORS PAYMENT," 15,092.40 ",Social Community Care Supplies & Service.Children.Residential Care,Q1,,
28/06/2016,CHILDREN'S SERVICES,Ethelbert Specialist Homes Ltd,RESIDENTIAL PLACEMENTS - PRIVATE CONTRACTORS PAYMENT," 15,092.40 ",Social Community Care Supplies & Service.Children.Residential Care,Q1,,
11/05/2016,BUSINESS & CUSTOMER SERVICES,"Callender, Miss Medlene_d",LEGAL FEES," 15,090.00 ",Legal Services.General Support.NA,Q1,,
02/06/2016,CAPITAL CC,Pinsent Masons LLP,BUILDING ALTERATIONS AND MATERIALS," 15,070.20 ",Legal Services.General Support.NA,Q1,,
30/06/2016,CHILDREN'S SERVICES,Cambian Childcare Ltd,RESIDENTIAL PLACEMENTS - PRIVATE CONTRACTORS PAYMENT," 15,053.47 ",Social Community Care Supplies & Service.Children.Residential Care,Q1,,
07/06/2016,ADULT SOCIAL CARE,Sanctuary Care Ltd,DOMICILIARY CARE - THIRD PARTY," 15,041.72 ",Social Community Care Supplies & Service.Adult.Residential Care,Q1,,
27/04/2016,CHILDREN'S SERVICES,Fostering for You,FOSTERING AGENCY PLACEMENTS - PRIVATE CONTRACTORS PAYMENT," 15,017.14 ",Social Community Care Supplies & Service.Children.Fostering,Q1,,
18/05/2016,"STRATEGY & COMMISSIONING - CHILDREN, DISABILITIES & PUBLIC HEALTH",Saint Mungo Association,PRIVATE CONTRACTORS PAYMENT - OTHER," 15,007.48 ","Social Community Care Supplies & Service.Adult.Temporary Accommodation, Hostels",Q1,,
22/06/2016,"STRATEGIC HOUSING, REGENERATION & COMMUNITIES",Saint Mungo Association,PRIVATE CONTRACTORS PAYMENT - OTHER," 15,007.48 ","Social Community Care Supplies & Service.Adult.Temporary Accommodation, Hostels",Q1,,
28/04/2016,STRATEGY & COMMISSIONING - NEIGHBOURHOODS,Advising London,PRIVATE CONTRACTORS PAYMENT - OTHER," 15,000.00 ",Social Community Care Supplies & Service.Adult.NA,Q1,,
02/06/2016,CAPITAL CC,John Rowan and Partners LLP,LEGAL FEES," 15,000.00 ",Legal Services.General Support.NA,Q1,,
23/05/2016,"STRATEGY & COMMISSIONING - CHILDREN, DISABILITIES & PUBLIC HEALTH",Kings College Hospital NHS Foundation Trust,PAYMENT TO HEALTH AUTHORITIES," 15,000.00 ",Healthcare.Public Health.NA,Q1,,
28/04/2016,"SENIOR MANAGEMENT - CHILDREN, ADULTS AND HEALTH",LH Alliances Ltd,IN HOUSE FOSTER CARE PLACEMENTS - PRIVATE CONTRACTORS PAYMENT," 15,000.00 ",Social Community Care Supplies & Service.Disabled Children.Care Services,Q1,,
29/06/2016,FINANCE,London Fire Brigade,HEALTH AND SAFETY WORKS," 15,000.00 ",Health & Safety.Maintenance.NA,Q1,,
03/05/2016,CHILDREN'S SERVICES,Merryvale Children's Home,RESIDENTIAL PLACEMENTS - PRIVATE CONTRACTORS PAYMENT," 15,000.00 ",Social Community Care Supplies & Service.Children.Residential Care,Q1,,
03/05/2016,CHILDREN'S SERVICES,Merryvale Children's Home,RESIDENTIAL PLACEMENTS - PRIVATE CONTRACTORS PAYMENT," 15,000.00 ",Social Community Care Supplies & Service.Children.Residential Care,Q1,,
03/05/2016,CHILDREN'S SERVICES,Merryvale Children's Home,RESIDENTIAL PLACEMENTS - PRIVATE CONTRACTORS PAYMENT," 15,000.00 ",Social Community Care Supplies & Service.Children.Residential Care,Q1,,
28/06/2016,CHILDREN'S SERVICES,Merryvale Children's Home,RESIDENTIAL PLACEMENTS - PRIVATE CONTRACTORS PAYMENT," 15,000.00 ",Social Community Care Supplies & Service.Children.Residential Care,Q1,,
28/06/2016,CHILDREN'S SERVICES,Merryvale Children's Home,RESIDENTIAL PLACEMENTS - PRIVATE CONTRACTORS PAYMENT," 15,000.00 ",Social Community Care Supplies & Service.Children.Residential Care,Q1,,
28/06/2016,CHILDREN'S SERVICES,Merryvale Children's Home,RESIDENTIAL PLACEMENTS - PRIVATE CONTRACTORS PAYMENT," 15,000.00 ",Social Community Care Supplies & Service.Children.Residential Care,Q1,,
07/06/2016,CORPORATE AFFAIRS,PricewaterhouseCoopers LLP,AUDIT FEES," 15,000.00 ",Financial Services.Audit.NA,Q1,,
28/06/2016,CHILDREN'S SERVICES,Sherico Care Services Ltd,RESIDENTIAL PLACEMENTS - PRIVATE CONTRACTORS PAYMENT," 15,000.00 ",Social Community Care Supplies & Service.Children.Residential Care,Q1,,
05/05/2016,"REGENERATION, PLANNING & NEIGHBOURHOODS",Timewise Foundation WLU CIC,PRIVATE CONTRACTORS PAYMENT - OTHER," 15,000.00 ",Social Community Care Supplies & Service.Adult.Advice & Counselling Services,Q1,,
06/06/2016,EDUCATION & LEARNING,Kelly Executive,CLIENT TRANSPORT," 14,971.00 ",Public Transport.Taxi Services.NA,Q1,,
28/06/2016,HOUSING SERVICES (HRA),Liberty Printers Ltd,"MAINTENANCE - EQUIPMENT, FURNITURE AND MATERIALS"," 14,970.00 ","Works - Construction, Repair & Maint.Roads.Repair & Maintenance",Q1,,
06/04/2016,BUSINESS TRANSFORMATION,Vodafone Ltd,LAND LINE TELEPHONE COSTS," 14,951.37 ",Information Communication Technology.Telecommunications.NA,Q1,,
22/06/2016,ADULT SOCIAL CARE,Lambeth Crossroads_d,DOMICILIARY CARE - THIRD PARTY," 14,945.03 ",Social Community Care Supplies & Service.Adult.Domiciliary Care,Q1,,
14/06/2016,HOUSING MANAGEMENT SERVICES,Morrison Facilities Services Ltd_d,RESPONSIVE REPAIRS - BUILDING," 14,934.69 ","Works - Construction, Repair & Maint.Buildings.Repair & Maintenance",Q1,,
03/05/2016,CHILDREN'S SERVICES,One One Coco,RESIDENTIAL PLACEMENTS - PRIVATE CONTRACTORS PAYMENT," 14,928.57 ",Social Community Care Supplies & Service.Children.Residential Care,Q1,,
06/04/2016,FINANCE,British Gas Business,ELECTRICITY," 14,888.56 ",Utilities.Electricity.NA,Q1,,
25/05/2016,"REGENERATION, PLANNING & NEIGHBOURHOODS",Veolia ES (UK) Ltd,REFUSE COLLECTION," 14,703.14 ",Environmental Services.Waste Management.Waste Collection,Q1,,
21/06/2016,"NEIGHBOURHOODS, ENVIRONMENT & EMPLOYMENT",Veolia ES (UK) Ltd,REFUSE COLLECTION," 14,703.14 ",Environmental Services.Waste Management.Waste Collection,Q1,,
15/06/2016,HOUSING MANAGEMENT SERVICES,Japanese Knotweed Ltd,GROUNDS MAINTENANCE," 14,700.00 ",Horticultural.Weed Control.NA,Q1,,
15/06/2016,HOUSING MANAGEMENT SERVICES,Japanese Knotweed Ltd,GROUNDS MAINTENANCE," 14,700.00 ",Horticultural.Weed Control.NA,Q1,,
10/05/2016,EDUCATION & LEARNING,Morley College Ltd,PAYMENTS TO VOLUNTARY SECTOR," 14,683.49 ",Education.Adult & Further Education Services.NA,Q1,,
16/05/2016,"REGENERATION, PLANNING & NEIGHBOURHOODS",Renaisi Ltd,CONSULTANCY FEES," 14,662.50 ",Consultancy.Business.NA,Q1,,
28/06/2016,CHILDREN'S SERVICES,Hillcrest Children Services Ltd,RESIDENTIAL PLACEMENTS - PRIVATE CONTRACTORS PAYMENT," 14,657.15 ",Social Community Care Supplies & Service.Children.Residential Care,Q1,,
28/06/2016,ADULT SOCIAL CARE,Sense,RESIDENTIAL PLACEMENTS - PRIVATE CONTRACTORS PAYMENT," 14,642.05 ",Social Community Care Supplies & Service.Adult.Residential Care,Q1,,
27/04/2016,ADULT SOCIAL CARE,Sense,RESIDENTIAL PLACEMENTS - PRIVATE CONTRACTORS PAYMENT," 14,642.05 ",Social Community Care Supplies & Service.Adult.Residential Care,Q1,,
01/06/2016,EDUCATION & LEARNING,Liverpool City Council,IN HOUSE FOSTER CARE PLACEMENTS - PRIVATE CONTRACTORS PAYMENT," 14,625.00 ",Social Community Care Supplies & Service.Disabled Children.Care Services,Q1,,
26/04/2016,"STRATEGY & COMMISSIONING - CHILDREN, DISABILITIES & PUBLIC HEALTH",Evolve Housing & Support,PRIVATE CONTRACTORS PAYMENT - OTHER," 14,608.01 ",Facilities & Management Services.Room Hire.NA,Q1,,
03/05/2016,EDUCATION & LEARNING,Kelly Executive,CLIENT TRANSPORT," 14,595.50 ",Public Transport.Taxi Services.NA,Q1,,
30/06/2016,CHILDREN'S SERVICES,Cambian Childcare Ltd,RESIDENTIAL PLACEMENTS - PRIVATE CONTRACTORS PAYMENT," 14,567.87 ",Social Community Care Supplies & Service.Children.Residential Care,Q1,,
16/06/2016,HOUSING SERVICES (HRA),Centre 70 Advice Centre,LEGAL FEES," 14,550.00 ",Legal Services.General Support.NA,Q1,,
03/06/2016,CAPITAL CC,Ingleton Wood LLP,CONSULTANCY FEES," 14,512.50 ",Consultancy.Business.NA,Q1,,
03/06/2016,CAPITAL CC,Ingleton Wood LLP,CONSULTANCY FEES," 14,512.50 ",Consultancy.Business.NA,Q1,,
04/04/2016,HOUSING MANAGEMENT SERVICES,Anthony Gold Solicitors,LEGAL FEES," 14,500.00 ",Legal Services.Advocacy.NA,Q1,,
10/05/2016,EDUCATION & LEARNING,Kelly Executive,CLIENT TRANSPORT," 14,491.50 ",Public Transport.Taxi Services.NA,Q1,,
06/04/2016,"REGENERATION, PLANNING & NEIGHBOURHOODS",Veolia ES (UK) Ltd,WASTE DISPOSAL COSTS," 14,471.59 ",Environmental Services.Waste Management.NA,Q1,,
06/04/2016,"REGENERATION, PLANNING & NEIGHBOURHOODS",Veolia ES (UK) Ltd,WASTE DISPOSAL COSTS," 14,471.59 ",Environmental Services.Waste Management.NA,Q1,,
18/05/2016,BUSINESS & CUSTOMER SERVICES,Emmaus South Lambeth Community,PRIVATE CONTRACTORS PAYMENT - OTHER," 14,456.67 ",Social Community Care Supplies & Service.Adult.Sheltered Accommodation,Q1,,
23/05/2016,"REGENERATION, PLANNING & NEIGHBOURHOODS",F M Conway Ltd_d,"MAINTENANCE - EQUIPMENT, FURNITURE AND MATERIALS"," 14,438.37 ","Works - Construction, Repair & Maint.Roads.Repair & Maintenance",Q1,,
23/05/2016,"REGENERATION, PLANNING & NEIGHBOURHOODS",F M Conway Ltd_d,"MAINTENANCE - EQUIPMENT, FURNITURE AND MATERIALS"," 14,438.37 ","Works - Construction, Repair & Maint.Roads.Repair & Maintenance",Q1,,
24/05/2016,ADULT SOCIAL CARE,L K Homecare Provider Ltd,DOMICILIARY CARE - THIRD PARTY," 14,428.78 ",Social Community Care Supplies & Service.Adult.Domiciliary Care,Q1,,
27/05/2016,BUSINESS TRANSFORMATION,Fotheringham Associates Ltd,CONSULTANCY FEES," 14,400.00 ",Information Communication Technology.Services.Consultancy,Q1,,
01/04/2016,BUSINESS & CUSTOMER SERVICES,Cofely Workplace Ltd,SECURITY SERVICES (EXCLUDING PREMISES)," 14,393.45 ",Financial Services.Cash Collection.NA,Q1,,
13/04/2016,BUSINESS & CUSTOMER SERVICES,Cofely Workplace Ltd,SECURITY SERVICES (EXCLUDING PREMISES)," 14,393.45 ",Financial Services.Cash Collection.NA,Q1,,
16/05/2016,BUSINESS & CUSTOMER SERVICES,Cofely Workplace Ltd,SECURITY SERVICES (EXCLUDING PREMISES)," 14,393.45 ",Financial Services.Cash Collection.NA,Q1,,
17/05/2016,BUSINESS & CUSTOMER SERVICES,Cofely Workplace Ltd,SECURITY SERVICES (EXCLUDING PREMISES)," 14,393.45 ",Financial Services.Cash Collection.NA,Q1,,
25/05/2016,CHILDREN'S SERVICES,Quality Protects Children Ltd,RESIDENTIAL PLACEMENTS - PRIVATE CONTRACTORS PAYMENT," 14,392.86 ",Social Community Care Supplies & Service.Children.Residential Care,Q1,,
25/05/2016,CHILDREN'S SERVICES,Quality Protects Children Ltd,RESIDENTIAL PLACEMENTS - PRIVATE CONTRACTORS PAYMENT," 14,392.86 ",Social Community Care Supplies & Service.Children.Residential Care,Q1,,
25/05/2016,CHILDREN'S SERVICES,Quality Protects Children Ltd,RESIDENTIAL PLACEMENTS - PRIVATE CONTRACTORS PAYMENT," 14,392.86 ",Social Community Care Supplies & Service.Children.Residential Care,Q1,,
14/06/2016,HOUSING MANAGEMENT SERVICES,Morrison Facilities Services Ltd_d,RESPONSIVE REPAIRS - BUILDING," 14,366.07 ","Works - Construction, Repair & Maint.Buildings.Repair & Maintenance",Q1,,
17/05/2016,EDUCATION & LEARNING,Hillcrest Autism Services Ltd,PROFESSIONAL SERVICES - GENERAL," 14,358.00 ",Education.Educational Placements.NA,Q1,,
17/05/2016,EDUCATION & LEARNING,Hillcrest Autism Services Ltd,PROFESSIONAL SERVICES - GENERAL," 14,358.00 ",Education.Educational Placements.NA,Q1,,
18/05/2016,BUSINESS & CUSTOMER SERVICES,Emmaus South Lambeth Community,PRIVATE CONTRACTORS PAYMENT - OTHER," 14,320.00 ",Social Community Care Supplies & Service.Adult.Sheltered Accommodation,Q1,,
30/06/2016,POLICY & COMMUNICATIONS,Tribe Marketing Ltd,CONSULTANCY FEES," 14,274.32 ",Consultancy.Business.NA,Q1,,
17/05/2016,HOUSING MANAGEMENT SERVICES,John Rowan and Partners LLP,LEGAL FEES," 14,270.35 ",Legal Services.General Support.NA,Q1,,
06/05/2016,HUMAN RESOURCES AND ORGANISATIONAL DEVELOPMENT,The Dartington Hall Trust,MEMBERSHIP AND SUBSCRIPTIONS," 14,260.00 ",Financial Services.Subscriptions.NA,Q1,,
18/04/2016,FINANCE,EDF Energy Plc,ELECTRICITY," 14,226.89 ",Utilities.Electricity.NA,Q1,,
26/04/2016,CAPITAL CC,Loughborough EMB Ltd,PRIVATE CONTRACTORS PAYMENT - OTHER," 14,187.09 ",Housing Management.Arms Length Management Organisations.NA,Q1,,
25/05/2016,CHILDREN'S SERVICES,Freshstart Care Solutions Ltd,RENTS PAYABLE," 14,171.43 ",Social Community Care Supplies & Service.Children.Residential Care,Q1,,
25/05/2016,ADULT SOCIAL CARE,Sense,RESIDENTIAL PLACEMENTS - PRIVATE CONTRACTORS PAYMENT," 14,169.73 ",Social Community Care Supplies & Service.Adult.Residential Care,Q1,,
18/05/2016,CAPITAL CC,Pellings LLP,CONSULTANCY FEES," 14,168.62 ","Works - Construction, Repair & Maint.Consultancy.NA",Q1,,
18/05/2016,"STRATEGY & COMMISSIONING - CHILDREN, DISABILITIES & PUBLIC HEALTH",Solace Women's Aid,PRIVATE CONTRACTORS PAYMENT - OTHER," 14,127.36 ",Social Community Care Supplies & Service.Adult.Advice & Counselling Services,Q1,,
22/06/2016,"STRATEGIC HOUSING, REGENERATION & COMMUNITIES",Solace Women's Aid,PRIVATE CONTRACTORS PAYMENT - OTHER," 14,127.36 ",Social Community Care Supplies & Service.Adult.Advice & Counselling Services,Q1,,
10/06/2016,ADULT SOCIAL CARE,Sanctuary Care Ltd,DOMICILIARY CARE - THIRD PARTY," 14,118.50 ",Social Community Care Supplies & Service.Adult.Residential Care,Q1,,
20/06/2016,EDUCATION & LEARNING,Healthcare & Transport Services,CLIENT TRANSPORT," 14,088.59 ",Public Transport.Taxi Services.NA,Q1,,
28/06/2016,ADULT SOCIAL CARE,Cognithan Ltd,SUPPORTED OTHER ACCOMMODATION - PRIVATE CONTRACTORS PAYMENT," 14,085.71 ",Social Community Care Supplies & Service.Adult.Sheltered Accommodation,Q1,,
26/04/2016,BUSINESS TRANSFORMATION,Specialist Computer Centers Plc,ICT MAINTENANCE AND SUPPORT," 14,012.50 ",Information Communication Technology.Services.NA,Q1,,
13/04/2016,FINANCE,British Gas Business,ELECTRICITY," 14,011.53 ",Utilities.Electricity.NA,Q1,,
27/04/2016,HOUSING MANAGEMENT SERVICES,Hodge Jones & Allen Solicitors,LEGAL FEES," 14,000.00 ",Legal Services.Advocacy.NA,Q1,,
24/05/2016,HOUSING MANAGEMENT SERVICES,Philcox Gray & Co,LEGAL FEES," 14,000.00 ",Legal Services.Advocacy.NA,Q1,,
25/05/2016,CHILDREN'S SERVICES,3C's Creating Care Choices Ltd,RENTS PAYABLE," 13,999.91 ",Social Community Care Supplies & Service.Children.Residential Care,Q1,,
22/06/2016,ADULT SOCIAL CARE,Age UK Lambeth,FLOATING SUPPORT SERVICES - PRIVATE CONTRACTORS PAYMENT," 13,992.80 ",Social Community Care Supplies & Service.Adult.NA,Q1,,
18/05/2016,"STRATEGY & COMMISSIONING - CHILDREN, DISABILITIES & PUBLIC HEALTH",Age UK Lambeth,FLOATING SUPPORT SERVICES - PRIVATE CONTRACTORS PAYMENT," 13,992.80 ",Social Community Care Supplies & Service.Adult.NA,Q1,,
27/04/2016,ADULT SOCIAL CARE,High View Care Services Ltd,RESIDENTIAL PLACEMENTS - PRIVATE CONTRACTORS PAYMENT," 13,988.15 ",Social Community Care Supplies & Service.Adult.Residential Care,Q1,,
25/05/2016,CHILDREN'S SERVICES,Quality Protects Children Ltd,RESIDENTIAL PLACEMENTS - PRIVATE CONTRACTORS PAYMENT," 13,950.00 ",Social Community Care Supplies & Service.Children.Residential Care,Q1,,
21/04/2016,"REGENERATION, PLANNING & NEIGHBOURHOODS",NSL Services Group Ltd,CONSULTANCY FEES," 13,934.78 ",Consultancy.Business.NA,Q1,,
03/05/2016,CHILDREN'S SERVICES,Quality Protects Children Ltd,RESIDENTIAL PLACEMENTS - PRIVATE CONTRACTORS PAYMENT," 13,928.57 ",Social Community Care Supplies & Service.Children.Residential Care,Q1,,
03/05/2016,CHILDREN'S SERVICES,Quality Protects Children Ltd,RESIDENTIAL PLACEMENTS - PRIVATE CONTRACTORS PAYMENT," 13,928.57 ",Social Community Care Supplies & Service.Children.Residential Care,Q1,,
28/06/2016,CHILDREN'S SERVICES,Quality Protects Children Ltd,RESIDENTIAL PLACEMENTS - PRIVATE CONTRACTORS PAYMENT," 13,928.57 ",Social Community Care Supplies & Service.Children.Residential Care,Q1,,
28/06/2016,CHILDREN'S SERVICES,Quality Protects Children Ltd,RESIDENTIAL PLACEMENTS - PRIVATE CONTRACTORS PAYMENT," 13,928.57 ",Social Community Care Supplies & Service.Children.Residential Care,Q1,,
28/06/2016,CHILDREN'S SERVICES,Quality Protects Children Ltd,RESIDENTIAL PLACEMENTS - PRIVATE CONTRACTORS PAYMENT," 13,928.57 ",Social Community Care Supplies & Service.Children.Residential Care,Q1,,
28/06/2016,CHILDREN'S SERVICES,Quality Protects Children Ltd,RESIDENTIAL PLACEMENTS - PRIVATE CONTRACTORS PAYMENT," 13,928.57 ",Social Community Care Supplies & Service.Children.Residential Care,Q1,,
25/05/2016,ADULT SOCIAL CARE,Precious Homes Ltd,RESIDENTIAL PLACEMENTS - PRIVATE CONTRACTORS PAYMENT," 13,912.62 ",Social Community Care Supplies & Service.Adult.Residential Care,Q1,,
07/04/2016,POLICY & COMMUNICATIONS,The Campaign Company Ltd,CONSULTANCY FEES," 13,887.00 ",Consultancy.Strategic Planning.NA,Q1,,
28/06/2016,CHILDREN'S SERVICES,Supporting Futures Ltd,RESIDENTIAL PLACEMENTS - PRIVATE CONTRACTORS PAYMENT," 13,878.58 ",Social Community Care Supplies & Service.Children.Residential Care,Q1,,
13/06/2016,EDUCATION & LEARNING,Healthcare & Transport Services,CLIENT TRANSPORT," 13,861.07 ",Public Transport.Taxi Services.NA,Q1,,
27/04/2016,ADULT SOCIAL CARE,Cognithan Ltd,RESIDENTIAL PLACEMENTS - PRIVATE CONTRACTORS PAYMENT," 13,842.86 ",Social Community Care Supplies & Service.Adult.Residential Care,Q1,,
12/05/2016,CHILDREN'S SERVICES,Inner Circle Recruitment,STAFF RECRUITMENT COSTS," 13,815.00 ",Human Resources.Recruitment & Assessment.NA,Q1,,
27/04/2016,FINANCE,EU Supply Ltd,ICT SOFTWARE," 13,780.00 ",Information Communication Technology.Software.Customised & Bespoke,Q1,,
19/04/2016,CAPITAL CC,Apollo Property Services Group Ltd,BUILDING ALTERATIONS AND MATERIALS," 13,771.75 ","Works - Construction, Repair & Maint.Buildings.Repair & Maintenance",Q1,,
09/06/2016,MAJOR CAPITAL PROGRAMMES (HRA),Airey Miller Partnership LLP,CONSULTANCY FEES," 13,752.00 ","Works - Construction, Repair & Maint.Consultancy.NA",Q1,,
07/04/2016,EDUCATION & LEARNING,Tzedek Consultancy Ltd,CONSULTANCY FEES," 13,750.00 ",Consultancy.Business.NA,Q1,,
27/04/2016,CHILDREN'S SERVICES,Freshstart Care Solutions Ltd,RENTS PAYABLE," 13,714.29 ",Social Community Care Supplies & Service.Children.Residential Care,Q1,,
06/06/2016,CORPORATE AFFAIRS,Global Secretarial,ICT SOFTWARE," 13,699.50 ",Information Communication Technology.Software.Customised & Bespoke,Q1,,
27/06/2016,EDUCATION & LEARNING,Healthcare & Transport Services,CLIENT TRANSPORT," 13,685.42 ",Public Transport.Taxi Services.NA,Q1,,
09/06/2016,EDUCATION & LEARNING,Centre Academy,PROFESSIONAL SERVICES - GENERAL," 13,666.00 ",Education.School Services.NA,Q1,,
09/06/2016,EDUCATION & LEARNING,Centre Academy,PROFESSIONAL SERVICES - GENERAL," 13,666.00 ",Education.School Services.NA,Q1,,
08/04/2016,"REGENERATION, PLANNING & NEIGHBOURHOODS",WYG Environment Planning Transport Ltd,CONSULTANCY FEES," 13,660.00 ",Consultancy.Strategic Planning.NA,Q1,,
25/05/2016,ADULT SOCIAL CARE,Precious Homes Ltd,RESIDENTIAL PLACEMENTS - PRIVATE CONTRACTORS PAYMENT," 13,654.13 ",Social Community Care Supplies & Service.Adult.Residential Care,Q1,,
22/06/2016,ADULT SOCIAL CARE,Sanctuary Carr-Gomm,PRIVATE CONTRACTORS PAYMENT - OTHER," 13,650.00 ","Social Community Care Supplies & Service.Adult.Temporary Accommodation, Long Stay",Q1,,
18/05/2016,"STRATEGY & COMMISSIONING - CHILDREN, DISABILITIES & PUBLIC HEALTH",Sanctuary Carr-Gomm,PRIVATE CONTRACTORS PAYMENT - OTHER," 13,650.00 ","Social Community Care Supplies & Service.Adult.Temporary Accommodation, Long Stay",Q1,,
08/06/2016,"STRATEGY & COMMISSIONING - CHILDREN, DISABILITIES & PUBLIC HEALTH",Learning Unlimited,STAFF DEVELOPMENT AND TRAINING," 13,641.79 ",Human Resources.Training & Conferences.Conferences,Q1,,
29/06/2016,ADULT SOCIAL CARE,Right Support Management Ltd,SUPPORTED OTHER ACCOMMODATION - PRIVATE CONTRACTORS PAYMENT," 13,621.30 ",Social Community Care Supplies & Service.Adult.Sheltered Accommodation,Q1,,
15/06/2016,BUSINESS & CUSTOMER SERVICES,Thebigword,TRANSLATORS AND INTERPRETERS," 13,562.50 ",Human Resources.Interpretation & Translation.NA,Q1,,
29/06/2016,FINANCE,EDF Energy Plc,ELECTRICITY," 13,552.79 ",Utilities.Electricity.NA,Q1,,
18/04/2016,"REGENERATION, PLANNING & NEIGHBOURHOODS",F M Conway Ltd_d,"MAINTENANCE - EQUIPMENT, FURNITURE AND MATERIALS"," 13,548.35 ","Works - Construction, Repair & Maint.Roads.Repair & Maintenance",Q1,,
21/04/2016,"REGENERATION, PLANNING & NEIGHBOURHOODS",F M Conway Ltd_d,"MAINTENANCE - EQUIPMENT, FURNITURE AND MATERIALS"," 13,548.35 ","Works - Construction, Repair & Maint.Roads.Repair & Maintenance",Q1,,
27/04/2016,CHILDREN'S SERVICES,3C's Creating Care Choices Ltd,RENTS PAYABLE," 13,548.30 ",Social Community Care Supplies & Service.Children.Residential Care,Q1,,
19/05/2016,ADULT SOCIAL CARE,Sanctuary Care Ltd,DOMICILIARY CARE - THIRD PARTY," 13,528.64 ",Social Community Care Supplies & Service.Adult.Residential Care,Q1,,
03/05/2016,CHILDREN'S SERVICES,Quality Protects Children Ltd,RESIDENTIAL PLACEMENTS - PRIVATE CONTRACTORS PAYMENT," 13,500.00 ",Social Community Care Supplies & Service.Children.Residential Care,Q1,,
28/06/2016,CHILDREN'S SERVICES,Quality Protects Children Ltd,RESIDENTIAL PLACEMENTS - PRIVATE CONTRACTORS PAYMENT," 13,500.00 ",Social Community Care Supplies & Service.Children.Residential Care,Q1,,
07/04/2016,EDUCATION & LEARNING,Healthcare & Transport Services,CLIENT TRANSPORT," 13,496.72 ",Public Transport.Taxi Services.NA,Q1,,
23/06/2016,ADULT SOCIAL CARE,Lambeth Crossroads_d,DOMICILIARY CARE - THIRD PARTY," 13,486.50 ",Social Community Care Supplies & Service.Adult.Domiciliary Care,Q1,,
13/04/2016,CAPITAL CC,Precision Lift Services Ltd_d,BUILDING ALTERATIONS AND MATERIALS," 13,486.43 ",Facilities & Management Services.Lifts.New Installation,Q1,,
13/04/2016,CAPITAL CC,Precision Lift Services Ltd_d,BUILDING ALTERATIONS AND MATERIALS," 13,486.43 ",Facilities & Management Services.Lifts.New Installation,Q1,,
25/05/2016,ADULT SOCIAL CARE,Curocare Ltd,NURSING HOMES - PRIVATE CONTRACTORS PAYMENT," 13,471.71 ",Social Community Care Supplies & Service.Adult.Residential Care,Q1,,
24/06/2016,ADULT SOCIAL CARE,Sanctuary Care Ltd,DOMICILIARY CARE - THIRD PARTY," 13,466.78 ",Social Community Care Supplies & Service.Adult.Residential Care,Q1,,
29/06/2016,ADULT SOCIAL CARE,Precious Homes Ltd,RESIDENTIAL PLACEMENTS - PRIVATE CONTRACTORS PAYMENT," 13,463.83 ",Social Community Care Supplies & Service.Adult.Residential Care,Q1,,
27/04/2016,ADULT SOCIAL CARE,Precious Homes Ltd,RESIDENTIAL PLACEMENTS - PRIVATE CONTRACTORS PAYMENT," 13,463.83 ",Social Community Care Supplies & Service.Adult.Residential Care,Q1,,
25/05/2016,ADULT SOCIAL CARE,High Quality Lifestyles,RESIDENTIAL PLACEMENTS - PRIVATE CONTRACTORS PAYMENT," 13,454.00 ",Social Community Care Supplies & Service.Adult.Residential Care,Q1,,
16/06/2016,"NEIGHBOURHOODS, ENVIRONMENT & EMPLOYMENT",NSL Services Group Ltd,CONSULTANCY FEES," 13,411.90 ",Consultancy.Business.NA,Q1,,
05/04/2016,BUSINESS & CUSTOMER SERVICES,Capita Business Services Ltd,ICT SOFTWARE," 13,408.00 ",Information Communication Technology.Software.NA,Q1,,
18/04/2016,FINANCE,EDF Energy Plc,ELECTRICITY," 13,401.17 ",Utilities.Electricity.NA,Q1,,
26/05/2016,"REGENERATION, PLANNING & NEIGHBOURHOODS",DLP PLanning Ltd,CONSULTANCY FEES," 13,375.00 ",Consultancy.Business.NA,Q1,,
06/04/2016,HOUSING MANAGEMENT SERVICES,Streetspace Group,"MAINTENANCE - EQUIPMENT, FURNITURE AND MATERIALS"," 13,372.42 ","Works - Construction, Repair & Maint.Roads.Repair & Maintenance",Q1,,
27/04/2016,ADULT SOCIAL CARE,Cognithan Ltd,RESIDENTIAL PLACEMENTS - PRIVATE CONTRACTORS PAYMENT," 13,367.86 ",Social Community Care Supplies & Service.Adult.Residential Care,Q1,,
22/04/2016,EDUCATION & LEARNING,St Christopher's School,PROFESSIONAL SERVICES - GENERAL," 13,354.15 ",Education.Educational Placements.NA,Q1,,
22/04/2016,EDUCATION & LEARNING,St Christopher's School,PROFESSIONAL SERVICES - GENERAL," 13,354.15 ",Education.Educational Placements.NA,Q1,,
22/04/2016,EDUCATION & LEARNING,St Christopher's School,PROFESSIONAL SERVICES - GENERAL," 13,354.15 ",Education.Educational Placements.NA,Q1,,
27/06/2016,"STRATEGIC HOUSING, REGENERATION & COMMUNITIES",London Community Rehabilitation Company,PRIVATE CONTRACTORS PAYMENT - OTHER," 13,351.00 ",Social Community Care Supplies & Service.Adult.Advice & Counselling Services,Q1,,
29/06/2016,FINANCE,EDF Energy Plc,ELECTRICITY," 13,324.90 ",Utilities.Electricity.NA,Q1,,
29/06/2016,ADULT SOCIAL CARE,Precious Homes Ltd,RESIDENTIAL PLACEMENTS - PRIVATE CONTRACTORS PAYMENT," 13,213.67 ",Social Community Care Supplies & Service.Adult.Residential Care,Q1,,
27/04/2016,ADULT SOCIAL CARE,Precious Homes Ltd,RESIDENTIAL PLACEMENTS - PRIVATE CONTRACTORS PAYMENT," 13,213.67 ",Social Community Care Supplies & Service.Adult.Residential Care,Q1,,
